Trans No.,Service Area Categorisation,Service Division Categorisation,Responsible Unit,Unit Code,Expenses Type,Expenses Sub Type,Expense Code,Narrative,Amount,InvoiceDate,Cap/Rev,Supplier Name
1,Central Services,SupS Facilities,Corporate Services Buildings,E02240,Premises Related Expenditure  ,RepairsAlterations&MtceOfBldgs,BA05,DDM - Electrical                        ,546.09,28/11/2014,Rev,EUROPA NATIONWIDE TECH.SER.LTD
2,Childrens & Education Services,Strategic Management,CSF Buildings,E02256,Premises Related Expenditure  ,RepairsAlterations&MtceOfBldgs,BA03,DDM - Mechanical                        ,937.13,28/11/2014,Rev,EUROPA NATIONWIDE TECH.SER.LTD
3,Adult Social Care,PS u65 Day Care,C & H Buildings,E02345,Premises Related Expenditure  ,RepairsAlterations&MtceOfBldgs,BA03,DDM - Mechanical                        ,1343.1,28/11/2014,Rev,EUROPA NATIONWIDE TECH.SER.LTD
4,Childrens & Education Services,CS - Commiss'ing & Social Work,SG & CP T2 Section 17                   ,W1FC38,Transfer Payments             ,Schoolchildren/Students       ,FF02,Childr Act 1989 S17                     ,743,15/12/2014,Rev,TRICHO-TECH LIMITED           
5,CS -Oth Operating Inc & Expend,Extraordinary Items & PY Adj.,Willow Lane Budget,J01575,Premises Related Expenditure  ,Energy Costs                  ,BB02,ELECTRICITY                             ,797.53,29/12/2014,Rev,OPUS ENERGY LIMITED           
6,,,LD JMC                                  ,WPKB00,Premises Related Expenditure  ,Energy Costs                  ,BB03,Gas (incl. Butane)                      ,526.47,01/01/2015,Rev,GAZPROM MARKETING&TRADING LTD 
7,Cultural Env Reg&Plan Services,Library DoS not split,Media Fund,L83081,Supplies & Services           ,Comms and Computing           ,DG72,On Line Resources                       ,8250,10/01/2015,Rev,OVERDRIVE                     
8,Childrens & Education Services,Support for SEN Pupils,Non-Delegated Statements,K90024,Supplies & Services           ,Services                      ,DF09,Miscellaneous Fees                      ,36328.5,14/01/2015,Rev,PERSEID SCHOOL                
9,Cultural Env Reg&Plan Services,Comm Safety (Crime Reduction),CCTV,A01200,Supplies & Services           ,Comms and Computing           ,DG15,Network Maintenance                     ,989.52,02/03/2015,Rev,BT REDCARE                    
10,Central Services,SupS Legal,Achieving for Children (AFC),E10295,Supplies & Services           ,Services                      ,DF14,Doctors and Other Fees                  ,850,24/03/2015,Rev,THE BRESLAFF CENTRE           
11,Housing Services,Bed / breakfast accommodation,Homelessness Prevention,N47171,Transfer Payments             ,Housing Benefits              ,FA12,Rent Deposits                           ,1200,24/03/2015,Rev,ST MUNGO'S BROADWAY           
12,Public Health,PH - Sexual Health,PH � STI Testing and Treatment          ,WPHS02,Supplies & Services           ,Public Health Subjectives,DQ04,GUM                                     ,6521.72,26/03/2015,Rev,CROYDON HEALTH SERV. NHS TRUST
13,Public Health,Public Health - Main,Public Health - Main                    ,WPHL00,Supplies & Services           ,Expenses                      ,DH50,Special Projects                        ,640,30/03/2015,Rev,MERTON SCH.SPORTS PARTNERSHIP 
14,Central Services,SupS Legal,Achieving for Children (AFC),E10295,Supplies & Services           ,Services                      ,DF14,Doctors and Other Fees                  ,3200,31/03/2015,Rev,THE BRESLAFF CENTRE           
15,Adult Social Care,OP 65&OverAssessment&Care Mgt,OP Ass&Care Mgt,W2LA01,Supplies & Services           ,Services                      ,DF09,Miscellaneous Fees                      ,4200,07/04/2015,Rev,ST GEORGES HEALTHCARE TRUST   
16,Childrens & Education Services,Support for SEN Pupils,ART SEN Residential (DSG),K90050,Third Party Payments          ,Other Establishments          ,EG51,Ind Resid Schs Payments                 ,11499.34,09/04/2015,Rev,ST CATHERINE'S SCHOOL         
17,Adult Social Care,OP 65&Over NursingCarePlacemts,OP R/Park - Nursing Care,W2LR53,Third Party Payments          ,Private Contractors           ,EH01,Miscellaneous Agency Services           ,561.04,19/04/2015,Rev,CARTER HOUSE                  
18,Adult Social Care,OP 65&Over NursingCarePlacemts,OP R/Park - Nursing Care,W2LR53,Third Party Payments          ,Private Contractors           ,EH01,Miscellaneous Agency Services           ,654.55,19/04/2015,Rev,CARTER HOUSE                  
19,Cultural Env Reg&Plan Services,DC Advice Apps & Reg not split,Development Control,H01130,Customer and client receipts  ,Fees                          ,RB03,Miscellaneous Fees S                    ,-500,21/04/2015,Rev,REDACTED
20,Central Services,SupS Legal,Sutton Legal                            ,E10293,Supplies & Services           ,Services                      ,DF11,Counsel's Fees                          ,-6075,24/04/2015,Rev,REDACTED
21,Central Services,SupS Legal,Sutton Legal                            ,E10293,Supplies & Services           ,Services                      ,DF11,Counsel's Fees                          ,-2600,24/04/2015,Rev,REDACTED
22,Central Services,SupS Legal,Sutton Legal                            ,E10293,Supplies & Services           ,Services                      ,DF11,Counsel's Fees                          ,-600,24/04/2015,Rev,REDACTED
23,Cultural Env Reg&Plan Services,Mgt & Sup (Cult),Tree Safety (Schools),P18320,Premises Related Expenditure  ,Ground Maintenance Costs      ,BL50,NATURE CONSERVATION                     ,513,27/04/2015,Rev,MICROBEE LTD                  
24,Central Services,SupS Legal,Achieving for Children (AFC),E10295,Supplies & Services           ,Services                      ,DF14,Doctors and Other Fees                  ,12880,27/04/2015,Rev,THE BRESLAFF CENTRE           
25,Central Services,SupS Chief Execs,NON-STATUTORY MARKETING & COMM,A02019,Supplies & Services           ,Services                      ,DF02,Misc Advertising/Publicity              ,537.5,29/04/2015,Rev,JCDECAUX UNITED KINGDOM       
26,,,Replacement Social Care System          ,CT007EA,Vehicles Plant Equipment and Machinery,,D5,Software                                ,38600,30/04/2015,Cap,CORELOGIC                     
27,Childrens & Education Services,Support for SEN Pupils,ART SEN Residential (DSG),K90050,Third Party Payments          ,Other Establishments          ,EG51,Ind Resid Schs Payments                 ,62405,01/05/2015,Rev,THE MULBERRY BUSH ORGANISATION
28,Cultural Env Reg&Plan Services,Mgt & Support (Env),Waste Management,G00900,Supplies & Services           ,Services                      ,DF96,LBM Legal Services                      ,850,15/05/2015,Rev,REDACTED
29,Central Services,SupS Legal,Achieving for Children (AFC),E10295,Supplies & Services           ,Services                      ,DF14,Doctors and Other Fees                  ,542.08,16/06/2015,Rev,MPA LTD                       
30,Adult Social Care,LD u65 Residentl Care Placemnt,LD Residential Care External,W2KB55,Third Party Payments          ,Private Contractors           ,EH01,Miscellaneous Agency Services           ,536.87,18/06/2015,Rev,WHITMORE VALE HOUSING ASS LTD 
31,Adult Social Care,LD u65 Residentl Care Placemnt,LD Residential Care External,W2KB55,Third Party Payments          ,Private Contractors           ,EH01,Miscellaneous Agency Services           ,536.87,18/06/2015,Rev,WHITMORE VALE HOUSING ASS LTD 
32,Adult Social Care,LD u65 Residentl Care Placemnt,LD Residential Care External,W2KB55,Third Party Payments          ,Private Contractors           ,EH01,Miscellaneous Agency Services           ,536.87,18/06/2015,Rev,WHITMORE VALE HOUSING ASS LTD 
33,Adult Social Care,LD u65 Residentl Care Placemnt,LD Residential Care External,W2KB55,Third Party Payments          ,Private Contractors           ,EH01,Miscellaneous Agency Services           ,536.87,18/06/2015,Rev,WHITMORE VALE HOUSING ASS LTD 
34,Adult Social Care,LD u65 Residentl Care Placemnt,LD Residential Care External,W2KB55,Third Party Payments          ,Private Contractors           ,EH01,Miscellaneous Agency Services           ,536.87,18/06/2015,Rev,WHITMORE VALE HOUSING ASS LTD 
35,Adult Social Care,LD u65 Residentl Care Placemnt,LD Residential Care External,W2KB55,Third Party Payments          ,Private Contractors           ,EH01,Miscellaneous Agency Services           ,536.87,18/06/2015,Rev,WHITMORE VALE HOUSING ASS LTD 
36,Adult Social Care,LD u65 Residentl Care Placemnt,LD Residential Care External,W2KB55,Third Party Payments          ,Private Contractors           ,EH01,Miscellaneous Agency Services           ,536.87,18/06/2015,Rev,WHITMORE VALE HOUSING ASS LTD 
37,Adult Social Care,LD u65 Residentl Care Placemnt,LD Residential Care External,W2KB55,Third Party Payments          ,Private Contractors           ,EH01,Miscellaneous Agency Services           ,536.87,18/06/2015,Rev,WHITMORE VALE HOUSING ASS LTD 
38,Adult Social Care,LD u65 Residentl Care Placemnt,LD Residential Care External,W2KB55,Third Party Payments          ,Private Contractors           ,EH01,Miscellaneous Agency Services           ,536.87,18/06/2015,Rev,WHITMORE VALE HOUSING ASS LTD 
39,Adult Social Care,LD u65 Residentl Care Placemnt,LD Residential Care External,W2KB55,Third Party Payments          ,Private Contractors           ,EH01,Miscellaneous Agency Services           ,536.87,18/06/2015,Rev,WHITMORE VALE HOUSING ASS LTD 
40,Adult Social Care,LD u65 Residentl Care Placemnt,LD Residential Care External,W2KB55,Third Party Payments          ,Private Contractors           ,EH01,Miscellaneous Agency Services           ,536.87,18/06/2015,Rev,WHITMORE VALE HOUSING ASS LTD 
41,Adult Social Care,LD u65 Residentl Care Placemnt,LD Residential Care External,W2KB55,Third Party Payments          ,Private Contractors           ,EH01,Miscellaneous Agency Services           ,536.87,18/06/2015,Rev,WHITMORE VALE HOUSING ASS LTD 
42,Adult Social Care,LD u65 Residentl Care Placemnt,LD Residential Care External,W2KB55,Third Party Payments          ,Private Contractors           ,EH01,Miscellaneous Agency Services           ,536.87,18/06/2015,Rev,WHITMORE VALE HOUSING ASS LTD 
43,Adult Social Care,OP 65 & Over Day Care,OP Intake - Daycare,W2LJ33,Third Party Payments          ,Private Contractors           ,EH01,Miscellaneous Agency Services           ,13400,24/06/2015,Rev,CARETRADE CHARITABLE TRUST    
44,Adult Social Care,Substance Abuse (Addictions),MH Day Care - SM&Drugs,W2PB33,Third Party Payments          ,Private Contractors           ,EH01,Miscellaneous Agency Services           ,580,30/06/2015,Rev,ARC ADDICTION RECOVERY CENTRE 
45,Adult Social Care,Substance Abuse (Addictions),MH Day Care - SM&Drugs,W2PB33,Third Party Payments          ,Private Contractors           ,EH01,Miscellaneous Agency Services           ,580,30/06/2015,Rev,ARC ADDICTION RECOVERY CENTRE 
46,Adult Social Care,Substance Abuse (Addictions),MH Day Care - SM&Drugs,W2PB33,Third Party Payments          ,Private Contractors           ,EH01,Miscellaneous Agency Services           ,580,30/06/2015,Rev,ARC ADDICTION RECOVERY CENTRE 
47,Adult Social Care,Substance Abuse (Addictions),MH Day Care - SM&Drugs,W2PB33,Third Party Payments          ,Private Contractors           ,EH01,Miscellaneous Agency Services           ,580,30/06/2015,Rev,ARC ADDICTION RECOVERY CENTRE 
48,Adult Social Care,Substance Abuse (Addictions),MH Day Care - SM&Drugs,W2PB33,Third Party Payments          ,Private Contractors           ,EH01,Miscellaneous Agency Services           ,580,30/06/2015,Rev,ARC ADDICTION RECOVERY CENTRE 
49,Adult Social Care,Substance Abuse (Addictions),MH Day Care - SM&Drugs,W2PB33,Third Party Payments          ,Private Contractors           ,EH01,Miscellaneous Agency Services           ,580,30/06/2015,Rev,ARC ADDICTION RECOVERY CENTRE 
50,Adult Social Care,Substance Abuse (Addictions),MH Day Care - SM&Drugs,W2PB33,Third Party Payments          ,Private Contractors           ,EH01,Miscellaneous Agency Services           ,580,30/06/2015,Rev,ARC ADDICTION RECOVERY CENTRE 
51,Adult Social Care,Substance Abuse (Addictions),MH Day Care - SM&Drugs,W2PB33,Third Party Payments          ,Private Contractors           ,EH01,Miscellaneous Agency Services           ,580,30/06/2015,Rev,ARC ADDICTION RECOVERY CENTRE 
52,Central Services,SupS Legal,Achieving for Children (AFC),E10295,Supplies & Services           ,Services                      ,DF95,Services from Provider                  ,672,30/06/2015,Rev,SHARPE PRITCHARD SOLICITORS   
53,Childrens & Education Services,Pupil Referral Units,Expanded Pupil Referral Unit,K05099,Third Party Payments          ,Private Contractors           ,EH01,Miscellaneous Agency Services           ,4898.74,30/06/2015,Rev,SW LONDON ST GEORGES NHS TRUST
54,Public Health,PH - Sexual Health,PH � STI Testing and Treatment          ,WPHS02,Supplies & Services           ,Public Health Subjectives,DQ04,GUM                                     ,1144,01/07/2015,Rev,LONDON NW HEALTHCARE NHS TRUST
55,Adult Social Care,OP 65&Over NursingCarePlacemts,OP East - Nursing Care,W2LH53,Third Party Payments          ,Private Contractors           ,EH01,Miscellaneous Agency Services           ,586.57,02/07/2015,Rev,PRIORY COURT CARE HOME        
56,Adult Social Care,OP 65&Over NursingCarePlacemts,OP East - Nursing Care,W2LH53,Third Party Payments          ,Private Contractors           ,EH01,Miscellaneous Agency Services           ,586.57,02/07/2015,Rev,PRIORY COURT CARE HOME        
57,Adult Social Care,OP 65&Over NursingCarePlacemts,OP East - Nursing Care,W2LH53,Third Party Payments          ,Private Contractors           ,EH01,Miscellaneous Agency Services           ,586.57,02/07/2015,Rev,PRIORY COURT CARE HOME        
58,Adult Social Care,OP 65&Over NursingCarePlacemts,OP East - Nursing Care,W2LH53,Third Party Payments          ,Private Contractors           ,EH01,Miscellaneous Agency Services           ,586.57,02/07/2015,Rev,PRIORY COURT CARE HOME        
59,CS -Oth Operating Inc & Expend,T/A Vehicle Maintenance etc,Vehicle Workshops,J01378,Transport Related Expenditure ,Direct Transport Costs        ,CA72,Vehicle Parts                           ,682.9,08/07/2015,Rev,WASTEPARTS UK LTD             
60,Childrens & Education Services,Chidren's Homes,ART Residential Placements,W1DE57,Third Party Payments          ,Private Contractors           ,EH01,Miscellaneous Agency Services           ,13408,08/07/2015,Rev,REDACTED
61,Adult Social Care,PS u65 Home Care,PD R/Park-Homecare                      ,W2JM49,Third Party Payments          ,Private Contractors           ,EH01,Miscellaneous Contrct Services          ,650,09/07/2015,Rev,LONDON CARE                   
62,Adult Social Care,PS u65 Home Care,PD R/Park-Homecare                      ,W2JM49,Third Party Payments          ,Private Contractors           ,EH01,Miscellaneous Contrct Services          ,650,09/07/2015,Rev,LONDON CARE                   
63,Childrens & Education Services,Fostering Services,ART Independent Agency Foster,W1DE46,Supplies & Services           ,Services                      ,DF53,Task Based Fostering                    ,525,12/07/2015,Rev,THE NATIONAL FOSTERING AGENCY 
64,Childrens & Education Services,Fostering Services,ART Independent Agency Foster,W1DE46,Supplies & Services           ,Services                      ,DF53,Task Based Fostering                    ,670,12/07/2015,Rev,THE NATIONAL FOSTERING AGENCY 
65,Childrens & Education Services,Fostering Services,ART Independent Agency Foster,W1DE46,Supplies & Services           ,Services                      ,DF53,Task Based Fostering                    ,670,12/07/2015,Rev,THE NATIONAL FOSTERING AGENCY 
66,Childrens & Education Services,Fostering Services,ART Independent Agency Foster,W1DE46,Supplies & Services           ,Services                      ,DF53,Task Based Fostering                    ,670,12/07/2015,Rev,THE NATIONAL FOSTERING AGENCY 
67,Childrens & Education Services,Fostering Services,ART Independent Agency Foster,W1DE46,Supplies & Services           ,Services                      ,DF53,Task Based Fostering                    ,735,12/07/2015,Rev,THE NATIONAL FOSTERING AGENCY 
68,Childrens & Education Services,CS - Commiss'ing & Social Work,CL IndepAssess Expert Witness,W1DJ63,Supplies & Services           ,Services                      ,DF14,Doctors and Other Fees                  ,1184.3,14/07/2015,Rev,SECECETRA EXPERT SERVICES     
69,Central Services,SupS Facilities,FM External Fees,E02239,Premises Related Expenditure  ,RepairsAlterations&MtceOfBldgs,BA29,Build Maint Mgt Fees                    ,1000,20/07/2015,Rev,PRIORITY RISK LTD             
70,Public Health,PH - Sexual Health,PH � STI Testing and Treatment          ,WPHS02,Supplies & Services           ,Public Health Subjectives,DQ04,GUM                                     ,18674.58,21/07/2015,Rev,CROYDON HEALTH SERV. NHS TRUST
71,Cultural Env Reg&Plan Services,Recycling (Collection),Recycling Activities,G00640,Third Party Payments          ,Private Contractors           ,EH03,C3 DRY RECYCLING GATE FEE               ,-1116.9,30/07/2015,Rev,KINGSTON CORPORATION          
72,Adult Social Care,Substance Abuse (Addictions),MH Day Care - SM&Drugs,W2PB33,Third Party Payments          ,Private Contractors           ,EH01,Miscellaneous Agency Services           ,580,31/07/2015,Rev,ARC ADDICTION RECOVERY CENTRE 
73,Adult Social Care,Substance Abuse (Addictions),MH Day Care - SM&Drugs,W2PB33,Third Party Payments          ,Private Contractors           ,EH01,Miscellaneous Agency Services           ,580,31/07/2015,Rev,ARC ADDICTION RECOVERY CENTRE 
74,Adult Social Care,Substance Abuse (Addictions),MH Day Care - SM&Drugs,W2PB33,Third Party Payments          ,Private Contractors           ,EH01,Miscellaneous Agency Services           ,580,31/07/2015,Rev,ARC ADDICTION RECOVERY CENTRE 
75,Adult Social Care,Substance Abuse (Addictions),MH Day Care - SM&Drugs,W2PB33,Third Party Payments          ,Private Contractors           ,EH01,Miscellaneous Agency Services           ,580,31/07/2015,Rev,ARC ADDICTION RECOVERY CENTRE 
76,Childrens & Education Services,Standards Fund - Non Delegated,SWIS Section 17                         ,W1FA38,Transfer Payments             ,Schoolchildren/Students       ,FF02,Childr Act 1989 S17                     ,840,31/07/2015,Rev,EURO HOTELS(GILROY COURT)LTD  
77,Adult Social Care,OP 65&Over NursingCarePlacemts,OP East - Nursing Care,W2LH53,Third Party Payments          ,Private Contractors           ,EH01,Miscellaneous Agency Services           ,687.17,01/08/2015,Rev,BROADLANDS NURSING HOME       
78,Adult Social Care,OP 65&Over NursingCarePlacemts,OP East - Nursing Care,W2LH53,Third Party Payments          ,Private Contractors           ,EH01,Miscellaneous Agency Services           ,687.17,01/08/2015,Rev,BROADLANDS NURSING HOME       
79,Adult Social Care,OP 65&Over NursingCarePlacemts,OP East - Nursing Care,W2LH53,Third Party Payments          ,Private Contractors           ,EH01,Miscellaneous Agency Services           ,687.17,01/08/2015,Rev,BROADLANDS NURSING HOME       
80,Adult Social Care,OP 65&Over NursingCarePlacemts,OP East - Nursing Care,W2LH53,Third Party Payments          ,Private Contractors           ,EH01,Miscellaneous Agency Services           ,687.17,01/08/2015,Rev,BROADLANDS NURSING HOME       
81,Childrens & Education Services,CS - Commiss'ing & Social Work,SG & CP T2 Section 17                   ,W1FC38,Transfer Payments             ,Schoolchildren/Students       ,FF02,Childr Act 1989 S17                     ,2325,01/08/2015,Rev,M K ACCOMMODATION             
82,Childrens & Education Services,CS - Commiss'ing & Social Work,INTEGRATED SERVICE SUPPORT CWD,W1CF04,Supplies & Services           ,Services                      ,DF62,Translation Service                     ,4943,03/08/2015,Rev,NEW BEGINNINGS                
83,Childrens & Education Services,CS - Commiss'ing & Social Work,CH Central Services,W1AA00,Employees                     ,Indirect Employee Expenses    ,AB02,Recruitment Adverts                     ,5756.4,05/08/2015,Rev,CARITAS RECRUITMENT           
84,Central Services,SupS Legal,Richmond Legal,E10289,Supplies & Services           ,Services                      ,DF11,Counsel's Fees                          ,1575,06/08/2015,Rev,REDACTED
85,Adult Social Care,LD u65 Residentl Care Placemnt,LD Comm -Residential-Orch Hill,W2KR55,Third Party Payments          ,Private Contractors           ,EH01,Miscellaneous Agency Services           ,-1089.86,11/08/2015,Rev,UNITED RESPONSE               
86,Adult Social Care,LD u65 Residentl Care Placemnt,LD Comm -Residential-Orch Hill,W2KR55,Third Party Payments          ,Private Contractors           ,EH01,Miscellaneous Agency Services           ,-1089.86,11/08/2015,Rev,UNITED RESPONSE               
87,Adult Social Care,LD u65 Residentl Care Placemnt,LD Comm -Residential-Orch Hill,W2KR55,Third Party Payments          ,Private Contractors           ,EH01,Miscellaneous Agency Services           ,-1089.86,11/08/2015,Rev,UNITED RESPONSE               
88,Adult Social Care,LD u65 Residentl Care Placemnt,LD Comm -Residential-Orch Hill,W2KR55,Third Party Payments          ,Private Contractors           ,EH01,Miscellaneous Agency Services           ,-1089.86,11/08/2015,Rev,UNITED RESPONSE               
89,Adult Social Care,LD u65 Residentl Care Placemnt,LD Residential Care External,W2KB55,Third Party Payments          ,Private Contractors           ,EH01,Miscellaneous Agency Services           ,1089.86,11/08/2015,Rev,UNITED RESPONSE               
90,Adult Social Care,LD u65 Residentl Care Placemnt,LD Residential Care External,W2KB55,Third Party Payments          ,Private Contractors           ,EH01,Miscellaneous Agency Services           ,1089.86,11/08/2015,Rev,UNITED RESPONSE               
91,Adult Social Care,LD u65 Residentl Care Placemnt,LD Residential Care External,W2KB55,Third Party Payments          ,Private Contractors           ,EH01,Miscellaneous Agency Services           ,1089.86,11/08/2015,Rev,UNITED RESPONSE               
92,Adult Social Care,LD u65 Residentl Care Placemnt,LD Residential Care External,W2KB55,Third Party Payments          ,Private Contractors           ,EH01,Miscellaneous Agency Services           ,1089.86,11/08/2015,Rev,UNITED RESPONSE               
93,Adult Social Care,LD u65 Residentl Care Placemnt,LD Residential Care External,W2KB55,Third Party Payments          ,Private Contractors           ,EH01,Miscellaneous Agency Services           ,1089.86,11/08/2015,Rev,UNITED RESPONSE               
94,Adult Social Care,LD u65 Residentl Care Placemnt,LD Residential Care External,W2KB55,Third Party Payments          ,Private Contractors           ,EH01,Miscellaneous Agency Services           ,1089.86,11/08/2015,Rev,UNITED RESPONSE               
95,Adult Social Care,LD u65 Residentl Care Placemnt,LD Residential Care External,W2KB55,Third Party Payments          ,Private Contractors           ,EH01,Miscellaneous Agency Services           ,1089.86,11/08/2015,Rev,UNITED RESPONSE               
96,Adult Social Care,LD u65 Residentl Care Placemnt,LD Residential Care External,W2KB55,Third Party Payments          ,Private Contractors           ,EH01,Miscellaneous Agency Services           ,1089.86,11/08/2015,Rev,UNITED RESPONSE               
97,Adult Social Care,LD u65 Residentl Care Placemnt,LD Residential Care External,W2KB55,Third Party Payments          ,Private Contractors           ,EH01,Miscellaneous Agency Services           ,1089.86,11/08/2015,Rev,UNITED RESPONSE               
98,Adult Social Care,LD u65 Residentl Care Placemnt,LD Residential Care External,W2KB55,Third Party Payments          ,Private Contractors           ,EH01,Miscellaneous Agency Services           ,1089.86,11/08/2015,Rev,UNITED RESPONSE               
99,Adult Social Care,LD u65 Residentl Care Placemnt,LD Residential Care External,W2KB55,Third Party Payments          ,Private Contractors           ,EH01,Miscellaneous Agency Services           ,1089.86,11/08/2015,Rev,UNITED RESPONSE               
100,Adult Social Care,LD u65 Residentl Care Placemnt,LD Residential Care External,W2KB55,Third Party Payments          ,Private Contractors           ,EH01,Miscellaneous Agency Services           ,1089.86,11/08/2015,Rev,UNITED RESPONSE               
101,Adult Social Care,LD u65 Residentl Care Placemnt,LD Residential Care External,W2KB55,Third Party Payments          ,Private Contractors           ,EH01,Miscellaneous Agency Services           ,1089.86,11/08/2015,Rev,UNITED RESPONSE               
102,Adult Social Care,LD u65 Residentl Care Placemnt,LD Residential Care External,W2KB55,Third Party Payments          ,Private Contractors           ,EH01,Miscellaneous Agency Services           ,1089.86,11/08/2015,Rev,UNITED RESPONSE               
103,Adult Social Care,LD u65 Residentl Care Placemnt,LD Residential Care External,W2KB55,Third Party Payments          ,Private Contractors           ,EH01,Miscellaneous Agency Services           ,1089.86,11/08/2015,Rev,UNITED RESPONSE               
104,Adult Social Care,LD u65 Residentl Care Placemnt,LD Residential Care External,W2KB55,Third Party Payments          ,Private Contractors           ,EH01,Miscellaneous Agency Services           ,1089.86,11/08/2015,Rev,UNITED RESPONSE               
105,Adult Social Care,LD u65 Residentl Care Placemnt,LD Residential Care External,W2KB55,Third Party Payments          ,Private Contractors           ,EH01,Miscellaneous Agency Services           ,1089.86,11/08/2015,Rev,UNITED RESPONSE               
106,Adult Social Care,LD u65 Residentl Care Placemnt,LD Residential Care External,W2KB55,Third Party Payments          ,Private Contractors           ,EH01,Miscellaneous Agency Services           ,1089.86,11/08/2015,Rev,UNITED RESPONSE               
107,Adult Social Care,LD u65 Residentl Care Placemnt,LD Residential Care External,W2KB55,Third Party Payments          ,Private Contractors           ,EH01,Miscellaneous Agency Services           ,1089.86,11/08/2015,Rev,UNITED RESPONSE               
108,Adult Social Care,LD u65 Residentl Care Placemnt,LD Residential Care External,W2KB55,Third Party Payments          ,Private Contractors           ,EH01,Miscellaneous Agency Services           ,1089.86,11/08/2015,Rev,UNITED RESPONSE               
109,Adult Social Care,LD u65 Residentl Care Placemnt,LD Residential Care External,W2KB55,Third Party Payments          ,Private Contractors           ,EH01,Miscellaneous Agency Services           ,1089.86,11/08/2015,Rev,UNITED RESPONSE               
110,Adult Social Care,LD u65 Residentl Care Placemnt,LD Residential Care External,W2KB55,Third Party Payments          ,Private Contractors           ,EH01,Miscellaneous Agency Services           ,1089.86,11/08/2015,Rev,UNITED RESPONSE               
111,Adult Social Care,LD u65 Residentl Care Placemnt,LD Residential Care External,W2KB55,Third Party Payments          ,Private Contractors           ,EH01,Miscellaneous Agency Services           ,1089.86,11/08/2015,Rev,UNITED RESPONSE               
112,Adult Social Care,LD u65 Residentl Care Placemnt,LD Residential Care External,W2KB55,Third Party Payments          ,Private Contractors           ,EH01,Miscellaneous Agency Services           ,1089.86,11/08/2015,Rev,UNITED RESPONSE               
113,Adult Social Care,LD u65 Residentl Care Placemnt,LD Residential Care External,W2KB55,Third Party Payments          ,Private Contractors           ,EH01,Miscellaneous Agency Services           ,1089.86,11/08/2015,Rev,UNITED RESPONSE               
114,Adult Social Care,LD u65 Residentl Care Placemnt,LD Residential Care External,W2KB55,Third Party Payments          ,Private Contractors           ,EH01,Miscellaneous Agency Services           ,1089.86,11/08/2015,Rev,UNITED RESPONSE               
115,Adult Social Care,LD u65 Residentl Care Placemnt,LD Residential Care External,W2KB55,Third Party Payments          ,Private Contractors           ,EH01,Miscellaneous Agency Services           ,1089.86,11/08/2015,Rev,UNITED RESPONSE               
116,Adult Social Care,LD u65 Residentl Care Placemnt,LD Residential Care External,W2KB55,Third Party Payments          ,Private Contractors           ,EH01,Miscellaneous Agency Services           ,1089.86,11/08/2015,Rev,UNITED RESPONSE               
117,Adult Social Care,LD u65 Residentl Care Placemnt,LD Residential Care External,W2KB55,Third Party Payments          ,Private Contractors           ,EH01,Miscellaneous Agency Services           ,1089.86,11/08/2015,Rev,UNITED RESPONSE               
118,Adult Social Care,LD u65 Residentl Care Placemnt,LD Residential Care External,W2KB55,Third Party Payments          ,Private Contractors           ,EH01,Miscellaneous Agency Services           ,1089.86,11/08/2015,Rev,UNITED RESPONSE               
119,Adult Social Care,LD u65 Residentl Care Placemnt,LD Residential Care External,W2KB55,Third Party Payments          ,Private Contractors           ,EH01,Miscellaneous Agency Services           ,1089.86,11/08/2015,Rev,UNITED RESPONSE               
120,Adult Social Care,LD u65 Residentl Care Placemnt,LD Residential Care External,W2KB55,Third Party Payments          ,Private Contractors           ,EH01,Miscellaneous Agency Services           ,1089.86,11/08/2015,Rev,UNITED RESPONSE               
121,Adult Social Care,LD u65 Residentl Care Placemnt,LD Residential Care External,W2KB55,Third Party Payments          ,Private Contractors           ,EH01,Miscellaneous Agency Services           ,1089.86,11/08/2015,Rev,UNITED RESPONSE               
122,Adult Social Care,LD u65 Residentl Care Placemnt,LD Residential Care External,W2KB55,Third Party Payments          ,Private Contractors           ,EH01,Miscellaneous Agency Services           ,1089.86,11/08/2015,Rev,UNITED RESPONSE               
123,Adult Social Care,LD u65 Residentl Care Placemnt,LD Residential Care External,W2KB55,Third Party Payments          ,Private Contractors           ,EH01,Miscellaneous Agency Services           ,1089.86,11/08/2015,Rev,UNITED RESPONSE               
124,Adult Social Care,LD u65 Residentl Care Placemnt,LD Residential Care External,W2KB55,Third Party Payments          ,Private Contractors           ,EH01,Miscellaneous Agency Services           ,1089.86,11/08/2015,Rev,UNITED RESPONSE               
125,Adult Social Care,LD u65 Residentl Care Placemnt,LD Residential Care External,W2KB55,Third Party Payments          ,Private Contractors           ,EH01,Miscellaneous Agency Services           ,1089.86,11/08/2015,Rev,UNITED RESPONSE               
126,Adult Social Care,LD u65 Residentl Care Placemnt,LD Residential Care External,W2KB55,Third Party Payments          ,Private Contractors           ,EH01,Miscellaneous Agency Services           ,1089.86,11/08/2015,Rev,UNITED RESPONSE               
127,Adult Social Care,LD u65 Residentl Care Placemnt,LD Comm -Residential-Orch Hill,W2KR55,Third Party Payments          ,Private Contractors           ,EH01,Miscellaneous Agency Services           ,1089.86,11/08/2015,Rev,UNITED RESPONSE               
128,Adult Social Care,LD u65 Residentl Care Placemnt,LD Comm -Residential-Orch Hill,W2KR55,Third Party Payments          ,Private Contractors           ,EH01,Miscellaneous Agency Services           ,1089.86,11/08/2015,Rev,UNITED RESPONSE               
129,Adult Social Care,LD u65 Residentl Care Placemnt,LD Comm -Residential-Orch Hill,W2KR55,Third Party Payments          ,Private Contractors           ,EH01,Miscellaneous Agency Services           ,1089.86,11/08/2015,Rev,UNITED RESPONSE               
130,Adult Social Care,LD u65 Residentl Care Placemnt,LD Comm -Residential-Orch Hill,W2KR55,Third Party Payments          ,Private Contractors           ,EH01,Miscellaneous Agency Services           ,1089.86,11/08/2015,Rev,UNITED RESPONSE               
131,Adult Social Care,OP 65&Over Resi Care Placement,OP R/Park-Residential Care Ext,W2LR55,Third Party Payments          ,Private Contractors           ,EH01,Miscellaneous Agency Services           ,507,12/08/2015,Rev,CARTER HOUSE                  
132,Adult Social Care,PS u65 Residentl Care Placemnt,PS ResidentialCare Ext- NRTPF,W7AD55,Third Party Payments          ,Private Contractors           ,EH01,Miscellaneous Agency Services           ,504,17/08/2015,Rev,BUPA CARE HOMES (ANS) LTD     
133,Adult Social Care,PS u65 Residentl Care Placemnt,PS ResidentialCare Ext- NRTPF,W7AD55,Third Party Payments          ,Private Contractors           ,EH01,Miscellaneous Agency Services           ,504,17/08/2015,Rev,BUPA CARE HOMES (ANS) LTD     
134,Adult Social Care,PS u65 Residentl Care Placemnt,PS ResidentialCare Ext- NRTPF,W7AD55,Third Party Payments          ,Private Contractors           ,EH01,Miscellaneous Agency Services           ,504,17/08/2015,Rev,BUPA CARE HOMES (ANS) LTD     
135,Adult Social Care,PS u65 Residentl Care Placemnt,PS ResidentialCare Ext- NRTPF,W7AD55,Third Party Payments          ,Private Contractors           ,EH01,Miscellaneous Agency Services           ,504,17/08/2015,Rev,BUPA CARE HOMES (ANS) LTD     
136,Cultural Env Reg&Plan Services,Library DoS not split,Libraries Service-Civic Centre,L50001,Supplies & Services           ,Equip Furniture/Materials     ,DA09,Equip-Purchases                         ,665,17/08/2015,Rev,PJ HARVEY & CO LTD            
137,Adult Social Care,PS u65 Nursing Care Placements,PS Nursing Care - NRTPF,W7AD53,Third Party Payments          ,Private Contractors           ,EH01,Miscellaneous Agency Services           ,900,17/08/2015,Rev,BUPA CARE HOMES (ANS) LTD     
138,Adult Social Care,PS u65 Nursing Care Placements,PS Nursing Care - NRTPF,W7AD53,Third Party Payments          ,Private Contractors           ,EH01,Miscellaneous Agency Services           ,900,17/08/2015,Rev,BUPA CARE HOMES (ANS) LTD     
139,Adult Social Care,PS u65 Nursing Care Placements,PS Nursing Care - NRTPF,W7AD53,Third Party Payments          ,Private Contractors           ,EH01,Miscellaneous Agency Services           ,900,17/08/2015,Rev,BUPA CARE HOMES (ANS) LTD     
140,Adult Social Care,PS u65 Nursing Care Placements,PS Nursing Care - NRTPF,W7AD53,Third Party Payments          ,Private Contractors           ,EH01,Miscellaneous Agency Services           ,900,17/08/2015,Rev,BUPA CARE HOMES (ANS) LTD     
141,Cultural Env Reg&Plan Services,Mgt & Sup (Cult),Tree Safety (Schools),P18320,Premises Related Expenditure  ,Ground Maintenance Costs      ,BL50,NATURE CONSERVATION                     ,1157,17/08/2015,Rev,MICROBEE LTD                  
142,Cultural Env Reg&Plan Services,Parks & Open Spaces,Mitcham Parks,P05109,Supplies & Services           ,Equip Furniture/Materials     ,DA04,Materials                               ,1492.5,18/08/2015,Rev,RIGBY TAYLOR LTD              
143,Childrens & Education Services,CS - Commiss'ing & Social Work,INTEGRATED SERVICE SUPPORT CWD,W1CF04,Supplies & Services           ,Services                      ,DF62,Translation Service                     ,4016.7,20/08/2015,Rev,UBIQUS UK LTD                 
144,Central Services,SupS Legal,Richmond Legal,E10289,Supplies & Services           ,Services                      ,DF95,Services from Provider                  ,6600.25,20/08/2015,Rev,REDACTED
145,Childrens & Education Services,Sch Meals & Milk-Not Delegated,Free School Meals,K90002,Supplies & Services           ,Grants and Subscriptions      ,DJ80,Free School Meals                       ,-52596.04,21/08/2015,Rev,ISS COLLECTIONS LTD           
146,Childrens & Education Services,Sch Meals & Milk-Not Delegated,Free School Meals,K90002,Supplies & Services           ,Grants and Subscriptions      ,DJ80,Free School Meals                       ,9206.58,21/08/2015,Rev,ISS COLLECTIONS LTD           
147,Childrens & Education Services,Sch Meals & Milk-Not Delegated,Free School Meals,K90002,Supplies & Services           ,Grants and Subscriptions      ,DJ80,Free School Meals                       ,17596.26,21/08/2015,Rev,ISS COLLECTIONS LTD           
148,Childrens & Education Services,Sch Meals & Milk-Not Delegated,Free School Meals,K90002,Supplies & Services           ,Grants and Subscriptions      ,DJ80,Free School Meals                       ,24649.78,21/08/2015,Rev,ISS COLLECTIONS LTD           
149,Childrens & Education Services,Sch Meals & Milk-Not Delegated,Free School Meals,K90002,Supplies & Services           ,Grants and Subscriptions      ,DJ80,Free School Meals                       ,136716.72,21/08/2015,Rev,ISS COLLECTIONS LTD           
150,Childrens & Education Services,Sch Meals & Milk-Not Delegated,Free School Meals,K90002,Supplies & Services           ,Grants and Subscriptions      ,DJ80,Free School Meals                       ,182038.96,21/08/2015,Rev,ISS COLLECTIONS LTD           
151,Childrens & Education Services,Sch Meals & Milk-Not Delegated,Free School Meals,K90002,Supplies & Services           ,Grants and Subscriptions      ,DJ80,Free School Meals                       ,186886.56,21/08/2015,Rev,ISS COLLECTIONS LTD           
152,Adult Social Care,LD u65 Home Care,LD Home Care External,W2KB49,Third Party Payments          ,Private Contractors           ,EH01,Miscellaneous Agency Services           ,650,24/08/2015,Rev,HOLISTIC COMMUNITY CARE LTD   
153,Adult Social Care,LD u65 Home Care,LD Home Care External,W2KB49,Third Party Payments          ,Private Contractors           ,EH01,Miscellaneous Agency Services           ,650,24/08/2015,Rev,HOLISTIC COMMUNITY CARE LTD   
154,Adult Social Care,LD u65 Home Care,LD Home Care External,W2KB49,Third Party Payments          ,Private Contractors           ,EH01,Miscellaneous Agency Services           ,650,24/08/2015,Rev,HOLISTIC COMMUNITY CARE LTD   
155,Adult Social Care,LD u65 Home Care,LD Home Care External,W2KB49,Third Party Payments          ,Private Contractors           ,EH01,Miscellaneous Agency Services           ,650,24/08/2015,Rev,HOLISTIC COMMUNITY CARE LTD   
156,Childrens & Education Services,Standards Fund - Non Delegated,SWIS Discretionary Payments             ,W1FA41,Third Party Payments          ,Private Contractors           ,EH01,Miscellaneous Contrct Services          ,938.71,24/08/2015,Rev,CAREOLINE SUPPORT SERVICES    
157,Childrens & Education Services,CS - Commiss'ing & Social Work,SG & CP T1 DISCRETIONARY PYMT,W1FB41,Third Party Payments          ,Private Contractors           ,EH01,Miscellaneous Contrct Services          ,963,24/08/2015,Rev,LEXTOX                        
158,Childrens & Education Services,Standards Fund - Non Delegated,SWIS Discretionary Payments             ,W1FA41,Third Party Payments          ,Private Contractors           ,EH01,Miscellaneous Contrct Services          ,1276.99,24/08/2015,Rev,CAREOLINE SUPPORT SERVICES    
159,Childrens & Education Services,Standards Fund - Non Delegated,SWIS Discretionary Payments             ,W1FA41,Third Party Payments          ,Private Contractors           ,EH01,Miscellaneous Contrct Services          ,1502.5,24/08/2015,Rev,CAREOLINE SUPPORT SERVICES    
160,Childrens & Education Services,Standards Fund - Non Delegated,SWIS Discretionary Payments             ,W1FA41,Third Party Payments          ,Private Contractors           ,EH01,Miscellaneous Contrct Services          ,2670.41,24/08/2015,Rev,CAREOLINE SUPPORT SERVICES    
161,Childrens & Education Services,Standards Fund - Non Delegated,SWIS Discretionary Payments             ,W1FA41,Third Party Payments          ,Private Contractors           ,EH01,Miscellaneous Contrct Services          ,3112.83,24/08/2015,Rev,CAREOLINE SUPPORT SERVICES    
162,Adult Social Care,OP 65&Over NursingCarePlacemts,OP R/Park - Nursing Care,W2LR53,Third Party Payments          ,Private Contractors           ,EH01,Miscellaneous Agency Services           ,585,25/08/2015,Rev,LANCAM CARE SERVICES          
163,Adult Social Care,OP 65&Over NursingCarePlacemts,OP R/Park - Nursing Care,W2LR53,Third Party Payments          ,Private Contractors           ,EH01,Miscellaneous Agency Services           ,585,25/08/2015,Rev,LANCAM CARE SERVICES          
164,Adult Social Care,OP 65&Over NursingCarePlacemts,OP R/Park - Nursing Care,W2LR53,Third Party Payments          ,Private Contractors           ,EH01,Miscellaneous Agency Services           ,585,25/08/2015,Rev,LANCAM CARE SERVICES          
165,Childrens & Education Services,Chidren's Homes,ART Residential Placements,W1DE57,Third Party Payments          ,Private Contractors           ,EH01,Miscellaneous Agency Services           ,-1257.14,26/08/2015,Rev,REDACTED
166,Adult Social Care,SS Management & Administration,Planning and Commissioning,W3VA11,Employees                     ,Indirect Employee Expenses    ,AB13,Health Staff in PCT Pool                ,2054.85,26/08/2015,Rev,SW LONDON ST GEORGES NHS TRUST
167,Childrens & Education Services,Chidren's Homes,ART Residential Placements,W1DE57,Third Party Payments          ,Private Contractors           ,EH01,Miscellaneous Agency Services           ,2200,26/08/2015,Rev,REDACTED
168,Childrens & Education Services,Chidren's Homes,ART Residential Placements,W1DE57,Third Party Payments          ,Private Contractors           ,EH01,Miscellaneous Agency Services           ,2200,26/08/2015,Rev,REDACTED
169,Childrens & Education Services,Chidren's Homes,ART Residential Placements,W1DE57,Third Party Payments          ,Private Contractors           ,EH01,Miscellaneous Agency Services           ,2200,26/08/2015,Rev,REDACTED
170,Childrens & Education Services,Chidren's Homes,ART Residential Placements,W1DE57,Third Party Payments          ,Private Contractors           ,EH01,Miscellaneous Agency Services           ,2200,26/08/2015,Rev,REDACTED
171,Childrens & Education Services,Chidren's Homes,ART Residential Placements,W1DE57,Third Party Payments          ,Private Contractors           ,EH01,Miscellaneous Agency Services           ,2200,26/08/2015,Rev,REDACTED
172,Cultural Env Reg&Plan Services,Parks & Open Spaces,Mitcham Parks,P05109,Supplies & Services           ,Equip Furniture/Materials     ,DA04,Materials                               ,2544.75,26/08/2015,Rev,RIGBY TAYLOR LTD              
173,,,Schs Cap Maint & Accessibility          ,CS080SD,New Construction Conversion and Renovation,,B2,Site Surveys D&S Structure              ,2340,27/08/2015,Cap,LUCION ENVIRONMENTAL LTD      
174,Cultural Env Reg&Plan Services,Mgt & Support (Env),Senior Mgt. - E.S.C.,G00100,Supplies & Services           ,Services                      ,DF03,Consultants                             ,1500,28/08/2015,Rev,SHARED INTELLIGENCE LTD       
175,Adult Social Care,Substance Abuse (Addictions),MH Day Care - SM&Drugs,W2PB33,Third Party Payments          ,Private Contractors           ,EH01,Miscellaneous Agency Services           ,580,31/08/2015,Rev,ARC ADDICTION RECOVERY CENTRE 
176,Adult Social Care,Substance Abuse (Addictions),MH Day Care - SM&Drugs,W2PB33,Third Party Payments          ,Private Contractors           ,EH01,Miscellaneous Agency Services           ,580,31/08/2015,Rev,ARC ADDICTION RECOVERY CENTRE 
177,Adult Social Care,Substance Abuse (Addictions),MH Day Care - SM&Drugs,W2PB33,Third Party Payments          ,Private Contractors           ,EH01,Miscellaneous Agency Services           ,580,31/08/2015,Rev,ARC ADDICTION RECOVERY CENTRE 
178,Adult Social Care,Substance Abuse (Addictions),MH Day Care - SM&Drugs,W2PB33,Third Party Payments          ,Private Contractors           ,EH01,Miscellaneous Agency Services           ,580,31/08/2015,Rev,ARC ADDICTION RECOVERY CENTRE 
179,Adult Social Care,Substance Abuse (Addictions),MH Day Care - SM&Drugs,W2PB33,Third Party Payments          ,Private Contractors           ,EH01,Miscellaneous Agency Services           ,580,31/08/2015,Rev,ARC ADDICTION RECOVERY CENTRE 
180,Adult Social Care,Substance Abuse (Addictions),MH Day Care - SM&Drugs,W2PB33,Third Party Payments          ,Private Contractors           ,EH01,Miscellaneous Agency Services           ,580,31/08/2015,Rev,ARC ADDICTION RECOVERY CENTRE 
181,Adult Social Care,Substance Abuse (Addictions),MH Day Care - SM&Drugs,W2PB33,Third Party Payments          ,Private Contractors           ,EH01,Miscellaneous Agency Services           ,580,31/08/2015,Rev,ARC ADDICTION RECOVERY CENTRE 
182,Adult Social Care,Substance Abuse (Addictions),MH Day Care - SM&Drugs,W2PB33,Third Party Payments          ,Private Contractors           ,EH01,Miscellaneous Agency Services           ,580,31/08/2015,Rev,ARC ADDICTION RECOVERY CENTRE 
183,Adult Social Care,Substance Abuse (Addictions),MH Day Care - SM&Drugs,W2PB33,Third Party Payments          ,Private Contractors           ,EH01,Miscellaneous Agency Services           ,580,31/08/2015,Rev,ARC ADDICTION RECOVERY CENTRE 
184,Adult Social Care,Substance Abuse (Addictions),MH Day Care - SM&Drugs,W2PB33,Third Party Payments          ,Private Contractors           ,EH01,Miscellaneous Agency Services           ,580,31/08/2015,Rev,ARC ADDICTION RECOVERY CENTRE 
185,Adult Social Care,Substance Abuse (Addictions),MH Day Care - SM&Drugs,W2PB33,Third Party Payments          ,Private Contractors           ,EH01,Miscellaneous Agency Services           ,580,31/08/2015,Rev,ARC ADDICTION RECOVERY CENTRE 
186,Adult Social Care,LD u65 Residentl Care Placemnt,LD Residential Care External,W2KB55,Third Party Payments          ,Private Contractors           ,EH01,Miscellaneous Agency Services           ,1089.86,31/08/2015,Rev,UNITED RESPONSE               
187,Adult Social Care,LD u65 Residentl Care Placemnt,LD Residential Care External,W2KB55,Third Party Payments          ,Private Contractors           ,EH01,Miscellaneous Agency Services           ,1089.86,31/08/2015,Rev,UNITED RESPONSE               
188,Adult Social Care,LD u65 Residentl Care Placemnt,LD Residential Care External,W2KB55,Third Party Payments          ,Private Contractors           ,EH01,Miscellaneous Agency Services           ,1089.86,31/08/2015,Rev,UNITED RESPONSE               
189,Adult Social Care,LD u65 Residentl Care Placemnt,LD Residential Care External,W2KB55,Third Party Payments          ,Private Contractors           ,EH01,Miscellaneous Agency Services           ,1089.86,31/08/2015,Rev,UNITED RESPONSE               
190,Adult Social Care,LD u65 Residentl Care Placemnt,LD Residential Care External,W2KB55,Third Party Payments          ,Private Contractors           ,EH01,Miscellaneous Agency Services           ,1089.86,31/08/2015,Rev,UNITED RESPONSE               
191,Adult Social Care,LD u65 Residentl Care Placemnt,LD Residential Care External,W2KB55,Third Party Payments          ,Private Contractors           ,EH01,Miscellaneous Agency Services           ,1089.86,31/08/2015,Rev,UNITED RESPONSE               
192,Adult Social Care,LD u65 Residentl Care Placemnt,LD Residential Care External,W2KB55,Third Party Payments          ,Private Contractors           ,EH01,Miscellaneous Agency Services           ,1089.86,31/08/2015,Rev,UNITED RESPONSE               
193,Adult Social Care,LD u65 Residentl Care Placemnt,LD Residential Care External,W2KB55,Third Party Payments          ,Private Contractors           ,EH01,Miscellaneous Agency Services           ,1089.86,31/08/2015,Rev,UNITED RESPONSE               
194,Adult Social Care,LD u65 Residentl Care Placemnt,LD Residential Care External,W2KB55,Third Party Payments          ,Private Contractors           ,EH01,Miscellaneous Agency Services           ,1089.86,31/08/2015,Rev,UNITED RESPONSE               
195,Adult Social Care,LD u65 Residentl Care Placemnt,LD Residential Care External,W2KB55,Third Party Payments          ,Private Contractors           ,EH01,Miscellaneous Agency Services           ,1089.86,31/08/2015,Rev,UNITED RESPONSE               
196,Adult Social Care,LD u65 Residentl Care Placemnt,LD Residential Care External,W2KB55,Third Party Payments          ,Private Contractors           ,EH01,Miscellaneous Agency Services           ,1089.86,31/08/2015,Rev,UNITED RESPONSE               
197,Adult Social Care,LD u65 Residentl Care Placemnt,LD Residential Care External,W2KB55,Third Party Payments          ,Private Contractors           ,EH01,Miscellaneous Agency Services           ,1089.86,31/08/2015,Rev,UNITED RESPONSE               
198,Adult Social Care,LD u65 Residentl Care Placemnt,LD Residential Care External,W2KB55,Third Party Payments          ,Private Contractors           ,EH01,Miscellaneous Agency Services           ,1089.86,31/08/2015,Rev,UNITED RESPONSE               
199,Adult Social Care,LD u65 Residentl Care Placemnt,LD Residential Care External,W2KB55,Third Party Payments          ,Private Contractors           ,EH01,Miscellaneous Agency Services           ,1089.86,31/08/2015,Rev,UNITED RESPONSE               
200,Adult Social Care,LD u65 Residentl Care Placemnt,LD Residential Care External,W2KB55,Third Party Payments          ,Private Contractors           ,EH01,Miscellaneous Agency Services           ,1089.86,31/08/2015,Rev,UNITED RESPONSE               
201,Adult Social Care,LD u65 Residentl Care Placemnt,LD Residential Care External,W2KB55,Third Party Payments          ,Private Contractors           ,EH01,Miscellaneous Agency Services           ,1089.86,31/08/2015,Rev,UNITED RESPONSE               
202,Adult Social Care,LD u65 Residentl Care Placemnt,LD Residential Care External,W2KB55,Third Party Payments          ,Private Contractors           ,EH01,Miscellaneous Agency Services           ,1089.86,31/08/2015,Rev,UNITED RESPONSE               
203,Adult Social Care,LD u65 Residentl Care Placemnt,LD Residential Care External,W2KB55,Third Party Payments          ,Private Contractors           ,EH01,Miscellaneous Agency Services           ,1089.86,31/08/2015,Rev,UNITED RESPONSE               
204,Adult Social Care,LD u65 Residentl Care Placemnt,LD Residential Care External,W2KB55,Third Party Payments          ,Private Contractors           ,EH01,Miscellaneous Agency Services           ,1089.86,31/08/2015,Rev,UNITED RESPONSE               
205,Adult Social Care,LD u65 Residentl Care Placemnt,LD Residential Care External,W2KB55,Third Party Payments          ,Private Contractors           ,EH01,Miscellaneous Agency Services           ,1089.86,31/08/2015,Rev,UNITED RESPONSE               
206,Childrens & Education Services,Family - Other Services,CS R&AssessDiscretionary Pymts,W1CE41,Third Party Payments          ,Private Contractors           ,EH01,Miscellaneous Agency Services           ,1328.35,31/08/2015,Rev,ROOMS & STUDIOS MANAGEMENT    
207,Childrens & Education Services,Family - Other Services,CS R&AssessDiscretionary Pymts,W1CE41,Third Party Payments          ,Private Contractors           ,EH01,Miscellaneous Agency Services           ,1328.35,31/08/2015,Rev,ROOMS & STUDIOS MANAGEMENT    
208,Childrens & Education Services,Family - Other Services,CS R&AssessDiscretionary Pymts,W1CE41,Third Party Payments          ,Private Contractors           ,EH01,Miscellaneous Agency Services           ,1328.35,31/08/2015,Rev,ROOMS & STUDIOS MANAGEMENT    
209,Childrens & Education Services,Family - Other Services,CS R&AssessDiscretionary Pymts,W1CE41,Third Party Payments          ,Private Contractors           ,EH01,Miscellaneous Agency Services           ,1328.35,31/08/2015,Rev,ROOMS & STUDIOS MANAGEMENT    
210,Cultural Env Reg&Plan Services,Parks & Open Spaces,"Pks,Rec Grds (Unloc)",P05005,Premises Related Expenditure  ,Ground Maintenance Costs      ,BL50,TREE WORK & CONSERVATION                ,1875,31/08/2015,Rev,MICROBEE LTD                  
211,Childrens & Education Services,Fostering Services,ART Independent Agency Foster,W1DE46,Supplies & Services           ,Services                      ,DF91,Long Term Fostering                     ,-802.97,01/09/2015,Rev,FOSTER CARE ASSOCIATES LTD    
212,Childrens & Education Services,Fostering Services,ART Independent Agency Foster,W1DE46,Supplies & Services           ,Services                      ,DF53,Task Based Fostering                    ,-672,01/09/2015,Rev,SYNERGY FOSTERING LTD         
213,Childrens & Education Services,,ART Residential Secure accommo,W1DE58,Third Party Payments          ,Private Contractors           ,EH01,Miscellaneous Agency Services           ,525,01/09/2015,Rev,BIBBY FACTORS SUSSEX LTD      
214,Childrens & Education Services,,ART Residential Secure accommo,W1DE58,Third Party Payments          ,Private Contractors           ,EH01,Miscellaneous Agency Services           ,525,01/09/2015,Rev,BIBBY FACTORS SUSSEX LTD      
215,Childrens & Education Services,,ART Residential Secure accommo,W1DE58,Third Party Payments          ,Private Contractors           ,EH01,Miscellaneous Agency Services           ,525,01/09/2015,Rev,BIBBY FACTORS SUSSEX LTD      
216,Childrens & Education Services,,ART Residential Secure accommo,W1DE58,Third Party Payments          ,Private Contractors           ,EH01,Miscellaneous Agency Services           ,525,01/09/2015,Rev,BIBBY FACTORS SUSSEX LTD      
217,Adult Social Care,OP 65&Over NursingCarePlacemts,OP East - Nursing Care,W2LH53,Third Party Payments          ,Private Contractors           ,EH01,Miscellaneous Agency Services           ,687.17,01/09/2015,Rev,BROADLANDS NURSING HOME       
218,Adult Social Care,OP 65&Over NursingCarePlacemts,OP East - Nursing Care,W2LH53,Third Party Payments          ,Private Contractors           ,EH01,Miscellaneous Agency Services           ,687.17,01/09/2015,Rev,BROADLANDS NURSING HOME       
219,Adult Social Care,OP 65&Over NursingCarePlacemts,OP East - Nursing Care,W2LH53,Third Party Payments          ,Private Contractors           ,EH01,Miscellaneous Agency Services           ,687.17,01/09/2015,Rev,BROADLANDS NURSING HOME       
220,Adult Social Care,OP 65&Over NursingCarePlacemts,OP East - Nursing Care,W2LH53,Third Party Payments          ,Private Contractors           ,EH01,Miscellaneous Agency Services           ,687.17,01/09/2015,Rev,BROADLANDS NURSING HOME       
221,Adult Social Care,OP 65&Over Resi Care Placement,OP East - Residential Care Ext,W2LH55,Third Party Payments          ,Private Contractors           ,EH01,Miscellaneous Agency Services           ,695,01/09/2015,Rev,KELSTONE COURT NURSING HOME   
222,Adult Social Care,OP 65&Over Resi Care Placement,OP East - Residential Care Ext,W2LH55,Third Party Payments          ,Private Contractors           ,EH01,Miscellaneous Agency Services           ,695,01/09/2015,Rev,KELSTONE COURT NURSING HOME   
223,Adult Social Care,OP 65&Over Resi Care Placement,OP East - Residential Care Ext,W2LH55,Third Party Payments          ,Private Contractors           ,EH01,Miscellaneous Agency Services           ,695,01/09/2015,Rev,KELSTONE COURT NURSING HOME   
224,Adult Social Care,OP 65&Over Resi Care Placement,OP East - Residential Care Ext,W2LH55,Third Party Payments          ,Private Contractors           ,EH01,Miscellaneous Agency Services           ,695,01/09/2015,Rev,KELSTONE COURT NURSING HOME   
225,Childrens & Education Services,Fostering Services,ART Independent Agency Foster,W1DE46,Supplies & Services           ,Services                      ,DF91,Long Term Fostering                     ,802.97,01/09/2015,Rev,FOSTER CARE ASSOCIATES LTD    
226,Childrens & Education Services,Fostering Services,ART Independent Agency Foster,W1DE46,Supplies & Services           ,Services                      ,DF53,Task Based Fostering                    ,1008,01/09/2015,Rev,SYNERGY FOSTERING LTD         
227,Housing Services,Bed / breakfast accommodation,TEMPORARY ACCOMMODATION,N47160,Third Party Payments          ,Private Contractors           ,EH01,Miscellaneous Agency Services           ,1080,01/09/2015,Rev,TM HOUSE AND HOSTELS LTD      
228,Childrens & Education Services,Fostering Services,ART Independent Agency Foster,W1DE46,Supplies & Services           ,Services                      ,DF53,Task Based Fostering                    ,1176,01/09/2015,Rev,SYNERGY FOSTERING LTD         
229,Childrens & Education Services,Fostering Services,ART Independent Agency Foster,W1DE46,Supplies & Services           ,Services                      ,DF53,Task Based Fostering                    ,1176,01/09/2015,Rev,SYNERGY FOSTERING LTD         
230,Childrens & Education Services,Fostering Services,ART Independent Agency Foster,W1DE46,Supplies & Services           ,Services                      ,DF53,Task Based Fostering                    ,1176,01/09/2015,Rev,SYNERGY FOSTERING LTD         
231,Childrens & Education Services,Fostering Services,ART Independent Agency Foster,W1DE46,Supplies & Services           ,Services                      ,DF53,Task Based Fostering                    ,1176,01/09/2015,Rev,SYNERGY FOSTERING LTD         
232,,,Schs Cap Maint & Accessibility          ,CS080SD,New Construction Conversion and Renovation,,B6,Other Costs - Site works                ,1500,01/09/2015,Cap,EB ELECTRICAL SOLUTIONS LTD   
233,,,Schs Cap Maint & Accessibility          ,CS080SD,New Construction Conversion and Renovation,,B6,Other Costs - Site works                ,14335.5,01/09/2015,Cap,EB ELECTRICAL SOLUTIONS LTD   
234,Childrens & Education Services,Support for SEN Pupils,Non-Maintained Post 16 SEN              ,K90052,Third Party Payments          ,Other Establishments          ,EG53,Ind Specialist Providers                ,29211,01/09/2015,Rev,ST. JOHN'S SCHOOL AND COLLEGE 
235,,,Replacement Social Care System          ,CT007EA,Vehicles Plant Equipment and Machinery,,D5,Software                                ,41500,01/09/2015,Cap,CORELOGIC                     
236,Adult Social Care,MH u65 Residentl Care Placemnt,MH ResidentialCare Ext - Wim,W2HC55,Third Party Payments          ,Private Contractors           ,EH01,Miscellaneous Agency Services           ,-1040,02/09/2015,Rev,BROOKDALE HEALTH CARE         
237,Adult Social Care,MH u65 Residentl Care Placemnt,MH ResidentialCare Ext - Wim,W2HC55,Third Party Payments          ,Private Contractors           ,EH01,Miscellaneous Agency Services           ,1300,02/09/2015,Rev,BROOKDALE HEALTH CARE         
238,Adult Social Care,MH u65 Residentl Care Placemnt,MH ResidentialCare Ext - Wim,W2HC55,Third Party Payments          ,Private Contractors           ,EH01,Miscellaneous Agency Services           ,1820,02/09/2015,Rev,BROOKDALE HEALTH CARE         
239,Adult Social Care,MH u65 Residentl Care Placemnt,MH ResidentialCare Ext - Wim,W2HC55,Third Party Payments          ,Private Contractors           ,EH01,Miscellaneous Agency Services           ,1820,02/09/2015,Rev,BROOKDALE HEALTH CARE         
240,Adult Social Care,MH u65 Residentl Care Placemnt,MH ResidentialCare Ext - Wim,W2HC55,Third Party Payments          ,Private Contractors           ,EH01,Miscellaneous Agency Services           ,1820,02/09/2015,Rev,BROOKDALE HEALTH CARE         
241,Adult Social Care,MH u65 Residentl Care Placemnt,MH ResidentialCare Ext - Wim,W2HC55,Third Party Payments          ,Private Contractors           ,EH01,Miscellaneous Agency Services           ,1820,02/09/2015,Rev,BROOKDALE HEALTH CARE         
242,Central Services,SupS Legal,Richmond Legal,E10289,Supplies & Services           ,Services                      ,DF11,Counsel's Fees                          ,680,03/09/2015,Rev,REDACTED
243,Central Services,SupS Legal,Richmond Legal,E10289,Supplies & Services           ,Services                      ,DF11,Counsel's Fees                          ,700,03/09/2015,Rev,REDACTED
244,Central Services,SupS Legal,Achieving for Children (AFC),E10295,Supplies & Services           ,Services                      ,DF11,Counsel's Fees                          ,712.5,03/09/2015,Rev,REDACTED
245,Childrens & Education Services,CS - Commiss'ing & Social Work,CL IndepAssess Expert Witness,W1DJ63,Supplies & Services           ,Services                      ,DF14,Doctors and Other Fees                  ,869.75,03/09/2015,Rev,C.A.T.T. PARTNERSHIP          
246,Childrens & Education Services,Chidren's Homes,ART Residential Placements,W1DE57,Third Party Payments          ,Private Contractors           ,EH01,Miscellaneous Agency Services           ,1100.87,03/09/2015,Rev,REDACTED
247,Childrens & Education Services,Chidren's Homes,ART Residential Placements,W1DE57,Third Party Payments          ,Private Contractors           ,EH01,Miscellaneous Agency Services           ,2201.73,03/09/2015,Rev,REDACTED
248,Childrens & Education Services,Chidren's Homes,ART Residential Placements,W1DE57,Third Party Payments          ,Private Contractors           ,EH01,Miscellaneous Agency Services           ,2568.69,03/09/2015,Rev,REDACTED
249,Childrens & Education Services,Chidren's Homes,ART Residential Placements,W1DE57,Third Party Payments          ,Private Contractors           ,EH01,Miscellaneous Agency Services           ,2568.69,03/09/2015,Rev,REDACTED
250,Childrens & Education Services,Chidren's Homes,ART Residential Placements,W1DE57,Third Party Payments          ,Private Contractors           ,EH01,Miscellaneous Agency Services           ,2568.69,03/09/2015,Rev,REDACTED
251,Cultural Env Reg&Plan Services,Parks & Open Spaces,"Pks,Rec Grds (Unloc)",P05005,Premises Related Expenditure  ,Ground Maintenance Costs      ,BL50,TREE WORK & CONSERVATION                ,1200,04/09/2015,Rev,ADVANCED TREE SERVICES LTD    
252,Cultural Env Reg&Plan Services,Parks & Open Spaces,"Pks,Rec Grds (Unloc)",P05005,Premises Related Expenditure  ,Ground Maintenance Costs      ,BL50,TREE WORK & CONSERVATION                ,1800,04/09/2015,Rev,ADVANCED TREE SERVICES LTD    
253,Childrens & Education Services,Fostering Services,ART Independent Agency Foster,W1DE46,Supplies & Services           ,Services                      ,DF53,Task Based Fostering                    ,670,06/09/2015,Rev,THE NATIONAL FOSTERING AGENCY 
254,Childrens & Education Services,Fostering Services,ART Independent Agency Foster,W1DE46,Supplies & Services           ,Services                      ,DF53,Task Based Fostering                    ,670,06/09/2015,Rev,THE NATIONAL FOSTERING AGENCY 
255,Childrens & Education Services,Fostering Services,ART Independent Agency Foster,W1DE46,Supplies & Services           ,Services                      ,DF53,Task Based Fostering                    ,735,06/09/2015,Rev,THE NATIONAL FOSTERING AGENCY 
256,Childrens & Education Services,Fostering Services,ART Independent Agency Foster,W1DE46,Supplies & Services           ,Services                      ,DF53,Task Based Fostering                    ,735,06/09/2015,Rev,THE NATIONAL FOSTERING AGENCY 
257,Childrens & Education Services,Fostering Services,ART Independent Agency Foster,W1DE46,Supplies & Services           ,Services                      ,DF53,Task Based Fostering                    ,735,06/09/2015,Rev,THE NATIONAL FOSTERING AGENCY 
258,Childrens & Education Services,Fostering Services,ART Independent Agency Foster,W1DE46,Supplies & Services           ,Services                      ,DF53,Task Based Fostering                    ,735,06/09/2015,Rev,THE NATIONAL FOSTERING AGENCY 
259,Childrens & Education Services,Fostering Services,ART Independent Agency Foster,W1DE46,Supplies & Services           ,Services                      ,DF53,Task Based Fostering                    ,780,06/09/2015,Rev,THE NATIONAL FOSTERING AGENCY 
260,Childrens & Education Services,Fostering Services,ART Independent Agency Foster,W1DE46,Supplies & Services           ,Services                      ,DF53,Task Based Fostering                    ,780,06/09/2015,Rev,THE NATIONAL FOSTERING AGENCY 
261,Childrens & Education Services,CS - Commiss'ing & Social Work,CL IndepAssess Expert Witness,W1DJ63,Supplies & Services           ,Services                      ,DF14,Doctors and Other Fees                  ,972,07/09/2015,Rev,REDACTED
262,Central Services,SupS Legal,Sutton Legal                            ,E10293,Supplies & Services           ,Services                      ,DF95,Services from Provider                  ,1170,07/09/2015,Rev,LONDON BOROUGH OF SUTTON      
263,Central Services,,Sales and Marketing                     ,A02034,Supplies & Services           ,Prntng Stnry Gen Off Exp      ,DE22,Marketing                               ,2000,07/09/2015,Rev,JCDECAUX UNITED KINGDOM       
264,Public Health,PH - Sexual Health,PH � STI Testing and Treatment          ,WPHS02,Supplies & Services           ,Public Health Subjectives,DQ04,GUM                                     ,76755.45,07/09/2015,Rev,CHELSEA & WESTMINSTER HOSPITAL
265,Childrens & Education Services,,ART Residential Secure accommo,W1DE58,Third Party Payments          ,Private Contractors           ,EH01,Miscellaneous Agency Services           ,685.71,08/09/2015,Rev,FUTURE FOUNDATIONS LTD        
266,Childrens & Education Services,Fostering Services,ART Independent Agency Foster,W1DE46,Supplies & Services           ,Services                      ,DF53,Task Based Fostering                    ,735,08/09/2015,Rev,THE NATIONAL FOSTERING AGENCY 
267,Childrens & Education Services,Fostering Services,ART Independent Agency Foster,W1DE46,Supplies & Services           ,Services                      ,DF53,Task Based Fostering                    ,735,08/09/2015,Rev,THE NATIONAL FOSTERING AGENCY 
268,Childrens & Education Services,Fostering Services,ART Independent Agency Foster,W1DE46,Supplies & Services           ,Services                      ,DF53,Task Based Fostering                    ,735,08/09/2015,Rev,THE NATIONAL FOSTERING AGENCY 
269,Childrens & Education Services,Fostering Services,ART Independent Agency Foster,W1DE46,Supplies & Services           ,Services                      ,DF53,Task Based Fostering                    ,735,08/09/2015,Rev,THE NATIONAL FOSTERING AGENCY 
270,Childrens & Education Services,,ART Residential Secure accommo,W1DE58,Third Party Payments          ,Private Contractors           ,EH01,Miscellaneous Agency Services           ,800,08/09/2015,Rev,FUTURE FOUNDATIONS LTD        
271,Childrens & Education Services,,ART Residential Secure accommo,W1DE58,Third Party Payments          ,Private Contractors           ,EH01,Miscellaneous Agency Services           ,800,08/09/2015,Rev,FUTURE FOUNDATIONS LTD        
272,Childrens & Education Services,,ART Residential Secure accommo,W1DE58,Third Party Payments          ,Private Contractors           ,EH01,Miscellaneous Agency Services           ,800,08/09/2015,Rev,FUTURE FOUNDATIONS LTD        
273,Childrens & Education Services,,ART Residential Secure accommo,W1DE58,Third Party Payments          ,Private Contractors           ,EH01,Miscellaneous Agency Services           ,800,08/09/2015,Rev,FUTURE FOUNDATIONS LTD        
274,Central Services,SupS Legal,Kingston Legal                          ,E10292,Supplies & Services           ,Services                      ,DF95,Services from Provider                  ,521.16,09/09/2015,Rev,SEARCHFLOW LTD                
275,Central Services,SupS Legal,Kingston Legal                          ,E10292,Supplies & Services           ,Services                      ,DF95,Services from Provider                  ,521.16,09/09/2015,Rev,SEARCHFLOW LTD                
276,Central Services,SupS Legal,Kingston Legal                          ,E10292,Supplies & Services           ,Services                      ,DF95,Services from Provider                  ,521.16,09/09/2015,Rev,SEARCHFLOW LTD                
277,Central Services,SupS Legal,Kingston Legal                          ,E10292,Supplies & Services           ,Services                      ,DF95,Services from Provider                  ,521.16,09/09/2015,Rev,SEARCHFLOW LTD                
278,Central Services,SupS Legal,Kingston Legal                          ,E10292,Supplies & Services           ,Services                      ,DF95,Services from Provider                  ,521.16,09/09/2015,Rev,SEARCHFLOW LTD                
279,Central Services,SupS Legal,Kingston Legal                          ,E10292,Supplies & Services           ,Services                      ,DF95,Services from Provider                  ,521.16,09/09/2015,Rev,SEARCHFLOW LTD                
280,Central Services,SupS Legal,Kingston Legal                          ,E10292,Supplies & Services           ,Services                      ,DF95,Services from Provider                  ,521.16,09/09/2015,Rev,SEARCHFLOW LTD                
281,Central Services,SupS Legal,Kingston Legal                          ,E10292,Supplies & Services           ,Services                      ,DF95,Services from Provider                  ,521.16,09/09/2015,Rev,SEARCHFLOW LTD                
282,Central Services,SupS Legal,Kingston Legal                          ,E10292,Supplies & Services           ,Services                      ,DF95,Services from Provider                  ,521.16,09/09/2015,Rev,SEARCHFLOW LTD                
283,Central Services,SupS Legal,Kingston Legal                          ,E10292,Supplies & Services           ,Services                      ,DF95,Services from Provider                  ,521.16,09/09/2015,Rev,SEARCHFLOW LTD                
284,Central Services,SupS Legal,Kingston Legal                          ,E10292,Supplies & Services           ,Services                      ,DF95,Services from Provider                  ,521.16,09/09/2015,Rev,SEARCHFLOW LTD                
285,Central Services,SupS Legal,Kingston Legal                          ,E10292,Supplies & Services           ,Services                      ,DF95,Services from Provider                  ,521.16,09/09/2015,Rev,SEARCHFLOW LTD                
286,Central Services,SupS Legal,Kingston Legal                          ,E10292,Supplies & Services           ,Services                      ,DF95,Services from Provider                  ,521.16,09/09/2015,Rev,SEARCHFLOW LTD                
287,Central Services,SupS Legal,Kingston Legal                          ,E10292,Supplies & Services           ,Services                      ,DF95,Services from Provider                  ,521.16,09/09/2015,Rev,SEARCHFLOW LTD                
288,Central Services,SupS Legal,Kingston Legal                          ,E10292,Supplies & Services           ,Services                      ,DF95,Services from Provider                  ,521.16,09/09/2015,Rev,SEARCHFLOW LTD                
289,Central Services,SupS Legal,Kingston Legal                          ,E10292,Supplies & Services           ,Services                      ,DF95,Services from Provider                  ,521.16,09/09/2015,Rev,SEARCHFLOW LTD                
290,CS -Oth Operating Inc & Expend,T/A Vehicle Maintenance etc,Vehicle Workshops,J01378,Transport Related Expenditure ,Direct Transport Costs        ,CA72,Vehicle Parts                           ,800,09/09/2015,Rev,EUROCAR PARTS                 
291,Childrens & Education Services,Sch Meals & Milk-Not Delegated,Free School Meals,K90002,Supplies & Services           ,Grants and Subscriptions      ,DJ80,Free School Meals                       ,-37521.1,10/09/2015,Rev,ISS COLLECTIONS LTD           
292,Adult Social Care,OP 65&Over NursingCarePlacemts,OP R/Park - Nursing Care,W2LR53,Third Party Payments          ,Private Contractors           ,EH01,Miscellaneous Agency Services           ,-654.55,10/09/2015,Rev,LINK HOUSE                    
293,Adult Social Care,OP 65&Over NursingCarePlacemts,OP R/Park - Nursing Care,W2LR53,Third Party Payments          ,Private Contractors           ,EH01,Miscellaneous Agency Services           ,-654.55,10/09/2015,Rev,LINK HOUSE                    
294,Adult Social Care,OP 65&Over NursingCarePlacemts,OP R/Park - Nursing Care,W2LR53,Third Party Payments          ,Private Contractors           ,EH01,Miscellaneous Agency Services           ,-654.55,10/09/2015,Rev,LINK HOUSE                    
295,Adult Social Care,OP 65&Over NursingCarePlacemts,OP R/Park - Nursing Care,W2LR53,Third Party Payments          ,Private Contractors           ,EH01,Miscellaneous Agency Services           ,-654.55,10/09/2015,Rev,LINK HOUSE                    
296,Adult Social Care,OP 65&Over NursingCarePlacemts,OP R/Park - Nursing Care,W2LR53,Third Party Payments          ,Private Contractors           ,EH01,Miscellaneous Agency Services           ,-654.55,10/09/2015,Rev,LINK HOUSE                    
297,Adult Social Care,OP 65&Over NursingCarePlacemts,OP R/Park - Nursing Care,W2LR53,Third Party Payments          ,Private Contractors           ,EH01,Miscellaneous Agency Services           ,-654.55,10/09/2015,Rev,LINK HOUSE                    
298,Adult Social Care,OP 65&Over NursingCarePlacemts,OP R/Park - Nursing Care,W2LR53,Third Party Payments          ,Private Contractors           ,EH01,Miscellaneous Agency Services           ,-654.55,10/09/2015,Rev,LINK HOUSE                    
299,Adult Social Care,OP 65&Over NursingCarePlacemts,OP R/Park - Nursing Care,W2LR53,Third Party Payments          ,Private Contractors           ,EH01,Miscellaneous Agency Services           ,-654.55,10/09/2015,Rev,LINK HOUSE                    
300,Adult Social Care,OP 65&Over NursingCarePlacemts,OP R/Park - Nursing Care,W2LR53,Third Party Payments          ,Private Contractors           ,EH01,Miscellaneous Agency Services           ,-654.55,10/09/2015,Rev,LINK HOUSE                    
301,Adult Social Care,OP 65&Over NursingCarePlacemts,OP R/Park - Nursing Care,W2LR53,Third Party Payments          ,Private Contractors           ,EH01,Miscellaneous Agency Services           ,-654.55,10/09/2015,Rev,LINK HOUSE                    
302,Adult Social Care,OP 65&Over NursingCarePlacemts,OP R/Park - Nursing Care,W2LR53,Third Party Payments          ,Private Contractors           ,EH01,Miscellaneous Agency Services           ,-654.55,10/09/2015,Rev,LINK HOUSE                    
303,Adult Social Care,OP 65&Over NursingCarePlacemts,OP R/Park - Nursing Care,W2LR53,Third Party Payments          ,Private Contractors           ,EH01,Miscellaneous Agency Services           ,-654.55,10/09/2015,Rev,LINK HOUSE                    
304,Adult Social Care,OP 65&Over NursingCarePlacemts,OP R/Park - Nursing Care,W2LR53,Third Party Payments          ,Private Contractors           ,EH01,Miscellaneous Agency Services           ,-654.55,10/09/2015,Rev,LINK HOUSE                    
305,Adult Social Care,OP 65&Over NursingCarePlacemts,OP R/Park - Nursing Care,W2LR53,Third Party Payments          ,Private Contractors           ,EH01,Miscellaneous Agency Services           ,-654.55,10/09/2015,Rev,LINK HOUSE                    
306,Adult Social Care,OP 65&Over NursingCarePlacemts,OP R/Park - Nursing Care,W2LR53,Third Party Payments          ,Private Contractors           ,EH01,Miscellaneous Agency Services           ,-654.55,10/09/2015,Rev,LINK HOUSE                    
307,Adult Social Care,OP 65&Over NursingCarePlacemts,OP R/Park - Nursing Care,W2LR53,Third Party Payments          ,Private Contractors           ,EH01,Miscellaneous Agency Services           ,-654.55,10/09/2015,Rev,LINK HOUSE                    
308,Adult Social Care,OP 65&Over Resi Care Placement,OP East - Residential Care Ext,W2LH55,Third Party Payments          ,Private Contractors           ,EH01,Miscellaneous Agency Services           ,-524.22,10/09/2015,Rev,LINK HOUSE                    
309,Adult Social Care,OP 65&Over Resi Care Placement,OP East - Residential Care Ext,W2LH55,Third Party Payments          ,Private Contractors           ,EH01,Miscellaneous Agency Services           ,-524.22,10/09/2015,Rev,LINK HOUSE                    
310,Adult Social Care,OP 65&Over Resi Care Placement,OP East - Residential Care Ext,W2LH55,Third Party Payments          ,Private Contractors           ,EH01,Miscellaneous Agency Services           ,-524.22,10/09/2015,Rev,LINK HOUSE                    
311,Adult Social Care,OP 65&Over Resi Care Placement,OP East - Residential Care Ext,W2LH55,Third Party Payments          ,Private Contractors           ,EH01,Miscellaneous Agency Services           ,-524.22,10/09/2015,Rev,LINK HOUSE                    
312,Adult Social Care,OP 65&Over Resi Care Placement,OP East - Residential Care Ext,W2LH55,Third Party Payments          ,Private Contractors           ,EH01,Miscellaneous Agency Services           ,-524.22,10/09/2015,Rev,LINK HOUSE                    
313,Adult Social Care,OP 65&Over Resi Care Placement,OP East - Residential Care Ext,W2LH55,Third Party Payments          ,Private Contractors           ,EH01,Miscellaneous Agency Services           ,-524.22,10/09/2015,Rev,LINK HOUSE                    
314,Adult Social Care,OP 65&Over Resi Care Placement,OP East - Residential Care Ext,W2LH55,Third Party Payments          ,Private Contractors           ,EH01,Miscellaneous Agency Services           ,-524.22,10/09/2015,Rev,LINK HOUSE                    
315,Adult Social Care,OP 65&Over Resi Care Placement,OP East - Residential Care Ext,W2LH55,Third Party Payments          ,Private Contractors           ,EH01,Miscellaneous Agency Services           ,-524.22,10/09/2015,Rev,LINK HOUSE                    
316,Adult Social Care,OP 65&Over Resi Care Placement,OP R/Park-Residential Care Ext,W2LR55,Third Party Payments          ,Private Contractors           ,EH01,Miscellaneous Agency Services           ,-524.22,10/09/2015,Rev,LINK HOUSE                    
317,Adult Social Care,OP 65&Over Resi Care Placement,OP R/Park-Residential Care Ext,W2LR55,Third Party Payments          ,Private Contractors           ,EH01,Miscellaneous Agency Services           ,-524.22,10/09/2015,Rev,LINK HOUSE                    
318,Adult Social Care,OP 65&Over Resi Care Placement,OP R/Park-Residential Care Ext,W2LR55,Third Party Payments          ,Private Contractors           ,EH01,Miscellaneous Agency Services           ,-524.22,10/09/2015,Rev,LINK HOUSE                    
319,Adult Social Care,OP 65&Over Resi Care Placement,OP R/Park-Residential Care Ext,W2LR55,Third Party Payments          ,Private Contractors           ,EH01,Miscellaneous Agency Services           ,-524.22,10/09/2015,Rev,LINK HOUSE                    
320,Adult Social Care,OP 65&Over Resi Care Placement,OP R/Park-Residential Care Ext,W2LR55,Third Party Payments          ,Private Contractors           ,EH01,Miscellaneous Agency Services           ,-524.22,10/09/2015,Rev,LINK HOUSE                    
321,Adult Social Care,OP 65&Over Resi Care Placement,OP R/Park-Residential Care Ext,W2LR55,Third Party Payments          ,Private Contractors           ,EH01,Miscellaneous Agency Services           ,-524.22,10/09/2015,Rev,LINK HOUSE                    
322,Adult Social Care,OP 65&Over Resi Care Placement,OP R/Park-Residential Care Ext,W2LR55,Third Party Payments          ,Private Contractors           ,EH01,Miscellaneous Agency Services           ,-524.22,10/09/2015,Rev,LINK HOUSE                    
323,Adult Social Care,OP 65&Over Resi Care Placement,OP R/Park-Residential Care Ext,W2LR55,Third Party Payments          ,Private Contractors           ,EH01,Miscellaneous Agency Services           ,-524.22,10/09/2015,Rev,LINK HOUSE                    
324,Adult Social Care,OP 65&Over Resi Care Placement,OP R/Park-Residential Care Ext,W2LR55,Third Party Payments          ,Private Contractors           ,EH01,Miscellaneous Agency Services           ,-524.22,10/09/2015,Rev,LINK HOUSE                    
325,Adult Social Care,OP 65&Over Resi Care Placement,OP R/Park-Residential Care Ext,W2LR55,Third Party Payments          ,Private Contractors           ,EH01,Miscellaneous Agency Services           ,-524.22,10/09/2015,Rev,LINK HOUSE                    
326,Adult Social Care,OP 65&Over Resi Care Placement,OP R/Park-Residential Care Ext,W2LR55,Third Party Payments          ,Private Contractors           ,EH01,Miscellaneous Agency Services           ,-524.22,10/09/2015,Rev,LINK HOUSE                    
327,Adult Social Care,OP 65&Over Resi Care Placement,OP R/Park-Residential Care Ext,W2LR55,Third Party Payments          ,Private Contractors           ,EH01,Miscellaneous Agency Services           ,-524.22,10/09/2015,Rev,LINK HOUSE                    
328,Adult Social Care,OP 65&Over Resi Care Placement,OP R/Park-Residential Care Ext,W2LR55,Third Party Payments          ,Private Contractors           ,EH01,Miscellaneous Agency Services           ,-524.22,10/09/2015,Rev,LINK HOUSE                    
329,Adult Social Care,OP 65&Over Resi Care Placement,OP R/Park-Residential Care Ext,W2LR55,Third Party Payments          ,Private Contractors           ,EH01,Miscellaneous Agency Services           ,-524.22,10/09/2015,Rev,LINK HOUSE                    
330,Adult Social Care,OP 65&Over Resi Care Placement,OP R/Park-Residential Care Ext,W2LR55,Third Party Payments          ,Private Contractors           ,EH01,Miscellaneous Agency Services           ,-524.22,10/09/2015,Rev,LINK HOUSE                    
331,Adult Social Care,OP 65&Over Resi Care Placement,OP R/Park-Residential Care Ext,W2LR55,Third Party Payments          ,Private Contractors           ,EH01,Miscellaneous Agency Services           ,-524.22,10/09/2015,Rev,LINK HOUSE                    
332,Adult Social Care,OP 65&Over Resi Care Placement,OP R/Park-Residential Care Ext,W2LR55,Third Party Payments          ,Private Contractors           ,EH01,Miscellaneous Agency Services           ,-524.22,10/09/2015,Rev,LINK HOUSE                    
333,Adult Social Care,OP 65&Over Resi Care Placement,OP R/Park-Residential Care Ext,W2LR55,Third Party Payments          ,Private Contractors           ,EH01,Miscellaneous Agency Services           ,-524.22,10/09/2015,Rev,LINK HOUSE                    
334,Adult Social Care,OP 65&Over Resi Care Placement,OP R/Park-Residential Care Ext,W2LR55,Third Party Payments          ,Private Contractors           ,EH01,Miscellaneous Agency Services           ,-524.22,10/09/2015,Rev,LINK HOUSE                    
335,Adult Social Care,OP 65&Over Resi Care Placement,OP R/Park-Residential Care Ext,W2LR55,Third Party Payments          ,Private Contractors           ,EH01,Miscellaneous Agency Services           ,-524.22,10/09/2015,Rev,LINK HOUSE                    
336,Adult Social Care,OP 65&Over Resi Care Placement,OP West - Residential Care Ext,W2LG55,Third Party Payments          ,Private Contractors           ,EH01,Miscellaneous Agency Services           ,507,10/09/2015,Rev,LINK HOUSE                    
337,Adult Social Care,OP 65&Over Resi Care Placement,OP West - Residential Care Ext,W2LG55,Third Party Payments          ,Private Contractors           ,EH01,Miscellaneous Agency Services           ,507,10/09/2015,Rev,LINK HOUSE                    
338,Adult Social Care,OP 65&Over Resi Care Placement,OP West - Residential Care Ext,W2LG55,Third Party Payments          ,Private Contractors           ,EH01,Miscellaneous Agency Services           ,507,10/09/2015,Rev,LINK HOUSE                    
339,Adult Social Care,OP 65&Over Resi Care Placement,OP West - Residential Care Ext,W2LG55,Third Party Payments          ,Private Contractors           ,EH01,Miscellaneous Agency Services           ,507,10/09/2015,Rev,LINK HOUSE                    
340,Adult Social Care,OP 65&Over Resi Care Placement,OP West - Residential Care Ext,W2LG55,Third Party Payments          ,Private Contractors           ,EH01,Miscellaneous Agency Services           ,507,10/09/2015,Rev,LINK HOUSE                    
341,Adult Social Care,OP 65&Over Resi Care Placement,OP West - Residential Care Ext,W2LG55,Third Party Payments          ,Private Contractors           ,EH01,Miscellaneous Agency Services           ,507,10/09/2015,Rev,LINK HOUSE                    
342,Adult Social Care,OP 65&Over Resi Care Placement,OP West - Residential Care Ext,W2LG55,Third Party Payments          ,Private Contractors           ,EH01,Miscellaneous Agency Services           ,507,10/09/2015,Rev,LINK HOUSE                    
343,Adult Social Care,OP 65&Over Resi Care Placement,OP West - Residential Care Ext,W2LG55,Third Party Payments          ,Private Contractors           ,EH01,Miscellaneous Agency Services           ,507,10/09/2015,Rev,LINK HOUSE                    
344,Adult Social Care,OP 65&Over Resi Care Placement,OP R/Park-Residential Care Ext,W2LR55,Third Party Payments          ,Private Contractors           ,EH01,Miscellaneous Agency Services           ,507,10/09/2015,Rev,LINK HOUSE                    
345,Adult Social Care,OP 65&Over Resi Care Placement,OP R/Park-Residential Care Ext,W2LR55,Third Party Payments          ,Private Contractors           ,EH01,Miscellaneous Agency Services           ,507,10/09/2015,Rev,LINK HOUSE                    
346,Adult Social Care,OP 65&Over Resi Care Placement,OP R/Park-Residential Care Ext,W2LR55,Third Party Payments          ,Private Contractors           ,EH01,Miscellaneous Agency Services           ,507,10/09/2015,Rev,LINK HOUSE                    
347,Adult Social Care,OP 65&Over Resi Care Placement,OP R/Park-Residential Care Ext,W2LR55,Third Party Payments          ,Private Contractors           ,EH01,Miscellaneous Agency Services           ,507,10/09/2015,Rev,LINK HOUSE                    
348,Adult Social Care,OP 65&Over Resi Care Placement,OP R/Park-Residential Care Ext,W2LR55,Third Party Payments          ,Private Contractors           ,EH01,Miscellaneous Agency Services           ,507,10/09/2015,Rev,LINK HOUSE                    
349,Adult Social Care,OP 65&Over Resi Care Placement,OP R/Park-Residential Care Ext,W2LR55,Third Party Payments          ,Private Contractors           ,EH01,Miscellaneous Agency Services           ,507,10/09/2015,Rev,LINK HOUSE                    
350,Adult Social Care,OP 65&Over Resi Care Placement,OP R/Park-Residential Care Ext,W2LR55,Third Party Payments          ,Private Contractors           ,EH01,Miscellaneous Agency Services           ,507,10/09/2015,Rev,LINK HOUSE                    
351,Adult Social Care,OP 65&Over Resi Care Placement,OP R/Park-Residential Care Ext,W2LR55,Third Party Payments          ,Private Contractors           ,EH01,Miscellaneous Agency Services           ,507,10/09/2015,Rev,LINK HOUSE                    
352,Adult Social Care,OP 65&Over Resi Care Placement,OP R/Park-Residential Care Ext,W2LR55,Third Party Payments          ,Private Contractors           ,EH01,Miscellaneous Agency Services           ,507,10/09/2015,Rev,LINK HOUSE                    
353,Adult Social Care,OP 65&Over Resi Care Placement,OP R/Park-Residential Care Ext,W2LR55,Third Party Payments          ,Private Contractors           ,EH01,Miscellaneous Agency Services           ,507,10/09/2015,Rev,LINK HOUSE                    
354,Adult Social Care,OP 65&Over Resi Care Placement,OP R/Park-Residential Care Ext,W2LR55,Third Party Payments          ,Private Contractors           ,EH01,Miscellaneous Agency Services           ,507,10/09/2015,Rev,LINK HOUSE                    
355,Adult Social Care,OP 65&Over Resi Care Placement,OP R/Park-Residential Care Ext,W2LR55,Third Party Payments          ,Private Contractors           ,EH01,Miscellaneous Agency Services           ,507,10/09/2015,Rev,LINK HOUSE                    
356,Adult Social Care,OP 65&Over Resi Care Placement,OP R/Park-Residential Care Ext,W2LR55,Third Party Payments          ,Private Contractors           ,EH01,Miscellaneous Agency Services           ,507,10/09/2015,Rev,LINK HOUSE                    
357,Adult Social Care,OP 65&Over Resi Care Placement,OP R/Park-Residential Care Ext,W2LR55,Third Party Payments          ,Private Contractors           ,EH01,Miscellaneous Agency Services           ,507,10/09/2015,Rev,LINK HOUSE                    
358,Adult Social Care,OP 65&Over Resi Care Placement,OP R/Park-Residential Care Ext,W2LR55,Third Party Payments          ,Private Contractors           ,EH01,Miscellaneous Agency Services           ,507,10/09/2015,Rev,LINK HOUSE                    
359,Adult Social Care,OP 65&Over Resi Care Placement,OP R/Park-Residential Care Ext,W2LR55,Third Party Payments          ,Private Contractors           ,EH01,Miscellaneous Agency Services           ,507,10/09/2015,Rev,LINK HOUSE                    
360,Adult Social Care,OP 65&Over Resi Care Placement,OP R/Park-Residential Care Ext,W2LR55,Third Party Payments          ,Private Contractors           ,EH01,Miscellaneous Agency Services           ,507,10/09/2015,Rev,LINK HOUSE                    
361,Adult Social Care,OP 65&Over Resi Care Placement,OP R/Park-Residential Care Ext,W2LR55,Third Party Payments          ,Private Contractors           ,EH01,Miscellaneous Agency Services           ,507,10/09/2015,Rev,LINK HOUSE                    
362,Adult Social Care,OP 65&Over Resi Care Placement,OP R/Park-Residential Care Ext,W2LR55,Third Party Payments          ,Private Contractors           ,EH01,Miscellaneous Agency Services           ,507,10/09/2015,Rev,LINK HOUSE                    
363,Adult Social Care,OP 65&Over Resi Care Placement,OP R/Park-Residential Care Ext,W2LR55,Third Party Payments          ,Private Contractors           ,EH01,Miscellaneous Agency Services           ,507,10/09/2015,Rev,LINK HOUSE                    
364,Adult Social Care,OP 65&Over Resi Care Placement,OP R/Park-Residential Care Ext,W2LR55,Third Party Payments          ,Private Contractors           ,EH01,Miscellaneous Agency Services           ,507,10/09/2015,Rev,LINK HOUSE                    
365,Adult Social Care,OP 65&Over Resi Care Placement,OP R/Park-Residential Care Ext,W2LR55,Third Party Payments          ,Private Contractors           ,EH01,Miscellaneous Agency Services           ,507,10/09/2015,Rev,LINK HOUSE                    
366,Adult Social Care,OP 65&Over Resi Care Placement,OP R/Park-Residential Care Ext,W2LR55,Third Party Payments          ,Private Contractors           ,EH01,Miscellaneous Agency Services           ,507,10/09/2015,Rev,LINK HOUSE                    
367,Adult Social Care,OP 65&Over Resi Care Placement,OP R/Park-Residential Care Ext,W2LR55,Third Party Payments          ,Private Contractors           ,EH01,Miscellaneous Agency Services           ,507,10/09/2015,Rev,LINK HOUSE                    
368,Adult Social Care,OP 65&Over Resi Care Placement,OP R/Park-Residential Care Ext,W2LR55,Third Party Payments          ,Private Contractors           ,EH01,Miscellaneous Agency Services           ,507,10/09/2015,Rev,LINK HOUSE                    
369,Adult Social Care,OP 65&Over Resi Care Placement,OP R/Park-Residential Care Ext,W2LR55,Third Party Payments          ,Private Contractors           ,EH01,Miscellaneous Agency Services           ,507,10/09/2015,Rev,LINK HOUSE                    
370,Adult Social Care,OP 65&Over Resi Care Placement,OP R/Park-Residential Care Ext,W2LR55,Third Party Payments          ,Private Contractors           ,EH01,Miscellaneous Agency Services           ,507,10/09/2015,Rev,LINK HOUSE                    
371,Adult Social Care,OP 65&Over Resi Care Placement,OP R/Park-Residential Care Ext,W2LR55,Third Party Payments          ,Private Contractors           ,EH01,Miscellaneous Agency Services           ,507,10/09/2015,Rev,LINK HOUSE                    
372,Adult Social Care,OP 65&Over Resi Care Placement,OP West - Residential Care Ext,W2LG55,Third Party Payments          ,Private Contractors           ,EH01,Miscellaneous Agency Services           ,507,10/09/2015,Rev,WOODLANDS                     
373,Adult Social Care,OP 65&Over Resi Care Placement,OP West - Residential Care Ext,W2LG55,Third Party Payments          ,Private Contractors           ,EH01,Miscellaneous Agency Services           ,507,10/09/2015,Rev,WOODLANDS                     
374,Adult Social Care,OP 65&Over Resi Care Placement,OP West - Residential Care Ext,W2LG55,Third Party Payments          ,Private Contractors           ,EH01,Miscellaneous Agency Services           ,507,10/09/2015,Rev,WOODLANDS                     
375,Adult Social Care,OP 65&Over Resi Care Placement,OP West - Residential Care Ext,W2LG55,Third Party Payments          ,Private Contractors           ,EH01,Miscellaneous Agency Services           ,507,10/09/2015,Rev,WOODLANDS                     
376,Adult Social Care,OP 65&Over Resi Care Placement,OP West - Residential Care Ext,W2LG55,Third Party Payments          ,Private Contractors           ,EH01,Miscellaneous Agency Services           ,507,10/09/2015,Rev,WOODLANDS                     
377,Adult Social Care,OP 65&Over Resi Care Placement,OP West - Residential Care Ext,W2LG55,Third Party Payments          ,Private Contractors           ,EH01,Miscellaneous Agency Services           ,507,10/09/2015,Rev,WOODLANDS                     
378,Adult Social Care,OP 65&Over Resi Care Placement,OP West - Residential Care Ext,W2LG55,Third Party Payments          ,Private Contractors           ,EH01,Miscellaneous Agency Services           ,507,10/09/2015,Rev,WOODLANDS                     
379,Adult Social Care,OP 65&Over Resi Care Placement,OP West - Residential Care Ext,W2LG55,Third Party Payments          ,Private Contractors           ,EH01,Miscellaneous Agency Services           ,507,10/09/2015,Rev,WOODLANDS                     
380,Adult Social Care,OP 65&Over Resi Care Placement,OP East - Residential Care Ext,W2LH55,Third Party Payments          ,Private Contractors           ,EH01,Miscellaneous Agency Services           ,507,10/09/2015,Rev,WOODLANDS                     
381,Adult Social Care,OP 65&Over Resi Care Placement,OP East - Residential Care Ext,W2LH55,Third Party Payments          ,Private Contractors           ,EH01,Miscellaneous Agency Services           ,507,10/09/2015,Rev,WOODLANDS                     
382,Adult Social Care,OP 65&Over Resi Care Placement,OP East - Residential Care Ext,W2LH55,Third Party Payments          ,Private Contractors           ,EH01,Miscellaneous Agency Services           ,507,10/09/2015,Rev,WOODLANDS                     
383,Adult Social Care,OP 65&Over Resi Care Placement,OP East - Residential Care Ext,W2LH55,Third Party Payments          ,Private Contractors           ,EH01,Miscellaneous Agency Services           ,507,10/09/2015,Rev,WOODLANDS                     
384,Adult Social Care,OP 65&Over Resi Care Placement,OP R/Park-Residential Care Ext,W2LR55,Third Party Payments          ,Private Contractors           ,EH01,Miscellaneous Agency Services           ,507,10/09/2015,Rev,WOODLANDS                     
385,Adult Social Care,OP 65&Over Resi Care Placement,OP R/Park-Residential Care Ext,W2LR55,Third Party Payments          ,Private Contractors           ,EH01,Miscellaneous Agency Services           ,507,10/09/2015,Rev,WOODLANDS                     
386,Adult Social Care,OP 65&Over Resi Care Placement,OP R/Park-Residential Care Ext,W2LR55,Third Party Payments          ,Private Contractors           ,EH01,Miscellaneous Agency Services           ,507,10/09/2015,Rev,WOODLANDS                     
387,Adult Social Care,OP 65&Over Resi Care Placement,OP R/Park-Residential Care Ext,W2LR55,Third Party Payments          ,Private Contractors           ,EH01,Miscellaneous Agency Services           ,507,10/09/2015,Rev,WOODLANDS                     
388,Adult Social Care,OP 65&Over Resi Care Placement,OP East - Residential Care Ext,W2LH55,Third Party Payments          ,Private Contractors           ,EH01,Miscellaneous Agency Services           ,524.22,10/09/2015,Rev,LINK HOUSE                    
389,Adult Social Care,OP 65&Over Resi Care Placement,OP East - Residential Care Ext,W2LH55,Third Party Payments          ,Private Contractors           ,EH01,Miscellaneous Agency Services           ,524.22,10/09/2015,Rev,LINK HOUSE                    
390,Adult Social Care,OP 65&Over Resi Care Placement,OP East - Residential Care Ext,W2LH55,Third Party Payments          ,Private Contractors           ,EH01,Miscellaneous Agency Services           ,524.22,10/09/2015,Rev,LINK HOUSE                    
391,Adult Social Care,OP 65&Over Resi Care Placement,OP East - Residential Care Ext,W2LH55,Third Party Payments          ,Private Contractors           ,EH01,Miscellaneous Agency Services           ,524.22,10/09/2015,Rev,LINK HOUSE                    
392,Adult Social Care,OP 65&Over Resi Care Placement,OP East - Residential Care Ext,W2LH55,Third Party Payments          ,Private Contractors           ,EH01,Miscellaneous Agency Services           ,524.22,10/09/2015,Rev,LINK HOUSE                    
393,Adult Social Care,OP 65&Over Resi Care Placement,OP East - Residential Care Ext,W2LH55,Third Party Payments          ,Private Contractors           ,EH01,Miscellaneous Agency Services           ,524.22,10/09/2015,Rev,LINK HOUSE                    
394,Adult Social Care,OP 65&Over Resi Care Placement,OP East - Residential Care Ext,W2LH55,Third Party Payments          ,Private Contractors           ,EH01,Miscellaneous Agency Services           ,524.22,10/09/2015,Rev,LINK HOUSE                    
395,Adult Social Care,OP 65&Over Resi Care Placement,OP East - Residential Care Ext,W2LH55,Third Party Payments          ,Private Contractors           ,EH01,Miscellaneous Agency Services           ,524.22,10/09/2015,Rev,LINK HOUSE                    
396,Adult Social Care,OP 65&Over Resi Care Placement,OP R/Park-Residential Care Ext,W2LR55,Third Party Payments          ,Private Contractors           ,EH01,Miscellaneous Agency Services           ,524.22,10/09/2015,Rev,LINK HOUSE                    
397,Adult Social Care,OP 65&Over Resi Care Placement,OP R/Park-Residential Care Ext,W2LR55,Third Party Payments          ,Private Contractors           ,EH01,Miscellaneous Agency Services           ,524.22,10/09/2015,Rev,LINK HOUSE                    
398,Adult Social Care,OP 65&Over Resi Care Placement,OP R/Park-Residential Care Ext,W2LR55,Third Party Payments          ,Private Contractors           ,EH01,Miscellaneous Agency Services           ,524.22,10/09/2015,Rev,LINK HOUSE                    
399,Adult Social Care,OP 65&Over Resi Care Placement,OP R/Park-Residential Care Ext,W2LR55,Third Party Payments          ,Private Contractors           ,EH01,Miscellaneous Agency Services           ,524.22,10/09/2015,Rev,LINK HOUSE                    
400,Adult Social Care,OP 65&Over Resi Care Placement,OP R/Park-Residential Care Ext,W2LR55,Third Party Payments          ,Private Contractors           ,EH01,Miscellaneous Agency Services           ,524.22,10/09/2015,Rev,LINK HOUSE                    
401,Adult Social Care,OP 65&Over Resi Care Placement,OP R/Park-Residential Care Ext,W2LR55,Third Party Payments          ,Private Contractors           ,EH01,Miscellaneous Agency Services           ,524.22,10/09/2015,Rev,LINK HOUSE                    
402,Adult Social Care,OP 65&Over Resi Care Placement,OP R/Park-Residential Care Ext,W2LR55,Third Party Payments          ,Private Contractors           ,EH01,Miscellaneous Agency Services           ,524.22,10/09/2015,Rev,LINK HOUSE                    
403,Adult Social Care,OP 65&Over Resi Care Placement,OP R/Park-Residential Care Ext,W2LR55,Third Party Payments          ,Private Contractors           ,EH01,Miscellaneous Agency Services           ,524.22,10/09/2015,Rev,LINK HOUSE                    
404,Adult Social Care,OP 65&Over Resi Care Placement,OP R/Park-Residential Care Ext,W2LR55,Third Party Payments          ,Private Contractors           ,EH01,Miscellaneous Agency Services           ,524.22,10/09/2015,Rev,LINK HOUSE                    
405,Adult Social Care,OP 65&Over Resi Care Placement,OP R/Park-Residential Care Ext,W2LR55,Third Party Payments          ,Private Contractors           ,EH01,Miscellaneous Agency Services           ,524.22,10/09/2015,Rev,LINK HOUSE                    
406,Adult Social Care,OP 65&Over Resi Care Placement,OP R/Park-Residential Care Ext,W2LR55,Third Party Payments          ,Private Contractors           ,EH01,Miscellaneous Agency Services           ,524.22,10/09/2015,Rev,LINK HOUSE                    
407,Adult Social Care,OP 65&Over Resi Care Placement,OP R/Park-Residential Care Ext,W2LR55,Third Party Payments          ,Private Contractors           ,EH01,Miscellaneous Agency Services           ,524.22,10/09/2015,Rev,LINK HOUSE                    
408,Adult Social Care,OP 65&Over Resi Care Placement,OP R/Park-Residential Care Ext,W2LR55,Third Party Payments          ,Private Contractors           ,EH01,Miscellaneous Agency Services           ,524.22,10/09/2015,Rev,LINK HOUSE                    
409,Adult Social Care,OP 65&Over Resi Care Placement,OP R/Park-Residential Care Ext,W2LR55,Third Party Payments          ,Private Contractors           ,EH01,Miscellaneous Agency Services           ,524.22,10/09/2015,Rev,LINK HOUSE                    
410,Adult Social Care,OP 65&Over Resi Care Placement,OP R/Park-Residential Care Ext,W2LR55,Third Party Payments          ,Private Contractors           ,EH01,Miscellaneous Agency Services           ,524.22,10/09/2015,Rev,LINK HOUSE                    
411,Adult Social Care,OP 65&Over Resi Care Placement,OP R/Park-Residential Care Ext,W2LR55,Third Party Payments          ,Private Contractors           ,EH01,Miscellaneous Agency Services           ,524.22,10/09/2015,Rev,LINK HOUSE                    
412,Adult Social Care,OP 65&Over Resi Care Placement,OP R/Park-Residential Care Ext,W2LR55,Third Party Payments          ,Private Contractors           ,EH01,Miscellaneous Agency Services           ,524.22,10/09/2015,Rev,LINK HOUSE                    
413,Adult Social Care,OP 65&Over Resi Care Placement,OP R/Park-Residential Care Ext,W2LR55,Third Party Payments          ,Private Contractors           ,EH01,Miscellaneous Agency Services           ,524.22,10/09/2015,Rev,LINK HOUSE                    
414,Adult Social Care,OP 65&Over Resi Care Placement,OP R/Park-Residential Care Ext,W2LR55,Third Party Payments          ,Private Contractors           ,EH01,Miscellaneous Agency Services           ,524.22,10/09/2015,Rev,LINK HOUSE                    
415,Adult Social Care,OP 65&Over Resi Care Placement,OP R/Park-Residential Care Ext,W2LR55,Third Party Payments          ,Private Contractors           ,EH01,Miscellaneous Agency Services           ,524.22,10/09/2015,Rev,LINK HOUSE                    
416,Adult Social Care,OP 65&Over Resi Care Placement,OP East - Residential Care Ext,W2LH55,Third Party Payments          ,Private Contractors           ,EH01,Miscellaneous Agency Services           ,524.22,10/09/2015,Rev,WOODLANDS                     
417,Adult Social Care,OP 65&Over Resi Care Placement,OP East - Residential Care Ext,W2LH55,Third Party Payments          ,Private Contractors           ,EH01,Miscellaneous Agency Services           ,524.22,10/09/2015,Rev,WOODLANDS                     
418,Adult Social Care,OP 65&Over Resi Care Placement,OP East - Residential Care Ext,W2LH55,Third Party Payments          ,Private Contractors           ,EH01,Miscellaneous Agency Services           ,524.22,10/09/2015,Rev,WOODLANDS                     
419,Adult Social Care,OP 65&Over Resi Care Placement,OP East - Residential Care Ext,W2LH55,Third Party Payments          ,Private Contractors           ,EH01,Miscellaneous Agency Services           ,524.22,10/09/2015,Rev,WOODLANDS                     
420,Adult Social Care,OP 65&Over Resi Care Placement,OP West - Residential Care Ext,W2LG55,Third Party Payments          ,Private Contractors           ,EH01,Miscellaneous Agency Services           ,587,10/09/2015,Rev,LINK HOUSE                    
421,Adult Social Care,OP 65&Over Resi Care Placement,OP West - Residential Care Ext,W2LG55,Third Party Payments          ,Private Contractors           ,EH01,Miscellaneous Agency Services           ,587,10/09/2015,Rev,LINK HOUSE                    
422,Adult Social Care,OP 65&Over Resi Care Placement,OP West - Residential Care Ext,W2LG55,Third Party Payments          ,Private Contractors           ,EH01,Miscellaneous Agency Services           ,587,10/09/2015,Rev,LINK HOUSE                    
423,Adult Social Care,OP 65&Over Resi Care Placement,OP West - Residential Care Ext,W2LG55,Third Party Payments          ,Private Contractors           ,EH01,Miscellaneous Agency Services           ,587,10/09/2015,Rev,LINK HOUSE                    
424,Adult Social Care,OP 65&Over Resi Care Placement,OP West - Residential Care Ext,W2LG55,Third Party Payments          ,Private Contractors           ,EH01,Miscellaneous Agency Services           ,587,10/09/2015,Rev,LINK HOUSE                    
425,Adult Social Care,OP 65&Over Resi Care Placement,OP West - Residential Care Ext,W2LG55,Third Party Payments          ,Private Contractors           ,EH01,Miscellaneous Agency Services           ,587,10/09/2015,Rev,LINK HOUSE                    
426,Adult Social Care,OP 65&Over Resi Care Placement,OP West - Residential Care Ext,W2LG55,Third Party Payments          ,Private Contractors           ,EH01,Miscellaneous Agency Services           ,587,10/09/2015,Rev,LINK HOUSE                    
427,Adult Social Care,OP 65&Over Resi Care Placement,OP West - Residential Care Ext,W2LG55,Third Party Payments          ,Private Contractors           ,EH01,Miscellaneous Agency Services           ,587,10/09/2015,Rev,LINK HOUSE                    
428,Adult Social Care,OP 65&Over Resi Care Placement,OP West - Residential Care Ext,W2LG55,Third Party Payments          ,Private Contractors           ,EH01,Miscellaneous Agency Services           ,587,10/09/2015,Rev,LINK HOUSE                    
429,Adult Social Care,OP 65&Over Resi Care Placement,OP West - Residential Care Ext,W2LG55,Third Party Payments          ,Private Contractors           ,EH01,Miscellaneous Agency Services           ,587,10/09/2015,Rev,LINK HOUSE                    
430,Adult Social Care,OP 65&Over Resi Care Placement,OP West - Residential Care Ext,W2LG55,Third Party Payments          ,Private Contractors           ,EH01,Miscellaneous Agency Services           ,587,10/09/2015,Rev,LINK HOUSE                    
431,Adult Social Care,OP 65&Over Resi Care Placement,OP West - Residential Care Ext,W2LG55,Third Party Payments          ,Private Contractors           ,EH01,Miscellaneous Agency Services           ,587,10/09/2015,Rev,LINK HOUSE                    
432,Adult Social Care,OP 65&Over Resi Care Placement,OP East - Residential Care Ext,W2LH55,Third Party Payments          ,Private Contractors           ,EH01,Miscellaneous Agency Services           ,587,10/09/2015,Rev,LINK HOUSE                    
433,Adult Social Care,OP 65&Over Resi Care Placement,OP East - Residential Care Ext,W2LH55,Third Party Payments          ,Private Contractors           ,EH01,Miscellaneous Agency Services           ,587,10/09/2015,Rev,LINK HOUSE                    
434,Adult Social Care,OP 65&Over Resi Care Placement,OP East - Residential Care Ext,W2LH55,Third Party Payments          ,Private Contractors           ,EH01,Miscellaneous Agency Services           ,587,10/09/2015,Rev,LINK HOUSE                    
435,Adult Social Care,OP 65&Over Resi Care Placement,OP East - Residential Care Ext,W2LH55,Third Party Payments          ,Private Contractors           ,EH01,Miscellaneous Agency Services           ,587,10/09/2015,Rev,LINK HOUSE                    
436,Adult Social Care,OP 65&Over Resi Care Placement,OP East - Residential Care Ext,W2LH55,Third Party Payments          ,Private Contractors           ,EH01,Miscellaneous Agency Services           ,587,10/09/2015,Rev,LINK HOUSE                    
437,Adult Social Care,OP 65&Over Resi Care Placement,OP East - Residential Care Ext,W2LH55,Third Party Payments          ,Private Contractors           ,EH01,Miscellaneous Agency Services           ,587,10/09/2015,Rev,LINK HOUSE                    
438,Adult Social Care,OP 65&Over Resi Care Placement,OP East - Residential Care Ext,W2LH55,Third Party Payments          ,Private Contractors           ,EH01,Miscellaneous Agency Services           ,587,10/09/2015,Rev,LINK HOUSE                    
439,Adult Social Care,OP 65&Over Resi Care Placement,OP East - Residential Care Ext,W2LH55,Third Party Payments          ,Private Contractors           ,EH01,Miscellaneous Agency Services           ,587,10/09/2015,Rev,LINK HOUSE                    
440,Adult Social Care,OP 65&Over Resi Care Placement,OP R/Park-Residential Care Ext,W2LR55,Third Party Payments          ,Private Contractors           ,EH01,Miscellaneous Agency Services           ,587,10/09/2015,Rev,LINK HOUSE                    
441,Adult Social Care,OP 65&Over Resi Care Placement,OP R/Park-Residential Care Ext,W2LR55,Third Party Payments          ,Private Contractors           ,EH01,Miscellaneous Agency Services           ,587,10/09/2015,Rev,LINK HOUSE                    
442,Adult Social Care,OP 65&Over Resi Care Placement,OP R/Park-Residential Care Ext,W2LR55,Third Party Payments          ,Private Contractors           ,EH01,Miscellaneous Agency Services           ,587,10/09/2015,Rev,LINK HOUSE                    
443,Adult Social Care,OP 65&Over Resi Care Placement,OP R/Park-Residential Care Ext,W2LR55,Third Party Payments          ,Private Contractors           ,EH01,Miscellaneous Agency Services           ,587,10/09/2015,Rev,LINK HOUSE                    
444,Adult Social Care,OP 65&Over Resi Care Placement,OP R/Park-Residential Care Ext,W2LR55,Third Party Payments          ,Private Contractors           ,EH01,Miscellaneous Agency Services           ,587,10/09/2015,Rev,LINK HOUSE                    
445,Adult Social Care,OP 65&Over Resi Care Placement,OP R/Park-Residential Care Ext,W2LR55,Third Party Payments          ,Private Contractors           ,EH01,Miscellaneous Agency Services           ,587,10/09/2015,Rev,LINK HOUSE                    
446,Adult Social Care,OP 65&Over Resi Care Placement,OP R/Park-Residential Care Ext,W2LR55,Third Party Payments          ,Private Contractors           ,EH01,Miscellaneous Agency Services           ,587,10/09/2015,Rev,LINK HOUSE                    
447,Adult Social Care,OP 65&Over Resi Care Placement,OP R/Park-Residential Care Ext,W2LR55,Third Party Payments          ,Private Contractors           ,EH01,Miscellaneous Agency Services           ,587,10/09/2015,Rev,LINK HOUSE                    
448,Adult Social Care,OP 65&Over Resi Care Placement,OP R/Park-Residential Care Ext,W2LR55,Third Party Payments          ,Private Contractors           ,EH01,Miscellaneous Agency Services           ,587,10/09/2015,Rev,LINK HOUSE                    
449,Adult Social Care,OP 65&Over Resi Care Placement,OP R/Park-Residential Care Ext,W2LR55,Third Party Payments          ,Private Contractors           ,EH01,Miscellaneous Agency Services           ,587,10/09/2015,Rev,LINK HOUSE                    
450,Adult Social Care,OP 65&Over Resi Care Placement,OP R/Park-Residential Care Ext,W2LR55,Third Party Payments          ,Private Contractors           ,EH01,Miscellaneous Agency Services           ,587,10/09/2015,Rev,LINK HOUSE                    
451,Adult Social Care,OP 65&Over Resi Care Placement,OP R/Park-Residential Care Ext,W2LR55,Third Party Payments          ,Private Contractors           ,EH01,Miscellaneous Agency Services           ,587,10/09/2015,Rev,LINK HOUSE                    
452,Adult Social Care,OP 65&Over Resi Care Placement,OP R/Park-Residential Care Ext,W2LR55,Third Party Payments          ,Private Contractors           ,EH01,Miscellaneous Agency Services           ,587,10/09/2015,Rev,LINK HOUSE                    
453,Adult Social Care,OP 65&Over Resi Care Placement,OP R/Park-Residential Care Ext,W2LR55,Third Party Payments          ,Private Contractors           ,EH01,Miscellaneous Agency Services           ,587,10/09/2015,Rev,LINK HOUSE                    
454,Adult Social Care,OP 65&Over Resi Care Placement,OP R/Park-Residential Care Ext,W2LR55,Third Party Payments          ,Private Contractors           ,EH01,Miscellaneous Agency Services           ,587,10/09/2015,Rev,LINK HOUSE                    
455,Adult Social Care,OP 65&Over Resi Care Placement,OP R/Park-Residential Care Ext,W2LR55,Third Party Payments          ,Private Contractors           ,EH01,Miscellaneous Agency Services           ,587,10/09/2015,Rev,LINK HOUSE                    
456,Adult Social Care,OP 65&Over Resi Care Placement,OP R/Park-Residential Care Ext,W2LR55,Third Party Payments          ,Private Contractors           ,EH01,Miscellaneous Agency Services           ,587,10/09/2015,Rev,LINK HOUSE                    
457,Adult Social Care,OP 65&Over Resi Care Placement,OP R/Park-Residential Care Ext,W2LR55,Third Party Payments          ,Private Contractors           ,EH01,Miscellaneous Agency Services           ,587,10/09/2015,Rev,LINK HOUSE                    
458,Adult Social Care,OP 65&Over Resi Care Placement,OP R/Park-Residential Care Ext,W2LR55,Third Party Payments          ,Private Contractors           ,EH01,Miscellaneous Agency Services           ,587,10/09/2015,Rev,LINK HOUSE                    
459,Adult Social Care,OP 65&Over Resi Care Placement,OP R/Park-Residential Care Ext,W2LR55,Third Party Payments          ,Private Contractors           ,EH01,Miscellaneous Agency Services           ,587,10/09/2015,Rev,LINK HOUSE                    
460,Adult Social Care,OP 65&Over Resi Care Placement,OP R/Park-Residential Care Ext,W2LR55,Third Party Payments          ,Private Contractors           ,EH01,Miscellaneous Agency Services           ,587,10/09/2015,Rev,LINK HOUSE                    
461,Adult Social Care,OP 65&Over Resi Care Placement,OP R/Park-Residential Care Ext,W2LR55,Third Party Payments          ,Private Contractors           ,EH01,Miscellaneous Agency Services           ,587,10/09/2015,Rev,LINK HOUSE                    
462,Adult Social Care,OP 65&Over Resi Care Placement,OP R/Park-Residential Care Ext,W2LR55,Third Party Payments          ,Private Contractors           ,EH01,Miscellaneous Agency Services           ,587,10/09/2015,Rev,LINK HOUSE                    
463,Adult Social Care,OP 65&Over Resi Care Placement,OP R/Park-Residential Care Ext,W2LR55,Third Party Payments          ,Private Contractors           ,EH01,Miscellaneous Agency Services           ,587,10/09/2015,Rev,LINK HOUSE                    
464,Adult Social Care,OP 65&Over Resi Care Placement,OP R/Park-Residential Care Ext,W2LR55,Third Party Payments          ,Private Contractors           ,EH01,Miscellaneous Agency Services           ,587,10/09/2015,Rev,LINK HOUSE                    
465,Adult Social Care,OP 65&Over Resi Care Placement,OP R/Park-Residential Care Ext,W2LR55,Third Party Payments          ,Private Contractors           ,EH01,Miscellaneous Agency Services           ,587,10/09/2015,Rev,LINK HOUSE                    
466,Adult Social Care,OP 65&Over Resi Care Placement,OP R/Park-Residential Care Ext,W2LR55,Third Party Payments          ,Private Contractors           ,EH01,Miscellaneous Agency Services           ,587,10/09/2015,Rev,LINK HOUSE                    
467,Adult Social Care,OP 65&Over Resi Care Placement,OP R/Park-Residential Care Ext,W2LR55,Third Party Payments          ,Private Contractors           ,EH01,Miscellaneous Agency Services           ,587,10/09/2015,Rev,LINK HOUSE                    
468,Adult Social Care,OP 65&Over Resi Care Placement,OP R/Park-Residential Care Ext,W2LR55,Third Party Payments          ,Private Contractors           ,EH01,Miscellaneous Agency Services           ,587,10/09/2015,Rev,LINK HOUSE                    
469,Adult Social Care,OP 65&Over Resi Care Placement,OP R/Park-Residential Care Ext,W2LR55,Third Party Payments          ,Private Contractors           ,EH01,Miscellaneous Agency Services           ,587,10/09/2015,Rev,LINK HOUSE                    
470,Adult Social Care,OP 65&Over Resi Care Placement,OP R/Park-Residential Care Ext,W2LR55,Third Party Payments          ,Private Contractors           ,EH01,Miscellaneous Agency Services           ,587,10/09/2015,Rev,LINK HOUSE                    
471,Adult Social Care,OP 65&Over Resi Care Placement,OP West - Residential Care Ext,W2LG55,Third Party Payments          ,Private Contractors           ,EH01,Miscellaneous Agency Services           ,587,10/09/2015,Rev,WOODLANDS                     
472,Adult Social Care,OP 65&Over Resi Care Placement,OP West - Residential Care Ext,W2LG55,Third Party Payments          ,Private Contractors           ,EH01,Miscellaneous Agency Services           ,587,10/09/2015,Rev,WOODLANDS                     
473,Adult Social Care,OP 65&Over Resi Care Placement,OP West - Residential Care Ext,W2LG55,Third Party Payments          ,Private Contractors           ,EH01,Miscellaneous Agency Services           ,587,10/09/2015,Rev,WOODLANDS                     
474,Adult Social Care,OP 65&Over Resi Care Placement,OP West - Residential Care Ext,W2LG55,Third Party Payments          ,Private Contractors           ,EH01,Miscellaneous Agency Services           ,587,10/09/2015,Rev,WOODLANDS                     
475,Adult Social Care,OP 65&Over Resi Care Placement,OP West - Residential Care Ext,W2LG55,Third Party Payments          ,Private Contractors           ,EH01,Miscellaneous Agency Services           ,587,10/09/2015,Rev,WOODLANDS                     
476,Adult Social Care,OP 65&Over Resi Care Placement,OP West - Residential Care Ext,W2LG55,Third Party Payments          ,Private Contractors           ,EH01,Miscellaneous Agency Services           ,587,10/09/2015,Rev,WOODLANDS                     
477,Adult Social Care,OP 65&Over Resi Care Placement,OP West - Residential Care Ext,W2LG55,Third Party Payments          ,Private Contractors           ,EH01,Miscellaneous Agency Services           ,587,10/09/2015,Rev,WOODLANDS                     
478,Adult Social Care,OP 65&Over Resi Care Placement,OP West - Residential Care Ext,W2LG55,Third Party Payments          ,Private Contractors           ,EH01,Miscellaneous Agency Services           ,587,10/09/2015,Rev,WOODLANDS                     
479,Adult Social Care,OP 65&Over Resi Care Placement,OP West - Residential Care Ext,W2LG55,Third Party Payments          ,Private Contractors           ,EH01,Miscellaneous Agency Services           ,587,10/09/2015,Rev,WOODLANDS                     
480,Adult Social Care,OP 65&Over Resi Care Placement,OP West - Residential Care Ext,W2LG55,Third Party Payments          ,Private Contractors           ,EH01,Miscellaneous Agency Services           ,587,10/09/2015,Rev,WOODLANDS                     
481,Adult Social Care,OP 65&Over Resi Care Placement,OP West - Residential Care Ext,W2LG55,Third Party Payments          ,Private Contractors           ,EH01,Miscellaneous Agency Services           ,587,10/09/2015,Rev,WOODLANDS                     
482,Adult Social Care,OP 65&Over Resi Care Placement,OP West - Residential Care Ext,W2LG55,Third Party Payments          ,Private Contractors           ,EH01,Miscellaneous Agency Services           ,587,10/09/2015,Rev,WOODLANDS                     
483,Adult Social Care,OP 65&Over Resi Care Placement,OP West - Residential Care Ext,W2LG55,Third Party Payments          ,Private Contractors           ,EH01,Miscellaneous Agency Services           ,587,10/09/2015,Rev,WOODLANDS                     
484,Adult Social Care,OP 65&Over Resi Care Placement,OP West - Residential Care Ext,W2LG55,Third Party Payments          ,Private Contractors           ,EH01,Miscellaneous Agency Services           ,587,10/09/2015,Rev,WOODLANDS                     
485,Adult Social Care,OP 65&Over Resi Care Placement,OP West - Residential Care Ext,W2LG55,Third Party Payments          ,Private Contractors           ,EH01,Miscellaneous Agency Services           ,587,10/09/2015,Rev,WOODLANDS                     
486,Adult Social Care,OP 65&Over Resi Care Placement,OP West - Residential Care Ext,W2LG55,Third Party Payments          ,Private Contractors           ,EH01,Miscellaneous Agency Services           ,587,10/09/2015,Rev,WOODLANDS                     
487,Adult Social Care,OP 65&Over Resi Care Placement,OP West - Residential Care Ext,W2LG55,Third Party Payments          ,Private Contractors           ,EH01,Miscellaneous Agency Services           ,587,10/09/2015,Rev,WOODLANDS                     
488,Adult Social Care,OP 65&Over Resi Care Placement,OP West - Residential Care Ext,W2LG55,Third Party Payments          ,Private Contractors           ,EH01,Miscellaneous Agency Services           ,587,10/09/2015,Rev,WOODLANDS                     
489,Adult Social Care,OP 65&Over Resi Care Placement,OP West - Residential Care Ext,W2LG55,Third Party Payments          ,Private Contractors           ,EH01,Miscellaneous Agency Services           ,587,10/09/2015,Rev,WOODLANDS                     
490,Adult Social Care,OP 65&Over Resi Care Placement,OP West - Residential Care Ext,W2LG55,Third Party Payments          ,Private Contractors           ,EH01,Miscellaneous Agency Services           ,587,10/09/2015,Rev,WOODLANDS                     
491,Adult Social Care,OP 65&Over Resi Care Placement,OP West - Residential Care Ext,W2LG55,Third Party Payments          ,Private Contractors           ,EH01,Miscellaneous Agency Services           ,587,10/09/2015,Rev,WOODLANDS                     
492,Adult Social Care,OP 65&Over Resi Care Placement,OP West - Residential Care Ext,W2LG55,Third Party Payments          ,Private Contractors           ,EH01,Miscellaneous Agency Services           ,587,10/09/2015,Rev,WOODLANDS                     
493,Adult Social Care,OP 65&Over Resi Care Placement,OP West - Residential Care Ext,W2LG55,Third Party Payments          ,Private Contractors           ,EH01,Miscellaneous Agency Services           ,587,10/09/2015,Rev,WOODLANDS                     
494,Adult Social Care,OP 65&Over Resi Care Placement,OP West - Residential Care Ext,W2LG55,Third Party Payments          ,Private Contractors           ,EH01,Miscellaneous Agency Services           ,587,10/09/2015,Rev,WOODLANDS                     
495,Adult Social Care,OP 65&Over Resi Care Placement,OP West - Residential Care Ext,W2LG55,Third Party Payments          ,Private Contractors           ,EH01,Miscellaneous Agency Services           ,587,10/09/2015,Rev,WOODLANDS                     
496,Adult Social Care,OP 65&Over Resi Care Placement,OP West - Residential Care Ext,W2LG55,Third Party Payments          ,Private Contractors           ,EH01,Miscellaneous Agency Services           ,587,10/09/2015,Rev,WOODLANDS                     
497,Adult Social Care,OP 65&Over Resi Care Placement,OP West - Residential Care Ext,W2LG55,Third Party Payments          ,Private Contractors           ,EH01,Miscellaneous Agency Services           ,587,10/09/2015,Rev,WOODLANDS                     
498,Adult Social Care,OP 65&Over Resi Care Placement,OP West - Residential Care Ext,W2LG55,Third Party Payments          ,Private Contractors           ,EH01,Miscellaneous Agency Services           ,587,10/09/2015,Rev,WOODLANDS                     
499,Adult Social Care,OP 65&Over Resi Care Placement,OP East - Residential Care Ext,W2LH55,Third Party Payments          ,Private Contractors           ,EH01,Miscellaneous Agency Services           ,587,10/09/2015,Rev,WOODLANDS                     
500,Adult Social Care,OP 65&Over Resi Care Placement,OP East - Residential Care Ext,W2LH55,Third Party Payments          ,Private Contractors           ,EH01,Miscellaneous Agency Services           ,587,10/09/2015,Rev,WOODLANDS                     
501,Adult Social Care,OP 65&Over Resi Care Placement,OP East - Residential Care Ext,W2LH55,Third Party Payments          ,Private Contractors           ,EH01,Miscellaneous Agency Services           ,587,10/09/2015,Rev,WOODLANDS                     
502,Adult Social Care,OP 65&Over Resi Care Placement,OP East - Residential Care Ext,W2LH55,Third Party Payments          ,Private Contractors           ,EH01,Miscellaneous Agency Services           ,587,10/09/2015,Rev,WOODLANDS                     
503,Adult Social Care,OP 65&Over Resi Care Placement,OP East - Residential Care Ext,W2LH55,Third Party Payments          ,Private Contractors           ,EH01,Miscellaneous Agency Services           ,587,10/09/2015,Rev,WOODLANDS                     
504,Adult Social Care,OP 65&Over Resi Care Placement,OP East - Residential Care Ext,W2LH55,Third Party Payments          ,Private Contractors           ,EH01,Miscellaneous Agency Services           ,587,10/09/2015,Rev,WOODLANDS                     
505,Adult Social Care,OP 65&Over Resi Care Placement,OP East - Residential Care Ext,W2LH55,Third Party Payments          ,Private Contractors           ,EH01,Miscellaneous Agency Services           ,587,10/09/2015,Rev,WOODLANDS                     
506,Adult Social Care,OP 65&Over Resi Care Placement,OP East - Residential Care Ext,W2LH55,Third Party Payments          ,Private Contractors           ,EH01,Miscellaneous Agency Services           ,587,10/09/2015,Rev,WOODLANDS                     
507,Adult Social Care,OP 65&Over Resi Care Placement,OP East - Residential Care Ext,W2LH55,Third Party Payments          ,Private Contractors           ,EH01,Miscellaneous Agency Services           ,587,10/09/2015,Rev,WOODLANDS                     
508,Adult Social Care,OP 65&Over Resi Care Placement,OP East - Residential Care Ext,W2LH55,Third Party Payments          ,Private Contractors           ,EH01,Miscellaneous Agency Services           ,587,10/09/2015,Rev,WOODLANDS                     
509,Adult Social Care,OP 65&Over Resi Care Placement,OP East - Residential Care Ext,W2LH55,Third Party Payments          ,Private Contractors           ,EH01,Miscellaneous Agency Services           ,587,10/09/2015,Rev,WOODLANDS                     
510,Adult Social Care,OP 65&Over Resi Care Placement,OP East - Residential Care Ext,W2LH55,Third Party Payments          ,Private Contractors           ,EH01,Miscellaneous Agency Services           ,587,10/09/2015,Rev,WOODLANDS                     
511,Adult Social Care,OP 65&Over Resi Care Placement,OP East - Residential Care Ext,W2LH55,Third Party Payments          ,Private Contractors           ,EH01,Miscellaneous Agency Services           ,587,10/09/2015,Rev,WOODLANDS                     
512,Adult Social Care,OP 65&Over Resi Care Placement,OP East - Residential Care Ext,W2LH55,Third Party Payments          ,Private Contractors           ,EH01,Miscellaneous Agency Services           ,587,10/09/2015,Rev,WOODLANDS                     
513,Adult Social Care,OP 65&Over Resi Care Placement,OP East - Residential Care Ext,W2LH55,Third Party Payments          ,Private Contractors           ,EH01,Miscellaneous Agency Services           ,587,10/09/2015,Rev,WOODLANDS                     
514,Adult Social Care,OP 65&Over Resi Care Placement,OP East - Residential Care Ext,W2LH55,Third Party Payments          ,Private Contractors           ,EH01,Miscellaneous Agency Services           ,587,10/09/2015,Rev,WOODLANDS                     
515,Adult Social Care,OP 65&Over Resi Care Placement,OP East - Residential Care Ext,W2LH55,Third Party Payments          ,Private Contractors           ,EH01,Miscellaneous Agency Services           ,587,10/09/2015,Rev,WOODLANDS                     
516,Adult Social Care,OP 65&Over Resi Care Placement,OP East - Residential Care Ext,W2LH55,Third Party Payments          ,Private Contractors           ,EH01,Miscellaneous Agency Services           ,587,10/09/2015,Rev,WOODLANDS                     
517,Adult Social Care,OP 65&Over Resi Care Placement,OP East - Residential Care Ext,W2LH55,Third Party Payments          ,Private Contractors           ,EH01,Miscellaneous Agency Services           ,587,10/09/2015,Rev,WOODLANDS                     
518,Adult Social Care,OP 65&Over Resi Care Placement,OP East - Residential Care Ext,W2LH55,Third Party Payments          ,Private Contractors           ,EH01,Miscellaneous Agency Services           ,587,10/09/2015,Rev,WOODLANDS                     
519,Adult Social Care,OP 65&Over Resi Care Placement,OP East - Residential Care Ext,W2LH55,Third Party Payments          ,Private Contractors           ,EH01,Miscellaneous Agency Services           ,587,10/09/2015,Rev,WOODLANDS                     
520,Adult Social Care,OP 65&Over Resi Care Placement,OP East - Residential Care Ext,W2LH55,Third Party Payments          ,Private Contractors           ,EH01,Miscellaneous Agency Services           ,587,10/09/2015,Rev,WOODLANDS                     
521,Adult Social Care,OP 65&Over Resi Care Placement,OP East - Residential Care Ext,W2LH55,Third Party Payments          ,Private Contractors           ,EH01,Miscellaneous Agency Services           ,587,10/09/2015,Rev,WOODLANDS                     
522,Adult Social Care,OP 65&Over Resi Care Placement,OP East - Residential Care Ext,W2LH55,Third Party Payments          ,Private Contractors           ,EH01,Miscellaneous Agency Services           ,587,10/09/2015,Rev,WOODLANDS                     
523,Adult Social Care,OP 65&Over Resi Care Placement,OP East - Residential Care Ext,W2LH55,Third Party Payments          ,Private Contractors           ,EH01,Miscellaneous Agency Services           ,587,10/09/2015,Rev,WOODLANDS                     
524,Adult Social Care,OP 65&Over Resi Care Placement,OP East - Residential Care Ext,W2LH55,Third Party Payments          ,Private Contractors           ,EH01,Miscellaneous Agency Services           ,587,10/09/2015,Rev,WOODLANDS                     
525,Adult Social Care,OP 65&Over Resi Care Placement,OP East - Residential Care Ext,W2LH55,Third Party Payments          ,Private Contractors           ,EH01,Miscellaneous Agency Services           ,587,10/09/2015,Rev,WOODLANDS                     
526,Adult Social Care,OP 65&Over Resi Care Placement,OP East - Residential Care Ext,W2LH55,Third Party Payments          ,Private Contractors           ,EH01,Miscellaneous Agency Services           ,587,10/09/2015,Rev,WOODLANDS                     
527,Adult Social Care,OP 65&Over Resi Care Placement,OP East - Residential Care Ext,W2LH55,Third Party Payments          ,Private Contractors           ,EH01,Miscellaneous Agency Services           ,587,10/09/2015,Rev,WOODLANDS                     
528,Adult Social Care,OP 65&Over Resi Care Placement,OP East - Residential Care Ext,W2LH55,Third Party Payments          ,Private Contractors           ,EH01,Miscellaneous Agency Services           ,587,10/09/2015,Rev,WOODLANDS                     
529,Adult Social Care,OP 65&Over Resi Care Placement,OP East - Residential Care Ext,W2LH55,Third Party Payments          ,Private Contractors           ,EH01,Miscellaneous Agency Services           ,587,10/09/2015,Rev,WOODLANDS                     
530,Adult Social Care,OP 65&Over Resi Care Placement,OP East - Residential Care Ext,W2LH55,Third Party Payments          ,Private Contractors           ,EH01,Miscellaneous Agency Services           ,587,10/09/2015,Rev,WOODLANDS                     
531,Adult Social Care,OP 65&Over Resi Care Placement,OP East - Residential Care Ext,W2LH55,Third Party Payments          ,Private Contractors           ,EH01,Miscellaneous Agency Services           ,587,10/09/2015,Rev,WOODLANDS                     
532,Adult Social Care,OP 65&Over Resi Care Placement,OP East - Residential Care Ext,W2LH55,Third Party Payments          ,Private Contractors           ,EH01,Miscellaneous Agency Services           ,587,10/09/2015,Rev,WOODLANDS                     
533,Adult Social Care,OP 65&Over Resi Care Placement,OP East - Residential Care Ext,W2LH55,Third Party Payments          ,Private Contractors           ,EH01,Miscellaneous Agency Services           ,587,10/09/2015,Rev,WOODLANDS                     
534,Adult Social Care,OP 65&Over Resi Care Placement,OP East - Residential Care Ext,W2LH55,Third Party Payments          ,Private Contractors           ,EH01,Miscellaneous Agency Services           ,587,10/09/2015,Rev,WOODLANDS                     
535,Adult Social Care,OP 65&Over Resi Care Placement,OP East - Residential Care Ext,W2LH55,Third Party Payments          ,Private Contractors           ,EH01,Miscellaneous Agency Services           ,587,10/09/2015,Rev,WOODLANDS                     
536,Adult Social Care,OP 65&Over Resi Care Placement,OP East - Residential Care Ext,W2LH55,Third Party Payments          ,Private Contractors           ,EH01,Miscellaneous Agency Services           ,587,10/09/2015,Rev,WOODLANDS                     
537,Adult Social Care,OP 65&Over Resi Care Placement,OP East - Residential Care Ext,W2LH55,Third Party Payments          ,Private Contractors           ,EH01,Miscellaneous Agency Services           ,587,10/09/2015,Rev,WOODLANDS                     
538,Adult Social Care,OP 65&Over Resi Care Placement,OP East - Residential Care Ext,W2LH55,Third Party Payments          ,Private Contractors           ,EH01,Miscellaneous Agency Services           ,587,10/09/2015,Rev,WOODLANDS                     
539,Adult Social Care,OP 65&Over Resi Care Placement,OP R/Park-Residential Care Ext,W2LR55,Third Party Payments          ,Private Contractors           ,EH01,Miscellaneous Agency Services           ,587,10/09/2015,Rev,WOODLANDS                     
540,Adult Social Care,OP 65&Over Resi Care Placement,OP R/Park-Residential Care Ext,W2LR55,Third Party Payments          ,Private Contractors           ,EH01,Miscellaneous Agency Services           ,587,10/09/2015,Rev,WOODLANDS                     
541,Adult Social Care,OP 65&Over Resi Care Placement,OP R/Park-Residential Care Ext,W2LR55,Third Party Payments          ,Private Contractors           ,EH01,Miscellaneous Agency Services           ,587,10/09/2015,Rev,WOODLANDS                     
542,Adult Social Care,OP 65&Over Resi Care Placement,OP R/Park-Residential Care Ext,W2LR55,Third Party Payments          ,Private Contractors           ,EH01,Miscellaneous Agency Services           ,587,10/09/2015,Rev,WOODLANDS                     
543,Adult Social Care,OP 65&Over Resi Care Placement,OP R/Park-Residential Care Ext,W2LR55,Third Party Payments          ,Private Contractors           ,EH01,Miscellaneous Agency Services           ,587,10/09/2015,Rev,WOODLANDS                     
544,Adult Social Care,OP 65&Over Resi Care Placement,OP R/Park-Residential Care Ext,W2LR55,Third Party Payments          ,Private Contractors           ,EH01,Miscellaneous Agency Services           ,587,10/09/2015,Rev,WOODLANDS                     
545,Adult Social Care,OP 65&Over Resi Care Placement,OP R/Park-Residential Care Ext,W2LR55,Third Party Payments          ,Private Contractors           ,EH01,Miscellaneous Agency Services           ,587,10/09/2015,Rev,WOODLANDS                     
546,Adult Social Care,OP 65&Over Resi Care Placement,OP R/Park-Residential Care Ext,W2LR55,Third Party Payments          ,Private Contractors           ,EH01,Miscellaneous Agency Services           ,587,10/09/2015,Rev,WOODLANDS                     
547,Adult Social Care,OP 65&Over Resi Care Placement,OP R/Park-Residential Care Ext,W2LR55,Third Party Payments          ,Private Contractors           ,EH01,Miscellaneous Agency Services           ,587,10/09/2015,Rev,WOODLANDS                     
548,Adult Social Care,OP 65&Over Resi Care Placement,OP R/Park-Residential Care Ext,W2LR55,Third Party Payments          ,Private Contractors           ,EH01,Miscellaneous Agency Services           ,587,10/09/2015,Rev,WOODLANDS                     
549,Adult Social Care,OP 65&Over Resi Care Placement,OP R/Park-Residential Care Ext,W2LR55,Third Party Payments          ,Private Contractors           ,EH01,Miscellaneous Agency Services           ,587,10/09/2015,Rev,WOODLANDS                     
550,Adult Social Care,OP 65&Over Resi Care Placement,OP R/Park-Residential Care Ext,W2LR55,Third Party Payments          ,Private Contractors           ,EH01,Miscellaneous Agency Services           ,587,10/09/2015,Rev,WOODLANDS                     
551,Adult Social Care,OP 65&Over Resi Care Placement,OP R/Park-Residential Care Ext,W2LR55,Third Party Payments          ,Private Contractors           ,EH01,Miscellaneous Agency Services           ,587,10/09/2015,Rev,WOODLANDS                     
552,Adult Social Care,OP 65&Over Resi Care Placement,OP R/Park-Residential Care Ext,W2LR55,Third Party Payments          ,Private Contractors           ,EH01,Miscellaneous Agency Services           ,587,10/09/2015,Rev,WOODLANDS                     
553,Adult Social Care,OP 65&Over Resi Care Placement,OP R/Park-Residential Care Ext,W2LR55,Third Party Payments          ,Private Contractors           ,EH01,Miscellaneous Agency Services           ,587,10/09/2015,Rev,WOODLANDS                     
554,Adult Social Care,OP 65&Over Resi Care Placement,OP R/Park-Residential Care Ext,W2LR55,Third Party Payments          ,Private Contractors           ,EH01,Miscellaneous Agency Services           ,587,10/09/2015,Rev,WOODLANDS                     
555,Adult Social Care,OP 65&Over Resi Care Placement,OP R/Park-Residential Care Ext,W2LR55,Third Party Payments          ,Private Contractors           ,EH01,Miscellaneous Agency Services           ,587,10/09/2015,Rev,WOODLANDS                     
556,Adult Social Care,OP 65&Over Resi Care Placement,OP R/Park-Residential Care Ext,W2LR55,Third Party Payments          ,Private Contractors           ,EH01,Miscellaneous Agency Services           ,587,10/09/2015,Rev,WOODLANDS                     
557,Adult Social Care,OP 65&Over Resi Care Placement,OP R/Park-Residential Care Ext,W2LR55,Third Party Payments          ,Private Contractors           ,EH01,Miscellaneous Agency Services           ,587,10/09/2015,Rev,WOODLANDS                     
558,Adult Social Care,OP 65&Over Resi Care Placement,OP R/Park-Residential Care Ext,W2LR55,Third Party Payments          ,Private Contractors           ,EH01,Miscellaneous Agency Services           ,587,10/09/2015,Rev,WOODLANDS                     
559,Adult Social Care,OP 65&Over Resi Care Placement,OP R/Park-Residential Care Ext,W2LR55,Third Party Payments          ,Private Contractors           ,EH01,Miscellaneous Agency Services           ,587,10/09/2015,Rev,WOODLANDS                     
560,Adult Social Care,OP 65&Over Resi Care Placement,OP R/Park-Residential Care Ext,W2LR55,Third Party Payments          ,Private Contractors           ,EH01,Miscellaneous Agency Services           ,587,10/09/2015,Rev,WOODLANDS                     
561,Adult Social Care,OP 65&Over Resi Care Placement,OP R/Park-Residential Care Ext,W2LR55,Third Party Payments          ,Private Contractors           ,EH01,Miscellaneous Agency Services           ,587,10/09/2015,Rev,WOODLANDS                     
562,Adult Social Care,OP 65&Over Resi Care Placement,OP R/Park-Residential Care Ext,W2LR55,Third Party Payments          ,Private Contractors           ,EH01,Miscellaneous Agency Services           ,587,10/09/2015,Rev,WOODLANDS                     
563,Adult Social Care,OP 65&Over Resi Care Placement,OP R/Park-Residential Care Ext,W2LR55,Third Party Payments          ,Private Contractors           ,EH01,Miscellaneous Agency Services           ,587,10/09/2015,Rev,WOODLANDS                     
564,Adult Social Care,OP 65&Over Resi Care Placement,OP R/Park-Residential Care Ext,W2LR55,Third Party Payments          ,Private Contractors           ,EH01,Miscellaneous Agency Services           ,587,10/09/2015,Rev,WOODLANDS                     
565,Adult Social Care,OP 65&Over Resi Care Placement,OP R/Park-Residential Care Ext,W2LR55,Third Party Payments          ,Private Contractors           ,EH01,Miscellaneous Agency Services           ,587,10/09/2015,Rev,WOODLANDS                     
566,Adult Social Care,OP 65&Over Resi Care Placement,OP R/Park-Residential Care Ext,W2LR55,Third Party Payments          ,Private Contractors           ,EH01,Miscellaneous Agency Services           ,587,10/09/2015,Rev,WOODLANDS                     
567,Adult Social Care,OP 65&Over Resi Care Placement,OP R/Park-Residential Care Ext,W2LR55,Third Party Payments          ,Private Contractors           ,EH01,Miscellaneous Agency Services           ,587,10/09/2015,Rev,WOODLANDS                     
568,Adult Social Care,OP 65&Over Resi Care Placement,OP R/Park-Residential Care Ext,W2LR55,Third Party Payments          ,Private Contractors           ,EH01,Miscellaneous Agency Services           ,587,10/09/2015,Rev,WOODLANDS                     
569,Adult Social Care,OP 65&Over Resi Care Placement,OP R/Park-Residential Care Ext,W2LR55,Third Party Payments          ,Private Contractors           ,EH01,Miscellaneous Agency Services           ,587,10/09/2015,Rev,WOODLANDS                     
570,Adult Social Care,OP 65&Over Resi Care Placement,OP R/Park-Residential Care Ext,W2LR55,Third Party Payments          ,Private Contractors           ,EH01,Miscellaneous Agency Services           ,587,10/09/2015,Rev,WOODLANDS                     
571,Adult Social Care,OP 65&Over NursingCarePlacemts,OP East - Nursing Care,W2LH53,Third Party Payments          ,Private Contractors           ,EH01,Miscellaneous Agency Services           ,633.43,10/09/2015,Rev,LINK HOUSE                    
572,Adult Social Care,OP 65&Over NursingCarePlacemts,OP R/Park - Nursing Care,W2LR53,Third Party Payments          ,Private Contractors           ,EH01,Miscellaneous Agency Services           ,654.55,10/09/2015,Rev,LINK HOUSE                    
573,Adult Social Care,OP 65&Over NursingCarePlacemts,OP R/Park - Nursing Care,W2LR53,Third Party Payments          ,Private Contractors           ,EH01,Miscellaneous Agency Services           ,654.55,10/09/2015,Rev,LINK HOUSE                    
574,Adult Social Care,OP 65&Over NursingCarePlacemts,OP R/Park - Nursing Care,W2LR53,Third Party Payments          ,Private Contractors           ,EH01,Miscellaneous Agency Services           ,654.55,10/09/2015,Rev,LINK HOUSE                    
575,Adult Social Care,OP 65&Over NursingCarePlacemts,OP R/Park - Nursing Care,W2LR53,Third Party Payments          ,Private Contractors           ,EH01,Miscellaneous Agency Services           ,654.55,10/09/2015,Rev,LINK HOUSE                    
576,Adult Social Care,OP 65&Over NursingCarePlacemts,OP R/Park - Nursing Care,W2LR53,Third Party Payments          ,Private Contractors           ,EH01,Miscellaneous Agency Services           ,654.55,10/09/2015,Rev,LINK HOUSE                    
577,Adult Social Care,OP 65&Over NursingCarePlacemts,OP R/Park - Nursing Care,W2LR53,Third Party Payments          ,Private Contractors           ,EH01,Miscellaneous Agency Services           ,654.55,10/09/2015,Rev,LINK HOUSE                    
578,Adult Social Care,OP 65&Over NursingCarePlacemts,OP R/Park - Nursing Care,W2LR53,Third Party Payments          ,Private Contractors           ,EH01,Miscellaneous Agency Services           ,654.55,10/09/2015,Rev,LINK HOUSE                    
579,Adult Social Care,OP 65&Over NursingCarePlacemts,OP R/Park - Nursing Care,W2LR53,Third Party Payments          ,Private Contractors           ,EH01,Miscellaneous Agency Services           ,654.55,10/09/2015,Rev,LINK HOUSE                    
580,Adult Social Care,OP 65&Over NursingCarePlacemts,OP R/Park - Nursing Care,W2LR53,Third Party Payments          ,Private Contractors           ,EH01,Miscellaneous Agency Services           ,654.55,10/09/2015,Rev,LINK HOUSE                    
581,Adult Social Care,OP 65&Over NursingCarePlacemts,OP R/Park - Nursing Care,W2LR53,Third Party Payments          ,Private Contractors           ,EH01,Miscellaneous Agency Services           ,654.55,10/09/2015,Rev,LINK HOUSE                    
582,Adult Social Care,OP 65&Over NursingCarePlacemts,OP R/Park - Nursing Care,W2LR53,Third Party Payments          ,Private Contractors           ,EH01,Miscellaneous Agency Services           ,654.55,10/09/2015,Rev,LINK HOUSE                    
583,Adult Social Care,OP 65&Over NursingCarePlacemts,OP R/Park - Nursing Care,W2LR53,Third Party Payments          ,Private Contractors           ,EH01,Miscellaneous Agency Services           ,654.55,10/09/2015,Rev,LINK HOUSE                    
584,Adult Social Care,OP 65&Over NursingCarePlacemts,OP R/Park - Nursing Care,W2LR53,Third Party Payments          ,Private Contractors           ,EH01,Miscellaneous Agency Services           ,654.55,10/09/2015,Rev,LINK HOUSE                    
585,Adult Social Care,OP 65&Over NursingCarePlacemts,OP R/Park - Nursing Care,W2LR53,Third Party Payments          ,Private Contractors           ,EH01,Miscellaneous Agency Services           ,654.55,10/09/2015,Rev,LINK HOUSE                    
586,Adult Social Care,OP 65&Over NursingCarePlacemts,OP R/Park - Nursing Care,W2LR53,Third Party Payments          ,Private Contractors           ,EH01,Miscellaneous Agency Services           ,654.55,10/09/2015,Rev,LINK HOUSE                    
587,Adult Social Care,OP 65&Over NursingCarePlacemts,OP R/Park - Nursing Care,W2LR53,Third Party Payments          ,Private Contractors           ,EH01,Miscellaneous Agency Services           ,654.55,10/09/2015,Rev,LINK HOUSE                    
588,Adult Social Care,OP 65&Over NursingCarePlacemts,OP West - Nursing Care,W2LG53,Third Party Payments          ,Private Contractors           ,EH01,Miscellaneous Agency Services           ,739,10/09/2015,Rev,LINK HOUSE                    
589,Adult Social Care,OP 65&Over NursingCarePlacemts,OP West - Nursing Care,W2LG53,Third Party Payments          ,Private Contractors           ,EH01,Miscellaneous Agency Services           ,739,10/09/2015,Rev,LINK HOUSE                    
590,Adult Social Care,OP 65&Over NursingCarePlacemts,OP West - Nursing Care,W2LG53,Third Party Payments          ,Private Contractors           ,EH01,Miscellaneous Agency Services           ,739,10/09/2015,Rev,LINK HOUSE                    
591,Adult Social Care,OP 65&Over NursingCarePlacemts,OP West - Nursing Care,W2LG53,Third Party Payments          ,Private Contractors           ,EH01,Miscellaneous Agency Services           ,739,10/09/2015,Rev,LINK HOUSE                    
592,Adult Social Care,OP 65&Over NursingCarePlacemts,OP West - Nursing Care,W2LG53,Third Party Payments          ,Private Contractors           ,EH01,Miscellaneous Agency Services           ,739,10/09/2015,Rev,LINK HOUSE                    
593,Adult Social Care,OP 65&Over NursingCarePlacemts,OP West - Nursing Care,W2LG53,Third Party Payments          ,Private Contractors           ,EH01,Miscellaneous Agency Services           ,739,10/09/2015,Rev,LINK HOUSE                    
594,Adult Social Care,OP 65&Over NursingCarePlacemts,OP West - Nursing Care,W2LG53,Third Party Payments          ,Private Contractors           ,EH01,Miscellaneous Agency Services           ,739,10/09/2015,Rev,LINK HOUSE                    
595,Adult Social Care,OP 65&Over NursingCarePlacemts,OP West - Nursing Care,W2LG53,Third Party Payments          ,Private Contractors           ,EH01,Miscellaneous Agency Services           ,739,10/09/2015,Rev,LINK HOUSE                    
596,Adult Social Care,OP 65&Over NursingCarePlacemts,OP West - Nursing Care,W2LG53,Third Party Payments          ,Private Contractors           ,EH01,Miscellaneous Agency Services           ,739,10/09/2015,Rev,LINK HOUSE                    
597,Adult Social Care,OP 65&Over NursingCarePlacemts,OP East - Nursing Care,W2LH53,Third Party Payments          ,Private Contractors           ,EH01,Miscellaneous Agency Services           ,739,10/09/2015,Rev,LINK HOUSE                    
598,Adult Social Care,OP 65&Over NursingCarePlacemts,OP East - Nursing Care,W2LH53,Third Party Payments          ,Private Contractors           ,EH01,Miscellaneous Agency Services           ,739,10/09/2015,Rev,LINK HOUSE                    
599,Adult Social Care,OP 65&Over NursingCarePlacemts,OP East - Nursing Care,W2LH53,Third Party Payments          ,Private Contractors           ,EH01,Miscellaneous Agency Services           ,739,10/09/2015,Rev,LINK HOUSE                    
600,Adult Social Care,OP 65&Over NursingCarePlacemts,OP East - Nursing Care,W2LH53,Third Party Payments          ,Private Contractors           ,EH01,Miscellaneous Agency Services           ,739,10/09/2015,Rev,LINK HOUSE                    
601,Adult Social Care,OP 65&Over NursingCarePlacemts,OP East - Nursing Care,W2LH53,Third Party Payments          ,Private Contractors           ,EH01,Miscellaneous Agency Services           ,739,10/09/2015,Rev,LINK HOUSE                    
602,Adult Social Care,OP 65&Over NursingCarePlacemts,OP East - Nursing Care,W2LH53,Third Party Payments          ,Private Contractors           ,EH01,Miscellaneous Agency Services           ,739,10/09/2015,Rev,LINK HOUSE                    
603,Adult Social Care,OP 65&Over NursingCarePlacemts,OP East - Nursing Care,W2LH53,Third Party Payments          ,Private Contractors           ,EH01,Miscellaneous Agency Services           ,739,10/09/2015,Rev,LINK HOUSE                    
604,Adult Social Care,OP 65&Over NursingCarePlacemts,OP East - Nursing Care,W2LH53,Third Party Payments          ,Private Contractors           ,EH01,Miscellaneous Agency Services           ,739,10/09/2015,Rev,LINK HOUSE                    
605,Adult Social Care,OP 65&Over NursingCarePlacemts,OP East - Nursing Care,W2LH53,Third Party Payments          ,Private Contractors           ,EH01,Miscellaneous Agency Services           ,739,10/09/2015,Rev,LINK HOUSE                    
606,Adult Social Care,OP 65&Over NursingCarePlacemts,OP East - Nursing Care,W2LH53,Third Party Payments          ,Private Contractors           ,EH01,Miscellaneous Agency Services           ,739,10/09/2015,Rev,LINK HOUSE                    
607,Adult Social Care,OP 65&Over NursingCarePlacemts,OP R/Park - Nursing Care,W2LR53,Third Party Payments          ,Private Contractors           ,EH01,Miscellaneous Agency Services           ,739,10/09/2015,Rev,LINK HOUSE                    
608,Adult Social Care,OP 65&Over NursingCarePlacemts,OP R/Park - Nursing Care,W2LR53,Third Party Payments          ,Private Contractors           ,EH01,Miscellaneous Agency Services           ,739,10/09/2015,Rev,LINK HOUSE                    
609,Adult Social Care,OP 65&Over NursingCarePlacemts,OP R/Park - Nursing Care,W2LR53,Third Party Payments          ,Private Contractors           ,EH01,Miscellaneous Agency Services           ,739,10/09/2015,Rev,LINK HOUSE                    
610,Adult Social Care,OP 65&Over NursingCarePlacemts,OP R/Park - Nursing Care,W2LR53,Third Party Payments          ,Private Contractors           ,EH01,Miscellaneous Agency Services           ,739,10/09/2015,Rev,LINK HOUSE                    
611,Adult Social Care,OP 65&Over NursingCarePlacemts,OP R/Park - Nursing Care,W2LR53,Third Party Payments          ,Private Contractors           ,EH01,Miscellaneous Agency Services           ,739,10/09/2015,Rev,LINK HOUSE                    
612,Adult Social Care,OP 65&Over NursingCarePlacemts,OP R/Park - Nursing Care,W2LR53,Third Party Payments          ,Private Contractors           ,EH01,Miscellaneous Agency Services           ,739,10/09/2015,Rev,LINK HOUSE                    
613,Adult Social Care,OP 65&Over NursingCarePlacemts,OP R/Park - Nursing Care,W2LR53,Third Party Payments          ,Private Contractors           ,EH01,Miscellaneous Agency Services           ,739,10/09/2015,Rev,LINK HOUSE                    
614,Adult Social Care,OP 65&Over NursingCarePlacemts,OP R/Park - Nursing Care,W2LR53,Third Party Payments          ,Private Contractors           ,EH01,Miscellaneous Agency Services           ,739,10/09/2015,Rev,LINK HOUSE                    
615,Adult Social Care,OP 65&Over NursingCarePlacemts,OP R/Park - Nursing Care,W2LR53,Third Party Payments          ,Private Contractors           ,EH01,Miscellaneous Agency Services           ,739,10/09/2015,Rev,LINK HOUSE                    
616,Adult Social Care,OP 65&Over NursingCarePlacemts,OP R/Park - Nursing Care,W2LR53,Third Party Payments          ,Private Contractors           ,EH01,Miscellaneous Agency Services           ,739,10/09/2015,Rev,LINK HOUSE                    
617,Adult Social Care,OP 65&Over NursingCarePlacemts,OP R/Park - Nursing Care,W2LR53,Third Party Payments          ,Private Contractors           ,EH01,Miscellaneous Agency Services           ,739,10/09/2015,Rev,LINK HOUSE                    
618,Adult Social Care,OP 65&Over NursingCarePlacemts,OP R/Park - Nursing Care,W2LR53,Third Party Payments          ,Private Contractors           ,EH01,Miscellaneous Agency Services           ,739,10/09/2015,Rev,LINK HOUSE                    
619,Adult Social Care,OP 65&Over NursingCarePlacemts,OP R/Park - Nursing Care,W2LR53,Third Party Payments          ,Private Contractors           ,EH01,Miscellaneous Agency Services           ,739,10/09/2015,Rev,LINK HOUSE                    
620,Adult Social Care,OP 65&Over NursingCarePlacemts,OP R/Park - Nursing Care,W2LR53,Third Party Payments          ,Private Contractors           ,EH01,Miscellaneous Agency Services           ,739,10/09/2015,Rev,LINK HOUSE                    
621,Adult Social Care,OP 65&Over NursingCarePlacemts,OP R/Park - Nursing Care,W2LR53,Third Party Payments          ,Private Contractors           ,EH01,Miscellaneous Agency Services           ,739,10/09/2015,Rev,LINK HOUSE                    
622,Adult Social Care,OP 65&Over NursingCarePlacemts,OP R/Park - Nursing Care,W2LR53,Third Party Payments          ,Private Contractors           ,EH01,Miscellaneous Agency Services           ,739,10/09/2015,Rev,LINK HOUSE                    
623,Adult Social Care,OP 65&Over NursingCarePlacemts,OP R/Park - Nursing Care,W2LR53,Third Party Payments          ,Private Contractors           ,EH01,Miscellaneous Agency Services           ,739,10/09/2015,Rev,LINK HOUSE                    
624,Adult Social Care,OP 65&Over NursingCarePlacemts,OP R/Park - Nursing Care,W2LR53,Third Party Payments          ,Private Contractors           ,EH01,Miscellaneous Agency Services           ,739,10/09/2015,Rev,LINK HOUSE                    
625,Adult Social Care,OP 65&Over NursingCarePlacemts,OP R/Park - Nursing Care,W2LR53,Third Party Payments          ,Private Contractors           ,EH01,Miscellaneous Agency Services           ,739,10/09/2015,Rev,LINK HOUSE                    
626,Adult Social Care,OP 65&Over NursingCarePlacemts,OP R/Park - Nursing Care,W2LR53,Third Party Payments          ,Private Contractors           ,EH01,Miscellaneous Agency Services           ,739,10/09/2015,Rev,LINK HOUSE                    
627,Adult Social Care,OP 65&Over NursingCarePlacemts,OP West - Nursing Care,W2LG53,Third Party Payments          ,Private Contractors           ,EH01,Miscellaneous Agency Services           ,739,10/09/2015,Rev,WOODLANDS                     
628,Adult Social Care,OP 65&Over NursingCarePlacemts,OP West - Nursing Care,W2LG53,Third Party Payments          ,Private Contractors           ,EH01,Miscellaneous Agency Services           ,739,10/09/2015,Rev,WOODLANDS                     
629,Adult Social Care,OP 65&Over NursingCarePlacemts,OP West - Nursing Care,W2LG53,Third Party Payments          ,Private Contractors           ,EH01,Miscellaneous Agency Services           ,739,10/09/2015,Rev,WOODLANDS                     
630,Adult Social Care,OP 65&Over NursingCarePlacemts,OP West - Nursing Care,W2LG53,Third Party Payments          ,Private Contractors           ,EH01,Miscellaneous Agency Services           ,739,10/09/2015,Rev,WOODLANDS                     
631,Adult Social Care,OP 65&Over NursingCarePlacemts,OP West - Nursing Care,W2LG53,Third Party Payments          ,Private Contractors           ,EH01,Miscellaneous Agency Services           ,739,10/09/2015,Rev,WOODLANDS                     
632,Adult Social Care,OP 65&Over NursingCarePlacemts,OP West - Nursing Care,W2LG53,Third Party Payments          ,Private Contractors           ,EH01,Miscellaneous Agency Services           ,739,10/09/2015,Rev,WOODLANDS                     
633,Adult Social Care,OP 65&Over NursingCarePlacemts,OP West - Nursing Care,W2LG53,Third Party Payments          ,Private Contractors           ,EH01,Miscellaneous Agency Services           ,739,10/09/2015,Rev,WOODLANDS                     
634,Adult Social Care,OP 65&Over NursingCarePlacemts,OP West - Nursing Care,W2LG53,Third Party Payments          ,Private Contractors           ,EH01,Miscellaneous Agency Services           ,739,10/09/2015,Rev,WOODLANDS                     
635,Adult Social Care,OP 65&Over NursingCarePlacemts,OP West - Nursing Care,W2LG53,Third Party Payments          ,Private Contractors           ,EH01,Miscellaneous Agency Services           ,739,10/09/2015,Rev,WOODLANDS                     
636,Adult Social Care,OP 65&Over NursingCarePlacemts,OP West - Nursing Care,W2LG53,Third Party Payments          ,Private Contractors           ,EH01,Miscellaneous Agency Services           ,739,10/09/2015,Rev,WOODLANDS                     
637,Adult Social Care,OP 65&Over NursingCarePlacemts,OP West - Nursing Care,W2LG53,Third Party Payments          ,Private Contractors           ,EH01,Miscellaneous Agency Services           ,739,10/09/2015,Rev,WOODLANDS                     
638,Adult Social Care,OP 65&Over NursingCarePlacemts,OP West - Nursing Care,W2LG53,Third Party Payments          ,Private Contractors           ,EH01,Miscellaneous Agency Services           ,739,10/09/2015,Rev,WOODLANDS                     
639,Adult Social Care,OP 65&Over NursingCarePlacemts,OP R/Park - Nursing Care,W2LR53,Third Party Payments          ,Private Contractors           ,EH01,Miscellaneous Agency Services           ,739,10/09/2015,Rev,WOODLANDS                     
640,Adult Social Care,OP 65&Over NursingCarePlacemts,OP R/Park - Nursing Care,W2LR53,Third Party Payments          ,Private Contractors           ,EH01,Miscellaneous Agency Services           ,739,10/09/2015,Rev,WOODLANDS                     
641,Adult Social Care,OP 65&Over NursingCarePlacemts,OP R/Park - Nursing Care,W2LR53,Third Party Payments          ,Private Contractors           ,EH01,Miscellaneous Agency Services           ,739,10/09/2015,Rev,WOODLANDS                     
642,Adult Social Care,OP 65&Over NursingCarePlacemts,OP R/Park - Nursing Care,W2LR53,Third Party Payments          ,Private Contractors           ,EH01,Miscellaneous Agency Services           ,739,10/09/2015,Rev,WOODLANDS                     
643,Adult Social Care,OP 65&Over NursingCarePlacemts,OP R/Park - Nursing Care,W2LR53,Third Party Payments          ,Private Contractors           ,EH01,Miscellaneous Agency Services           ,739,10/09/2015,Rev,WOODLANDS                     
644,Adult Social Care,OP 65&Over NursingCarePlacemts,OP R/Park - Nursing Care,W2LR53,Third Party Payments          ,Private Contractors           ,EH01,Miscellaneous Agency Services           ,739,10/09/2015,Rev,WOODLANDS                     
645,Adult Social Care,OP 65&Over NursingCarePlacemts,OP R/Park - Nursing Care,W2LR53,Third Party Payments          ,Private Contractors           ,EH01,Miscellaneous Agency Services           ,739,10/09/2015,Rev,WOODLANDS                     
646,Adult Social Care,OP 65&Over NursingCarePlacemts,OP R/Park - Nursing Care,W2LR53,Third Party Payments          ,Private Contractors           ,EH01,Miscellaneous Agency Services           ,739,10/09/2015,Rev,WOODLANDS                     
647,Childrens & Education Services,CS - Commiss'ing & Social Work,Children's Central SW Serv              ,W1CB01,Supplies & Services           ,Services                      ,DF03,Consultants                             ,1020,10/09/2015,Rev,MAKING A DIFFERENCE           
648,,,IT Equipment                            ,CT006EA,Other Capital Expenditure,,E3,Miscellaneous Capital Expendit          ,2700,11/09/2015,Cap,XMA LIMITED                   
649,Cultural Env Reg&Plan Services,Recycling (Collection),BARROW AND BINS REPLACEMENT,G00641,Supplies & Services           ,Equip Furniture/Materials     ,DA09,STREET BARROWS                          ,11181.13,11/09/2015,Rev,GLASDON UK LTD                
650,Adult Social Care,OP 65&Over NursingCarePlacemts,OP East - Nursing Care,W2LH53,Third Party Payments          ,Private Contractors           ,EH01,Miscellaneous Agency Services           ,547.05,13/09/2015,Rev,SUTTON NURSING HOMES LTD      
651,Cultural Env Reg&Plan Services,Mgt & Sup (Cult),Leisure Dev  Service Support,P04060,Supplies & Services           ,Equip Furniture/Materials     ,DA30,Memorial seats - purchase               ,630,13/09/2015,Rev,WOODCRAFT UK                  
652,Adult Social Care,OP 65&Over NursingCarePlacemts,OP East - Nursing Care,W2LH53,Third Party Payments          ,Private Contractors           ,EH01,Miscellaneous Agency Services           ,638.22,13/09/2015,Rev,SUTTON NURSING HOMES LTD      
653,Adult Social Care,PS u65 Residentl Care Placemnt,PS ResidentialCare Ext- NRTPF,W7AD55,Third Party Payments          ,Private Contractors           ,EH01,Miscellaneous Agency Services           ,504,14/09/2015,Rev,BUPA CARE HOMES (ANS) LTD     
654,Adult Social Care,PS u65 Residentl Care Placemnt,PS ResidentialCare Ext- NRTPF,W7AD55,Third Party Payments          ,Private Contractors           ,EH01,Miscellaneous Agency Services           ,504,14/09/2015,Rev,BUPA CARE HOMES (ANS) LTD     
655,Adult Social Care,PS u65 Residentl Care Placemnt,PS ResidentialCare Ext- NRTPF,W7AD55,Third Party Payments          ,Private Contractors           ,EH01,Miscellaneous Agency Services           ,504,14/09/2015,Rev,BUPA CARE HOMES (ANS) LTD     
656,Adult Social Care,PS u65 Residentl Care Placemnt,PS ResidentialCare Ext- NRTPF,W7AD55,Third Party Payments          ,Private Contractors           ,EH01,Miscellaneous Agency Services           ,504,14/09/2015,Rev,BUPA CARE HOMES (ANS) LTD     
657,Childrens & Education Services,Fostering Services,ART Independent Agency Foster,W1DE46,Supplies & Services           ,Services                      ,DF53,Task Based Fostering                    ,767.97,14/09/2015,Rev,MOMENTS FOSTERING             
658,Childrens & Education Services,Fostering Services,ART Independent Agency Foster,W1DE46,Supplies & Services           ,Services                      ,DF53,Task Based Fostering                    ,767.97,14/09/2015,Rev,MOMENTS FOSTERING             
659,Childrens & Education Services,Fostering Services,ART Independent Agency Foster,W1DE46,Supplies & Services           ,Services                      ,DF53,Task Based Fostering                    ,767.97,14/09/2015,Rev,MOMENTS FOSTERING             
660,Childrens & Education Services,Fostering Services,ART Independent Agency Foster,W1DE46,Supplies & Services           ,Services                      ,DF53,Task Based Fostering                    ,767.97,14/09/2015,Rev,MOMENTS FOSTERING             
661,Adult Social Care,PS u65 Nursing Care Placements,PS Nursing Care - NRTPF,W7AD53,Third Party Payments          ,Private Contractors           ,EH01,Miscellaneous Agency Services           ,900,14/09/2015,Rev,BUPA CARE HOMES (ANS) LTD     
662,Adult Social Care,PS u65 Nursing Care Placements,PS Nursing Care - NRTPF,W7AD53,Third Party Payments          ,Private Contractors           ,EH01,Miscellaneous Agency Services           ,900,14/09/2015,Rev,BUPA CARE HOMES (ANS) LTD     
663,Adult Social Care,PS u65 Nursing Care Placements,PS Nursing Care - NRTPF,W7AD53,Third Party Payments          ,Private Contractors           ,EH01,Miscellaneous Agency Services           ,900,14/09/2015,Rev,BUPA CARE HOMES (ANS) LTD     
664,Adult Social Care,PS u65 Nursing Care Placements,PS Nursing Care - NRTPF,W7AD53,Third Party Payments          ,Private Contractors           ,EH01,Miscellaneous Agency Services           ,900,14/09/2015,Rev,BUPA CARE HOMES (ANS) LTD     
665,CS -Oth Operating Inc & Expend,T/A Vehicle Maintenance etc,Transport-Contract Hire,J01374,Transport Related Expenditure ,Contract Hire and Op Leasing  ,CC53,Plant Hire for MRCS                     ,610,15/09/2015,Rev,PFB HIRE LTD                  
666,Cultural Env Reg&Plan Services,Comm Safety (Crime Reduction),Crime and Strategy Team,A01100,Supplies & Services           ,Expenses                      ,DH50,Special Projects                        ,2545,15/09/2015,Rev,COMMONSIDE COMMUNITY DEV TRUST
667,Central Services,SupS Legal,Richmond Legal,E10289,Supplies & Services           ,Services                      ,DF11,Counsel's Fees                          ,525,16/09/2015,Rev,REDACTED
668,Adult Social Care,LD u65 Home Care,LD Home Care External,W2KB49,Third Party Payments          ,Private Contractors           ,EH01,Miscellaneous Agency Services           ,650,16/09/2015,Rev,HOLISTIC COMMUNITY CARE LTD   
669,Adult Social Care,LD u65 Home Care,LD Home Care External,W2KB49,Third Party Payments          ,Private Contractors           ,EH01,Miscellaneous Agency Services           ,650,16/09/2015,Rev,HOLISTIC COMMUNITY CARE LTD   
670,Adult Social Care,LD u65 Home Care,LD Home Care External,W2KB49,Third Party Payments          ,Private Contractors           ,EH01,Miscellaneous Agency Services           ,650,16/09/2015,Rev,HOLISTIC COMMUNITY CARE LTD   
671,Adult Social Care,LD u65 Home Care,LD Home Care External,W2KB49,Third Party Payments          ,Private Contractors           ,EH01,Miscellaneous Agency Services           ,650,16/09/2015,Rev,HOLISTIC COMMUNITY CARE LTD   
672,Childrens & Education Services,Standards Fund - Non Delegated,SWIS Discretionary Payments             ,W1FA41,Third Party Payments          ,Private Contractors           ,EH01,Miscellaneous Contrct Services          ,1382.43,16/09/2015,Rev,MCMILLAN WILLIAMS SOLICITORS  
673,Public Health,PH - Sexual Health,PH � STI Testing and Treatment          ,WPHS02,Supplies & Services           ,Public Health Subjectives,DQ04,GUM                                     ,4793.3,16/09/2015,Rev,CENTRAL&NORTH WEST LONDON NHS 
674,Childrens & Education Services,Asset Management,Centre Commissioned Servs,K08078,Supplies & Services           ,Grants and Subscriptions      ,DJ01,Grants                                  ,7321.5,16/09/2015,Rev,JIGSAW4U                      
675,Adult Social Care,LD u65 Residentl Care Placemnt,LD Residential Care External,W2KB55,Third Party Payments          ,Private Contractors           ,EH01,Miscellaneous Agency Services           ,-1146.96,17/09/2015,Rev,KISIMUL SCHOOL                
676,Childrens & Education Services,CS - Commiss'ing & Social Work,CL IndepAssess Expert Witness,W1DJ63,Supplies & Services           ,Services                      ,DF14,Doctors and Other Fees                  ,533,17/09/2015,Rev,TRICHO-TECH LIMITED           
677,Childrens & Education Services,CS - Commiss'ing & Social Work,CL IndepAssess Expert Witness,W1DJ63,Supplies & Services           ,Services                      ,DF14,Doctors and Other Fees                  ,533,17/09/2015,Rev,TRICHO-TECH LIMITED           
678,Adult Social Care,LD u65 Residentl Care Placemnt,LD Residential Care External,W2KB55,Third Party Payments          ,Private Contractors           ,EH01,Miscellaneous Agency Services           ,1146.96,17/09/2015,Rev,KISIMUL SCHOOL                
679,Adult Social Care,LD u65 Residentl Care Placemnt,LD Residential Care External,W2KB55,Third Party Payments          ,Private Contractors           ,EH01,Miscellaneous Agency Services           ,2676.24,17/09/2015,Rev,KISIMUL SCHOOL                
680,Adult Social Care,LD u65 Residentl Care Placemnt,LD Residential Care External,W2KB55,Third Party Payments          ,Private Contractors           ,EH01,Miscellaneous Agency Services           ,2676.24,17/09/2015,Rev,KISIMUL SCHOOL                
681,Adult Social Care,LD u65 Residentl Care Placemnt,LD Residential Care External,W2KB55,Third Party Payments          ,Private Contractors           ,EH01,Miscellaneous Agency Services           ,2676.24,17/09/2015,Rev,KISIMUL SCHOOL                
682,Adult Social Care,LD u65 Residentl Care Placemnt,LD Residential Care External,W2KB55,Third Party Payments          ,Private Contractors           ,EH01,Miscellaneous Agency Services           ,2676.24,17/09/2015,Rev,KISIMUL SCHOOL                
683,Childrens & Education Services,Support for SEN Pupils,Non-Delegated Statements,K90024,Third Party Payments          ,Other Establishments          ,EG50,Ind Day Schs Payments                   ,33357.33,17/09/2015,Rev,KISIMUL SCHOOL                
684,Adult Social Care,SS IT & Coms,FS Carefirst annual sys costs,W3YA01,Supplies & Services           ,Services                      ,DF03,Consultants                             ,1310.3,18/09/2015,Rev,NUMBER 10 INTERIM LTD         
685,Highways & Transport Services,Saf mtc prin/oth rds not split,Highways GM Contract                    ,P04006,Supplies & Services           ,Equip Furniture/Materials     ,DA09,Equip-Purchases                         ,1800,18/09/2015,Rev,SPALDINGS (UK) LTD            
686,Childrens & Education Services,Support for SEN Pupils,Non-Maintained Post 16 SEN              ,K90052,Third Party Payments          ,Other Establishments          ,EG53,Ind Specialist Providers                ,11747.34,18/09/2015,Rev,ST CATHERINE'S SCHOOL         
687,Central Services,SupS Legal,Sutton Legal                            ,E10293,Supplies & Services           ,Services                      ,DF14,Doctors and Other Fees                  ,4785.2,19/09/2015,Rev,REDACTED
688,Childrens & Education Services,,ART Residential Secure accommo,W1DE58,Third Party Payments          ,Private Contractors           ,EH01,Miscellaneous Agency Services           ,607.14,21/09/2015,Rev,NETPEX LTD                    
689,Adult Social Care,LD u65 Residentl Care Placemnt,LD Residential Care External,W2KB55,Third Party Payments          ,Private Contractors           ,EH01,Miscellaneous Agency Services           ,796.97,21/09/2015,Rev,CAMBIAN WHINFELL SCHOOL       
690,Adult Social Care,LD u65 Residentl Care Placemnt,LD Residential Care External,W2KB55,Third Party Payments          ,Private Contractors           ,EH01,Miscellaneous Agency Services           ,796.97,21/09/2015,Rev,CAMBIAN WHINFELL SCHOOL       
691,Adult Social Care,LD u65 Residentl Care Placemnt,LD Residential Care External,W2KB55,Third Party Payments          ,Private Contractors           ,EH01,Miscellaneous Agency Services           ,796.97,21/09/2015,Rev,CAMBIAN WHINFELL SCHOOL       
692,Adult Social Care,LD u65 Residentl Care Placemnt,LD Residential Care External,W2KB55,Third Party Payments          ,Private Contractors           ,EH01,Miscellaneous Agency Services           ,796.97,21/09/2015,Rev,CAMBIAN WHINFELL SCHOOL       
693,Adult Social Care,LD u65 Residentl Care Placemnt,LD Residential Care External,W2KB55,Third Party Payments          ,Private Contractors           ,EH01,Miscellaneous Agency Services           ,796.97,21/09/2015,Rev,CAMBIAN WHINFELL SCHOOL       
694,Adult Social Care,LD u65 Residentl Care Placemnt,LD Residential Care External,W2KB55,Third Party Payments          ,Private Contractors           ,EH01,Miscellaneous Agency Services           ,796.97,21/09/2015,Rev,CAMBIAN WHINFELL SCHOOL       
695,Adult Social Care,LD u65 Residentl Care Placemnt,LD Residential Care External,W2KB55,Third Party Payments          ,Private Contractors           ,EH01,Miscellaneous Agency Services           ,796.97,21/09/2015,Rev,CAMBIAN WHINFELL SCHOOL       
696,Adult Social Care,LD u65 Residentl Care Placemnt,LD Residential Care External,W2KB55,Third Party Payments          ,Private Contractors           ,EH01,Miscellaneous Agency Services           ,796.97,21/09/2015,Rev,CAMBIAN WHINFELL SCHOOL       
697,Adult Social Care,LD u65 Residentl Care Placemnt,LD Residential Care External,W2KB55,Third Party Payments          ,Private Contractors           ,EH01,Miscellaneous Agency Services           ,796.97,21/09/2015,Rev,CAMBIAN WHINFELL SCHOOL       
698,Adult Social Care,LD u65 Residentl Care Placemnt,LD Residential Care External,W2KB55,Third Party Payments          ,Private Contractors           ,EH01,Miscellaneous Agency Services           ,796.97,21/09/2015,Rev,CAMBIAN WHINFELL SCHOOL       
699,Adult Social Care,LD u65 Residentl Care Placemnt,LD Residential Care External,W2KB55,Third Party Payments          ,Private Contractors           ,EH01,Miscellaneous Agency Services           ,796.97,21/09/2015,Rev,CAMBIAN WHINFELL SCHOOL       
700,Adult Social Care,LD u65 Residentl Care Placemnt,LD Residential Care External,W2KB55,Third Party Payments          ,Private Contractors           ,EH01,Miscellaneous Agency Services           ,796.97,21/09/2015,Rev,CAMBIAN WHINFELL SCHOOL       
701,Childrens & Education Services,,ART Residential Secure accommo,W1DE58,Third Party Payments          ,Private Contractors           ,EH01,Miscellaneous Agency Services           ,850,21/09/2015,Rev,NETPEX LTD                    
702,Childrens & Education Services,,ART Residential Secure accommo,W1DE58,Third Party Payments          ,Private Contractors           ,EH01,Miscellaneous Agency Services           ,850,21/09/2015,Rev,NETPEX LTD                    
703,Childrens & Education Services,,ART Residential Secure accommo,W1DE58,Third Party Payments          ,Private Contractors           ,EH01,Miscellaneous Agency Services           ,850,21/09/2015,Rev,NETPEX LTD                    
704,Childrens & Education Services,,ART Residential Secure accommo,W1DE58,Third Party Payments          ,Private Contractors           ,EH01,Miscellaneous Agency Services           ,850,21/09/2015,Rev,NETPEX LTD                    
705,Childrens & Education Services,,ART Residential Secure accommo,W1DE58,Third Party Payments          ,Private Contractors           ,EH01,Miscellaneous Agency Services           ,850,21/09/2015,Rev,NETPEX LTD                    
706,Cultural Env Reg&Plan Services,Parks & Open Spaces,Morden Parks,P05110,Supplies & Services           ,Equip Furniture/Materials     ,DA04,Materials                               ,1797.6,21/09/2015,Rev,LTSB COMMERCIAL FINANCE LTD   
707,Cultural Env Reg&Plan Services,Mgt & Sup (Cult),Leisure Dev  Service Support,P04060,Supplies & Services           ,Equip Furniture/Materials     ,DA30,Memorial seats - purchase               ,686,22/09/2015,Rev,WOODCRAFT UK                  
708,Childrens & Education Services,Chidren's Homes,ART Residential Placements,W1DE57,Third Party Payments          ,Private Contractors           ,EH01,Miscellaneous Agency Services           ,2000,22/09/2015,Rev,REDACTED
709,Childrens & Education Services,Chidren's Homes,ART Residential Placements,W1DE57,Third Party Payments          ,Private Contractors           ,EH01,Miscellaneous Agency Services           ,2800,22/09/2015,Rev,REDACTED
710,Childrens & Education Services,Chidren's Homes,ART Residential Placements,W1DE57,Third Party Payments          ,Private Contractors           ,EH01,Miscellaneous Agency Services           ,2800,22/09/2015,Rev,REDACTED
711,Childrens & Education Services,Chidren's Homes,ART Residential Placements,W1DE57,Third Party Payments          ,Private Contractors           ,EH01,Miscellaneous Agency Services           ,2800,22/09/2015,Rev,REDACTED
712,Childrens & Education Services,Chidren's Homes,ART Residential Placements,W1DE57,Third Party Payments          ,Private Contractors           ,EH01,Miscellaneous Agency Services           ,2800,22/09/2015,Rev,REDACTED
713,Childrens & Education Services,Support for SEN Pupils,Non-Maintained Post 16 SEN              ,K90052,Third Party Payments          ,Other Establishments          ,EG50,Ind Day Schs Payments                   ,13400,22/09/2015,Rev,CARETRADE CHARITABLE TRUST    
714,Central Services,SupS Health & Safety,Learning and Development,B06146,Employees                     ,Indirect Employee Expenses    ,AB57,EXTERNAL TRAINING COSTS                 ,500,23/09/2015,Rev,COVALENT SOFTWARE LTD         
715,Central Services,SupS Facilities,FM External Fees,E02239,Premises Related Expenditure  ,RepairsAlterations&MtceOfBldgs,BA29,Build Maint Mgt Fees                    ,500,23/09/2015,Rev,PRIORITY RISK LTD             
716,Childrens & Education Services,,ART Residential Secure accommo,W1DE58,Third Party Payments          ,Private Contractors           ,EH01,Miscellaneous Agency Services           ,814.29,23/09/2015,Rev,ST CHRISTOPHERS FELLOWSHIP    
717,Childrens & Education Services,,ART Residential Secure accommo,W1DE58,Third Party Payments          ,Private Contractors           ,EH01,Miscellaneous Agency Services           ,950,23/09/2015,Rev,ST CHRISTOPHERS FELLOWSHIP    
718,Childrens & Education Services,,ART Residential Secure accommo,W1DE58,Third Party Payments          ,Private Contractors           ,EH01,Miscellaneous Agency Services           ,950,23/09/2015,Rev,ST CHRISTOPHERS FELLOWSHIP    
719,Childrens & Education Services,,ART Residential Secure accommo,W1DE58,Third Party Payments          ,Private Contractors           ,EH01,Miscellaneous Agency Services           ,950,23/09/2015,Rev,ST CHRISTOPHERS FELLOWSHIP    
720,Childrens & Education Services,,ART Residential Secure accommo,W1DE58,Third Party Payments          ,Private Contractors           ,EH01,Miscellaneous Agency Services           ,950,23/09/2015,Rev,ST CHRISTOPHERS FELLOWSHIP    
721,Central Services,SupS Health & Safety,Learning and Development,B06146,Employees                     ,Indirect Employee Expenses    ,AB57,EXTERNAL TRAINING COSTS                 ,1400,23/09/2015,Rev,REDACTED
722,Central Services,SupS Health & Safety,Learning and Development,B06146,Employees                     ,Indirect Employee Expenses    ,AB57,EXTERNAL TRAINING COSTS                 ,1950,23/09/2015,Rev,P M MANAGEMENT CONSULTANTS LTD
723,Childrens & Education Services,Support for SEN Pupils,ART SEN Residential (DSG),K90050,Third Party Payments          ,Other Establishments          ,EG51,Ind Resid Schs Payments                 ,62405,23/09/2015,Rev,THE MULBERRY BUSH ORGANISATION
724,Childrens & Education Services,,ART Secure Accommodation                ,W1DE59,Third Party Payments          ,Private Contractors           ,EH79,Private Tenant/Landlord                 ,885,24/09/2015,Rev,THE YOUTH JUSTICE BOARD       
725,Childrens & Education Services,,ART Secure Accommodation                ,W1DE59,Third Party Payments          ,Private Contractors           ,EH79,Private Tenant/Landlord                 ,1239,24/09/2015,Rev,THE YOUTH JUSTICE BOARD       
726,Cultural Env Reg&Plan Services,Inspect/Enforce (Consumer P),Trading Standards,G00690,Supplies & Services           ,Services                      ,DF11,Counsel's Fees                          ,2250,24/09/2015,Rev,REDACTED
727,Childrens & Education Services,Sch Meals & Milk-Not Delegated,Free School Meals,K90002,Supplies & Services           ,Grants and Subscriptions      ,DJ80,Free School Meals                       ,-53005.7,25/09/2015,Rev,ISS COLLECTIONS LTD           
728,Childrens & Education Services,Fostering Services,ART Independent Agency Foster,W1DE46,Supplies & Services           ,Services                      ,DF53,Task Based Fostering                    ,700.56,25/09/2015,Rev,CORNERWAYS FOSTERING SERV.LTD 
729,Childrens & Education Services,Fostering Services,ART Independent Agency Foster,W1DE46,Supplies & Services           ,Services                      ,DF53,Task Based Fostering                    ,700.56,25/09/2015,Rev,CORNERWAYS FOSTERING SERV.LTD 
730,Childrens & Education Services,Fostering Services,ART Independent Agency Foster,W1DE46,Supplies & Services           ,Services                      ,DF53,Task Based Fostering                    ,700.56,25/09/2015,Rev,CORNERWAYS FOSTERING SERV.LTD 
731,Childrens & Education Services,Fostering Services,ART Independent Agency Foster,W1DE46,Supplies & Services           ,Services                      ,DF53,Task Based Fostering                    ,700.56,25/09/2015,Rev,CORNERWAYS FOSTERING SERV.LTD 
732,Childrens & Education Services,Fostering Services,ART Independent Agency Foster,W1DE46,Supplies & Services           ,Services                      ,DF53,Task Based Fostering                    ,700.56,25/09/2015,Rev,CORNERWAYS FOSTERING SERV.LTD 
733,Childrens & Education Services,Fostering Services,ART Independent Agency Foster,W1DE46,Supplies & Services           ,Services                      ,DF53,Task Based Fostering                    ,700.56,25/09/2015,Rev,CORNERWAYS FOSTERING SERV.LTD 
734,Childrens & Education Services,Fostering Services,ART Independent Agency Foster,W1DE46,Supplies & Services           ,Services                      ,DF53,Task Based Fostering                    ,700.56,25/09/2015,Rev,CORNERWAYS FOSTERING SERV.LTD 
735,Childrens & Education Services,Fostering Services,ART Independent Agency Foster,W1DE46,Supplies & Services           ,Services                      ,DF53,Task Based Fostering                    ,700.56,25/09/2015,Rev,CORNERWAYS FOSTERING SERV.LTD 
736,Childrens & Education Services,Fostering Services,ART Independent Agency Foster,W1DE46,Supplies & Services           ,Services                      ,DF53,Task Based Fostering                    ,700.56,25/09/2015,Rev,CORNERWAYS FOSTERING SERV.LTD 
737,Childrens & Education Services,Fostering Services,ART Independent Agency Foster,W1DE46,Supplies & Services           ,Services                      ,DF53,Task Based Fostering                    ,700.56,25/09/2015,Rev,CORNERWAYS FOSTERING SERV.LTD 
738,Childrens & Education Services,Fostering Services,ART Independent Agency Foster,W1DE46,Supplies & Services           ,Services                      ,DF53,Task Based Fostering                    ,700.56,25/09/2015,Rev,CORNERWAYS FOSTERING SERV.LTD 
739,Childrens & Education Services,Fostering Services,ART Independent Agency Foster,W1DE46,Supplies & Services           ,Services                      ,DF53,Task Based Fostering                    ,700.56,25/09/2015,Rev,CORNERWAYS FOSTERING SERV.LTD 
740,Central Services,SupS IT,Corp Saving-IT Consolidation,E14370,Premises Related Expenditure  ,RepairsAlterations&MtceOfBldgs,BA01,DDM - General Building                  ,1408.81,25/09/2015,Rev,NETWORK BLINDS LIMITED        
741,Childrens & Education Services,Support for SEN Pupils,Non-Delegated Statements,K90024,Third Party Payments          ,Other Local Authorities       ,EB51,OLA Payments - Special Units            ,26483,25/09/2015,Rev,LONDON BOROUGH OF CROYDON     
742,Adult Social Care,OP 65&Over Resi Care Placement,OP R/Park-Residential Care Ext,W2LR55,Third Party Payments          ,Private Contractors           ,EH01,Miscellaneous Agency Services           ,-524.22,28/09/2015,Rev,LINK HOUSE                    
743,Adult Social Care,OP 65&Over Resi Care Placement,OP R/Park-Residential Care Ext,W2LR55,Third Party Payments          ,Private Contractors           ,EH01,Miscellaneous Agency Services           ,-524.22,28/09/2015,Rev,LINK HOUSE                    
744,Adult Social Care,OP 65&Over Resi Care Placement,OP R/Park-Residential Care Ext,W2LR55,Third Party Payments          ,Private Contractors           ,EH01,Miscellaneous Agency Services           ,-524.22,28/09/2015,Rev,LINK HOUSE                    
745,Adult Social Care,OP 65&Over Resi Care Placement,OP R/Park-Residential Care Ext,W2LR55,Third Party Payments          ,Private Contractors           ,EH01,Miscellaneous Agency Services           ,-524.22,28/09/2015,Rev,LINK HOUSE                    
746,Adult Social Care,OP 65&Over Resi Care Placement,OP R/Park-Residential Care Ext,W2LR55,Third Party Payments          ,Private Contractors           ,EH01,Miscellaneous Agency Services           ,-524.22,28/09/2015,Rev,LINK HOUSE                    
747,Adult Social Care,OP 65&Over Resi Care Placement,OP R/Park-Residential Care Ext,W2LR55,Third Party Payments          ,Private Contractors           ,EH01,Miscellaneous Agency Services           ,-524.22,28/09/2015,Rev,LINK HOUSE                    
748,Adult Social Care,OP 65&Over Resi Care Placement,OP R/Park-Residential Care Ext,W2LR55,Third Party Payments          ,Private Contractors           ,EH01,Miscellaneous Agency Services           ,-524.22,28/09/2015,Rev,LINK HOUSE                    
749,Adult Social Care,OP 65&Over Resi Care Placement,OP R/Park-Residential Care Ext,W2LR55,Third Party Payments          ,Private Contractors           ,EH01,Miscellaneous Agency Services           ,-524.22,28/09/2015,Rev,LINK HOUSE                    
750,Adult Social Care,OP 65&Over Resi Care Placement,OP R/Park-Residential Care Ext,W2LR55,Third Party Payments          ,Private Contractors           ,EH01,Miscellaneous Agency Services           ,-524.22,28/09/2015,Rev,LINK HOUSE                    
751,Adult Social Care,OP 65&Over Resi Care Placement,OP R/Park-Residential Care Ext,W2LR55,Third Party Payments          ,Private Contractors           ,EH01,Miscellaneous Agency Services           ,-524.22,28/09/2015,Rev,LINK HOUSE                    
752,Adult Social Care,OP 65&Over Resi Care Placement,OP R/Park-Residential Care Ext,W2LR55,Third Party Payments          ,Private Contractors           ,EH01,Miscellaneous Agency Services           ,-524.22,28/09/2015,Rev,LINK HOUSE                    
753,Adult Social Care,OP 65&Over Resi Care Placement,OP R/Park-Residential Care Ext,W2LR55,Third Party Payments          ,Private Contractors           ,EH01,Miscellaneous Agency Services           ,-524.22,28/09/2015,Rev,LINK HOUSE                    
754,Adult Social Care,OP 65&Over Resi Care Placement,OP R/Park-Residential Care Ext,W2LR55,Third Party Payments          ,Private Contractors           ,EH01,Miscellaneous Agency Services           ,587,28/09/2015,Rev,LINK HOUSE                    
755,Adult Social Care,OP 65&Over Resi Care Placement,OP R/Park-Residential Care Ext,W2LR55,Third Party Payments          ,Private Contractors           ,EH01,Miscellaneous Agency Services           ,587,28/09/2015,Rev,LINK HOUSE                    
756,Adult Social Care,OP 65&Over Resi Care Placement,OP R/Park-Residential Care Ext,W2LR55,Third Party Payments          ,Private Contractors           ,EH01,Miscellaneous Agency Services           ,587,28/09/2015,Rev,LINK HOUSE                    
757,Adult Social Care,OP 65&Over Resi Care Placement,OP R/Park-Residential Care Ext,W2LR55,Third Party Payments          ,Private Contractors           ,EH01,Miscellaneous Agency Services           ,587,28/09/2015,Rev,LINK HOUSE                    
758,Adult Social Care,OP 65&Over Resi Care Placement,OP R/Park-Residential Care Ext,W2LR55,Third Party Payments          ,Private Contractors           ,EH01,Miscellaneous Agency Services           ,587,28/09/2015,Rev,LINK HOUSE                    
759,Adult Social Care,OP 65&Over Resi Care Placement,OP R/Park-Residential Care Ext,W2LR55,Third Party Payments          ,Private Contractors           ,EH01,Miscellaneous Agency Services           ,587,28/09/2015,Rev,LINK HOUSE                    
760,Adult Social Care,OP 65&Over Resi Care Placement,OP R/Park-Residential Care Ext,W2LR55,Third Party Payments          ,Private Contractors           ,EH01,Miscellaneous Agency Services           ,587,28/09/2015,Rev,LINK HOUSE                    
761,Adult Social Care,OP 65&Over Resi Care Placement,OP R/Park-Residential Care Ext,W2LR55,Third Party Payments          ,Private Contractors           ,EH01,Miscellaneous Agency Services           ,587,28/09/2015,Rev,LINK HOUSE                    
762,Adult Social Care,OP 65&Over Resi Care Placement,OP R/Park-Residential Care Ext,W2LR55,Third Party Payments          ,Private Contractors           ,EH01,Miscellaneous Agency Services           ,587,28/09/2015,Rev,LINK HOUSE                    
763,Adult Social Care,OP 65&Over Resi Care Placement,OP R/Park-Residential Care Ext,W2LR55,Third Party Payments          ,Private Contractors           ,EH01,Miscellaneous Agency Services           ,587,28/09/2015,Rev,LINK HOUSE                    
764,Adult Social Care,OP 65&Over Resi Care Placement,OP R/Park-Residential Care Ext,W2LR55,Third Party Payments          ,Private Contractors           ,EH01,Miscellaneous Agency Services           ,587,28/09/2015,Rev,LINK HOUSE                    
765,Adult Social Care,OP 65&Over Resi Care Placement,OP R/Park-Residential Care Ext,W2LR55,Third Party Payments          ,Private Contractors           ,EH01,Miscellaneous Agency Services           ,587,28/09/2015,Rev,LINK HOUSE                    
766,Cultural Env Reg&Plan Services,Food Safety,Health & Safety,G00697,Third Party Payments          ,Private Contractors           ,EH10,Contract Payments                       ,1100,28/09/2015,Rev,REDACTED
767,Childrens & Education Services,Chidren's Homes,ART Residential Placements,W1DE57,Third Party Payments          ,Private Contractors           ,EH01,Miscellaneous Agency Services           ,1257.14,28/09/2015,Rev,REDACTED
768,Childrens & Education Services,Chidren's Homes,ART Residential Placements,W1DE57,Third Party Payments          ,Private Contractors           ,EH01,Miscellaneous Agency Services           ,1257.14,28/09/2015,Rev,REDACTED
769,Adult Social Care,SS Management & Administration,Planning and Commissioning,W3VA11,Employees                     ,Indirect Employee Expenses    ,AB13,Health Staff in PCT Pool                ,2054.85,28/09/2015,Rev,SW LONDON ST GEORGES NHS TRUST
770,Childrens & Education Services,Chidren's Homes,ART Residential Placements,W1DE57,Third Party Payments          ,Private Contractors           ,EH01,Miscellaneous Agency Services           ,2200,28/09/2015,Rev,REDACTED
771,Childrens & Education Services,Chidren's Homes,ART Residential Placements,W1DE57,Third Party Payments          ,Private Contractors           ,EH01,Miscellaneous Agency Services           ,2200,28/09/2015,Rev,REDACTED
772,Childrens & Education Services,Chidren's Homes,ART Residential Placements,W1DE57,Third Party Payments          ,Private Contractors           ,EH01,Miscellaneous Agency Services           ,2200,28/09/2015,Rev,REDACTED
773,Childrens & Education Services,Chidren's Homes,ART Residential Placements,W1DE57,Third Party Payments          ,Private Contractors           ,EH01,Miscellaneous Agency Services           ,2200,28/09/2015,Rev,REDACTED
774,Childrens & Education Services,Chidren's Homes,ART Residential Placements,W1DE57,Third Party Payments          ,Private Contractors           ,EH01,Miscellaneous Agency Services           ,2200,28/09/2015,Rev,REDACTED
775,Childrens & Education Services,Chidren's Homes,ART Residential Placements,W1DE57,Third Party Payments          ,Private Contractors           ,EH01,Miscellaneous Agency Services           ,2200,28/09/2015,Rev,REDACTED
776,Childrens & Education Services,Chidren's Homes,ART Residential Placements,W1DE57,Third Party Payments          ,Private Contractors           ,EH01,Miscellaneous Agency Services           ,2200,28/09/2015,Rev,REDACTED
777,Childrens & Education Services,Chidren's Homes,ART Residential Placements,W1DE57,Third Party Payments          ,Private Contractors           ,EH01,Miscellaneous Agency Services           ,2200,28/09/2015,Rev,REDACTED
778,Childrens & Education Services,Chidren's Homes,ART Residential Placements,W1DE57,Third Party Payments          ,Private Contractors           ,EH01,Miscellaneous Agency Services           ,2200,28/09/2015,Rev,REDACTED
779,Childrens & Education Services,Chidren's Homes,ART Residential Placements,W1DE57,Third Party Payments          ,Private Contractors           ,EH01,Miscellaneous Agency Services           ,2200,28/09/2015,Rev,REDACTED
780,Childrens & Education Services,Chidren's Homes,ART Residential Placements,W1DE57,Third Party Payments          ,Private Contractors           ,EH01,Miscellaneous Agency Services           ,2200,28/09/2015,Rev,REDACTED
781,Childrens & Education Services,Chidren's Homes,ART Residential Placements,W1DE57,Third Party Payments          ,Private Contractors           ,EH01,Miscellaneous Agency Services           ,2200,28/09/2015,Rev,REDACTED
782,Childrens & Education Services,Chidren's Homes,ART Residential Placements,W1DE57,Third Party Payments          ,Private Contractors           ,EH01,Miscellaneous Agency Services           ,2200,28/09/2015,Rev,REDACTED
783,Childrens & Education Services,Chidren's Homes,ART Residential Placements,W1DE57,Third Party Payments          ,Private Contractors           ,EH01,Miscellaneous Agency Services           ,2200,28/09/2015,Rev,REDACTED
784,Childrens & Education Services,Chidren's Homes,ART Residential Placements,W1DE57,Third Party Payments          ,Private Contractors           ,EH01,Miscellaneous Agency Services           ,2200,28/09/2015,Rev,REDACTED
785,Childrens & Education Services,Chidren's Homes,ART Residential Placements,W1DE57,Third Party Payments          ,Private Contractors           ,EH01,Miscellaneous Agency Services           ,2200,28/09/2015,Rev,REDACTED
786,Childrens & Education Services,Chidren's Homes,ART Residential Placements,W1DE57,Third Party Payments          ,Private Contractors           ,EH01,Miscellaneous Agency Services           ,2200,28/09/2015,Rev,REDACTED
787,Childrens & Education Services,Chidren's Homes,ART Residential Placements,W1DE57,Third Party Payments          ,Private Contractors           ,EH01,Miscellaneous Agency Services           ,2200,28/09/2015,Rev,REDACTED
788,Adult Social Care,LD u65 Assessment & Care Mgt,Access&Assess Business Support,W2KQ00,Supplies & Services           ,Services                      ,DF14,Doctors and Other Fees                  ,4902.77,28/09/2015,Rev,SW LONDON ST GEORGES NHS TRUST
789,Cultural Env Reg&Plan Services,Recycling (Collection),Recycling Activities,G00640,Third Party Payments          ,Private Contractors           ,EH08,SLWP C1 Haulage Dry Recyclable          ,-15100.09,29/09/2015,Rev,KINGSTON CORPORATION          
790,Adult Social Care,OP 65&Over Resi Care Placement,OP East - Residential Care Ext,W2LH55,Third Party Payments          ,Private Contractors           ,EH01,Miscellaneous Agency Services           ,-524.22,29/09/2015,Rev,WOODLANDS                     
791,Adult Social Care,OP 65&Over Resi Care Placement,OP East - Residential Care Ext,W2LH55,Third Party Payments          ,Private Contractors           ,EH01,Miscellaneous Agency Services           ,-524.22,29/09/2015,Rev,WOODLANDS                     
792,Adult Social Care,OP 65&Over Resi Care Placement,OP East - Residential Care Ext,W2LH55,Third Party Payments          ,Private Contractors           ,EH01,Miscellaneous Agency Services           ,-524.22,29/09/2015,Rev,WOODLANDS                     
793,Adult Social Care,OP 65&Over Resi Care Placement,OP East - Residential Care Ext,W2LH55,Third Party Payments          ,Private Contractors           ,EH01,Miscellaneous Agency Services           ,-524.22,29/09/2015,Rev,WOODLANDS                     
794,Adult Social Care,OP 65&Over Resi Care Placement,OP East - Residential Care Ext,W2LH55,Third Party Payments          ,Private Contractors           ,EH01,Miscellaneous Agency Services           ,-524.22,29/09/2015,Rev,WOODLANDS                     
795,Adult Social Care,OP 65&Over Resi Care Placement,OP East - Residential Care Ext,W2LH55,Third Party Payments          ,Private Contractors           ,EH01,Miscellaneous Agency Services           ,587,29/09/2015,Rev,WOODLANDS                     
796,Adult Social Care,OP 65&Over Resi Care Placement,OP East - Residential Care Ext,W2LH55,Third Party Payments          ,Private Contractors           ,EH01,Miscellaneous Agency Services           ,587,29/09/2015,Rev,WOODLANDS                     
797,Adult Social Care,OP 65&Over Resi Care Placement,OP East - Residential Care Ext,W2LH55,Third Party Payments          ,Private Contractors           ,EH01,Miscellaneous Agency Services           ,587,29/09/2015,Rev,WOODLANDS                     
798,Adult Social Care,OP 65&Over Resi Care Placement,OP East - Residential Care Ext,W2LH55,Third Party Payments          ,Private Contractors           ,EH01,Miscellaneous Agency Services           ,587,29/09/2015,Rev,WOODLANDS                     
799,Adult Social Care,OP 65&Over Resi Care Placement,OP East - Residential Care Ext,W2LH55,Third Party Payments          ,Private Contractors           ,EH01,Miscellaneous Agency Services           ,587,29/09/2015,Rev,WOODLANDS                     
800,Highways & Transport Services,Street Lighting.,Street Lighting .,G00260,Third Party Payments          ,Private Contractors           ,EH01,Miscellaneous Agency Services           ,642,29/09/2015,Rev,UK POWER NETWORKS (OPERATIONS)
801,Central Services,SupS Legal,Achieving for Children (AFC),E10295,Supplies & Services           ,Services                      ,DF11,Counsel's Fees                          ,900,29/09/2015,Rev,REDACTED
802,Central Services,SupS IT,Operations & Telecomms,E14367,Supplies & Services           ,Comms and Computing           ,DG54,Corporate Telephones                    ,1106.4,29/09/2015,Rev,O2 (UK) LIMITED               
803,Adult Social Care,SS IT & Coms,FS Carefirst annual sys costs,W3YA01,Supplies & Services           ,Services                      ,DF03,Consultants                             ,1310.3,29/09/2015,Rev,NUMBER 10 INTERIM LTD         
804,Cultural Env Reg&Plan Services,Comm Safety (Crime Reduction),Crime and Strategy Team,A01100,Supplies & Services           ,Expenses                      ,DH50,Special Projects                        ,5100,29/09/2015,Rev,YMCA LONDON SOUTH WEST        
805,Highways & Transport Services,Off-street parking,"St. Mks Rd, Multi Sty",G00308,Premises Related Expenditure  ,Rents                         ,BC01,Miscellaneous Rents                     ,5500,29/09/2015,Rev,ASDA STORES LTD               
806,,,The Gables Mitcham                      ,CC021AB,New Construction Conversion and Renovation,,B4,Contractor - Site works                 ,91534.4,29/09/2015,Cap,MOY CONSTRUCTION CO LTD       
807,Adult Social Care,OP 65&Over NursingCarePlacemts,OP R/Park - Nursing Care,W2LR53,Third Party Payments          ,Private Contractors           ,EH01,Miscellaneous Agency Services           ,-1015.33,30/09/2015,Rev,RNID                          
808,Adult Social Care,OP 65&Over NursingCarePlacemts,OP R/Park - Nursing Care,W2LR53,Third Party Payments          ,Private Contractors           ,EH01,Miscellaneous Agency Services           ,-1015.33,30/09/2015,Rev,RNID                          
809,Adult Social Care,OP 65&Over NursingCarePlacemts,OP R/Park - Nursing Care,W2LR53,Third Party Payments          ,Private Contractors           ,EH01,Miscellaneous Agency Services           ,-1015.33,30/09/2015,Rev,RNID                          
810,Adult Social Care,OP 65&Over NursingCarePlacemts,OP R/Park - Nursing Care,W2LR53,Third Party Payments          ,Private Contractors           ,EH01,Miscellaneous Agency Services           ,-1015.33,30/09/2015,Rev,RNID                          
811,Adult Social Care,OP 65&Over NursingCarePlacemts,OP R/Park - Nursing Care,W2LR53,Third Party Payments          ,Private Contractors           ,EH01,Miscellaneous Agency Services           ,-725.24,30/09/2015,Rev,RNID                          
812,Central Services,SupS Legal,Achieving for Children (AFC),E10295,Supplies & Services           ,Services                      ,DF11,Counsel's Fees                          ,575,30/09/2015,Rev,REDACTED
